Body Name,Date Paid,Transaction Number,Amount,Supplier Name,Supplier Type,Expense Area,Cost Centre Description,Expense Type
Cambridgeshire County Council,10-Jan-20,51301295526,"-80,664.00",GRETTON SCHOOL,EDUCATION,SEN Placements,Placements - Education,Independent School Placements
Cambridgeshire County Council,20-Jan-20,51300906318,"-45,895.00",PETERBOROUGH AND STAMFORD HOSPITALS NHS FOUNDATION TRUST,TRUST (OTHER),Control Accounts,Control Accounts - Payables,Migration Only - Marked as Do Not Use
Cambridgeshire County Council,16-Jan-20,51301296416,"-17,625.60",WCL UK LTD,TRADE SUPPLIER,ICT Service,ICT Service Sales,Materials for resale
Cambridgeshire County Council,30-Jan-20,51301301624,"-10,407.35",VOYAGE,CARE ESTABLISHMENT,LD - South Locality - Cost of Care,LD - South Cambs - Care,Residential Care
Cambridgeshire County Council,20-Jan-20,51301298141,"-10,030.00",ST ANDREWS HEALTHCARE,CARE ESTABLISHMENT,LD - Hunts Locality - Cost of Care,LD - Huntingdonshire - Special Needs,Residential Care
Cambridgeshire County Council,29-Jan-20,51301303476,"-8,353.84",ETHELDRED HOUSE,CARE ESTABLISHMENT,OP - City & South Blocks,City and South - Long term blocks,Nursing Care
Cambridgeshire County Council,29-Jan-20,51301303476,"-8,353.84",ETHELDRED HOUSE,CARE ESTABLISHMENT,OP - City & South Blocks,City and South - Long term blocks,Nursing Care
Cambridgeshire County Council,30-Jan-20,51301301624,"-6,938.30",VOYAGE,CARE ESTABLISHMENT,LD - South Locality - Cost of Care,LD - South Cambs - Care,Residential Care
Cambridgeshire County Council,23-Jan-20,51301300886,"-4,282.21",GLENHOLME HEALTHCARE LTD,CARE ESTABLISHMENT,LD - Young Adults Team,LD - Young Adults - Special Needs,Residential Care
Cambridgeshire County Council,23-Jan-20,51301300886,"-4,282.21",GLENHOLME HEALTHCARE LTD,CARE ESTABLISHMENT,LD - Young Adults Team,LD - Young Adults - Special Needs,Residential Care
Cambridgeshire County Council,23-Jan-20,51301300886,"-4,282.21",GLENHOLME HEALTHCARE LTD,CARE ESTABLISHMENT,LD - Young Adults Team,LD - Young Adults - Special Needs,Residential Care
Cambridgeshire County Council,23-Jan-20,51301300886,"-4,282.21",GLENHOLME HEALTHCARE LTD,CARE ESTABLISHMENT,LD - Young Adults Team,LD - Young Adults - Special Needs,Residential Care
Cambridgeshire County Council,23-Jan-20,51301300886,"-4,282.21",GLENHOLME HEALTHCARE LTD,CARE ESTABLISHMENT,LD - Young Adults Team,LD - Young Adults - Special Needs,Residential Care
Cambridgeshire County Council,23-Jan-20,51301300886,"-4,282.21",GLENHOLME HEALTHCARE LTD,CARE ESTABLISHMENT,LD - Young Adults Team,LD - Young Adults - Special Needs,Residential Care
Cambridgeshire County Council,23-Jan-20,51301300886,"-4,282.21",GLENHOLME HEALTHCARE LTD,CARE ESTABLISHMENT,LD - Young Adults Team,LD - Young Adults - Special Needs,Residential Care
Cambridgeshire County Council,23-Jan-20,51301300886,"-4,282.21",GLENHOLME HEALTHCARE LTD,CARE ESTABLISHMENT,LD - Young Adults Team,LD - Young Adults - Special Needs,Residential Care
Cambridgeshire County Council,23-Jan-20,51301300886,"-4,282.21",GLENHOLME HEALTHCARE LTD,CARE ESTABLISHMENT,LD - Young Adults Team,LD - Young Adults - Special Needs,Residential Care
Cambridgeshire County Council,23-Jan-20,51301300886,"-4,282.21",GLENHOLME HEALTHCARE LTD,CARE ESTABLISHMENT,LD - Young Adults Team,LD - Young Adults - Special Needs,Residential Care
Cambridgeshire County Council,23-Jan-20,51301300886,"-4,282.21",GLENHOLME HEALTHCARE LTD,CARE ESTABLISHMENT,LD - Young Adults Team,LD - Young Adults - Special Needs,Residential Care
Cambridgeshire County Council,23-Jan-20,51301300886,"-4,282.21",GLENHOLME HEALTHCARE LTD,CARE ESTABLISHMENT,LD - Young Adults Team,LD - Young Adults - Special Needs,Residential Care
Cambridgeshire County Council,23-Jan-20,51301300886,"-4,282.21",GLENHOLME HEALTHCARE LTD,CARE ESTABLISHMENT,LD - Young Adults Team,LD - Young Adults - Special Needs,Residential Care
Cambridgeshire County Council,23-Jan-20,51301300886,"-4,282.21",GLENHOLME HEALTHCARE LTD,CARE ESTABLISHMENT,LD - Young Adults Team,LD - Young Adults - Special Needs,Residential Care
Cambridgeshire County Council,23-Jan-20,51301300886,"-4,282.21",GLENHOLME HEALTHCARE LTD,CARE ESTABLISHMENT,LD - Young Adults Team,LD - Young Adults - Special Needs,Residential Care
Cambridgeshire County Council,23-Jan-20,51301300886,"-4,282.21",GLENHOLME HEALTHCARE LTD,CARE ESTABLISHMENT,LD - Young Adults Team,LD - Young Adults - Special Needs,Residential Care
Cambridgeshire County Council,23-Jan-20,51301300886,"-4,282.21",GLENHOLME HEALTHCARE LTD,CARE ESTABLISHMENT,LD - Young Adults Team,LD - Young Adults - Special Needs,Residential Care
Cambridgeshire County Council,23-Jan-20,51301300886,"-4,282.21",GLENHOLME HEALTHCARE LTD,CARE ESTABLISHMENT,LD - Young Adults Team,LD - Young Adults - Special Needs,Residential Care
Cambridgeshire County Council,23-Jan-20,51301300886,"-4,282.21",GLENHOLME HEALTHCARE LTD,CARE ESTABLISHMENT,LD - Young Adults Team,LD - Young Adults - Special Needs,Residential Care
Cambridgeshire County Council,23-Jan-20,51301300886,"-4,282.21",GLENHOLME HEALTHCARE LTD,CARE ESTABLISHMENT,LD - Young Adults Team,LD - Young Adults - Special Needs,Residential Care
Cambridgeshire County Council,23-Jan-20,51301300886,"-4,282.21",GLENHOLME HEALTHCARE LTD,CARE ESTABLISHMENT,LD - Young Adults Team,LD - Young Adults - Special Needs,Residential Care
Cambridgeshire County Council,23-Jan-20,51301300886,"-4,282.21",GLENHOLME HEALTHCARE LTD,CARE ESTABLISHMENT,LD - Young Adults Team,LD - Young Adults - Special Needs,Residential Care
Cambridgeshire County Council,23-Jan-20,51301300886,"-4,282.21",GLENHOLME HEALTHCARE LTD,CARE ESTABLISHMENT,LD - Young Adults Team,LD - Young Adults - Special Needs,Residential Care
Cambridgeshire County Council,23-Jan-20,51301300886,"-4,282.21",GLENHOLME HEALTHCARE LTD,CARE ESTABLISHMENT,LD - Young Adults Team,LD - Young Adults - Special Needs,Residential Care
Cambridgeshire County Council,23-Jan-20,51301300886,"-4,282.21",GLENHOLME HEALTHCARE LTD,CARE ESTABLISHMENT,LD - Young Adults Team,LD - Young Adults - Special Needs,Residential Care
Cambridgeshire County Council,23-Jan-20,51301300886,"-4,282.21",GLENHOLME HEALTHCARE LTD,CARE ESTABLISHMENT,LD - Young Adults Team,LD - Young Adults - Special Needs,Residential Care
Cambridgeshire County Council,23-Jan-20,51301300886,"-4,282.21",GLENHOLME HEALTHCARE LTD,CARE ESTABLISHMENT,LD - Young Adults Team,LD - Young Adults - Special Needs,Residential Care
Cambridgeshire County Council,23-Jan-20,51301301031,"-4,024.36",GLENHOLME HEALTHCARE LTD,CARE ESTABLISHMENT,LD - South Locality - Cost of Care,LD - South Cambs - Special Needs,Residential Care
Cambridgeshire County Council,23-Jan-20,51301301031,"-4,024.36",GLENHOLME HEALTHCARE LTD,CARE ESTABLISHMENT,LD - South Locality - Cost of Care,LD - South Cambs - Special Needs,Residential Care
Cambridgeshire County Council,23-Jan-20,51301301031,"-4,024.36",GLENHOLME HEALTHCARE LTD,CARE ESTABLISHMENT,LD - South Locality - Cost of Care,LD - South Cambs - Special Needs,Residential Care
Cambridgeshire County Council,23-Jan-20,51301301031,"-4,024.36",GLENHOLME HEALTHCARE LTD,CARE ESTABLISHMENT,LD - South Locality - Cost of Care,LD - South Cambs - Special Needs,Residential Care
Cambridgeshire County Council,23-Jan-20,51301301031,"-4,024.36",GLENHOLME HEALTHCARE LTD,CARE ESTABLISHMENT,LD - South Locality - Cost of Care,LD - South Cambs - Special Needs,Residential Care
Cambridgeshire County Council,23-Jan-20,51301301031,"-4,024.36",GLENHOLME HEALTHCARE LTD,CARE ESTABLISHMENT,LD - South Locality - Cost of Care,LD - South Cambs - Special Needs,Residential Care
Cambridgeshire County Council,23-Jan-20,51301301031,"-4,024.36",GLENHOLME HEALTHCARE LTD,CARE ESTABLISHMENT,LD - South Locality - Cost of Care,LD - South Cambs - Special Needs,Residential Care
Cambridgeshire County Council,23-Jan-20,51301301031,"-4,024.36",GLENHOLME HEALTHCARE LTD,CARE ESTABLISHMENT,LD - South Locality - Cost of Care,LD - South Cambs - Special Needs,Residential Care
Cambridgeshire County Council,23-Jan-20,51301301031,"-4,024.36",GLENHOLME HEALTHCARE LTD,CARE ESTABLISHMENT,LD - South Locality - Cost of Care,LD - South Cambs - Special Needs,Residential Care
Cambridgeshire County Council,23-Jan-20,51301301031,"-4,024.36",GLENHOLME HEALTHCARE LTD,CARE ESTABLISHMENT,LD - South Locality - Cost of Care,LD - South Cambs - Special Needs,Residential Care
Cambridgeshire County Council,23-Jan-20,51301301031,"-4,024.36",GLENHOLME HEALTHCARE LTD,CARE ESTABLISHMENT,LD - South Locality - Cost of Care,LD - South Cambs - Special Needs,Residential Care
Cambridgeshire County Council,23-Jan-20,51301301031,"-4,024.36",GLENHOLME HEALTHCARE LTD,CARE ESTABLISHMENT,LD - South Locality - Cost of Care,LD - South Cambs - Special Needs,Residential Care
Cambridgeshire County Council,23-Jan-20,51301301031,"-4,024.36",GLENHOLME HEALTHCARE LTD,CARE ESTABLISHMENT,LD - South Locality - Cost of Care,LD - South Cambs - Special Needs,Residential Care
Cambridgeshire County Council,23-Jan-20,51301301031,"-4,024.36",GLENHOLME HEALTHCARE LTD,CARE ESTABLISHMENT,LD - South Locality - Cost of Care,LD - South Cambs - Special Needs,Residential Care
Cambridgeshire County Council,23-Jan-20,51301301031,"-4,024.36",GLENHOLME HEALTHCARE LTD,CARE ESTABLISHMENT,LD - South Locality - Cost of Care,LD - South Cambs - Special Needs,Residential Care
Cambridgeshire County Council,14-Jan-20,51301287615,"-3,750.00",CAMBRIDGE REGIONAL COLLEGE,EDUCATION,EY - Workforce Development,Qualifications,Care & Ed Childcare Settings
Cambridgeshire County Council,13-Jan-20,51301295471,"-3,709.38",CARETECH COMMUNITY SERVICES,CARE ESTABLISHMENT,LAC Placements,Placements - supported accommodation,Agency Placements - In County
Cambridgeshire County Council,17-Jan-20,51301297636,"-3,680.00",Twenty Four Seven,CARE ESTABLISHMENT,LAC Placements,Placements - residential homes,Agency Placements - Out of  County
Cambridgeshire County Council,23-Jan-20,51301300886,"-3,670.47",GLENHOLME HEALTHCARE LTD,CARE ESTABLISHMENT,LD - Young Adults Team,LD - Young Adults - Special Needs,Residential Care
Cambridgeshire County Council,23-Jan-20,51301300886,"-3,670.47",GLENHOLME HEALTHCARE LTD,CARE ESTABLISHMENT,LD - Young Adults Team,LD - Young Adults - Special Needs,Residential Care
Cambridgeshire County Council,09-Jan-20,51301294826,"-3,602.82",PRIORY GROUP (MARCH HOUSE),CARE ESTABLISHMENT,LAC Placements,Placements - residential homes,Agency Placements - In County
Cambridgeshire County Council,09-Jan-20,51301294822,"-3,486.60",PRIORY GROUP (MARCH HOUSE),CARE ESTABLISHMENT,LAC Placements,Placements - residential homes,Agency Placements - In County
Cambridgeshire County Council,09-Jan-20,51301294825,"-3,486.60",PRIORY GROUP (MARCH HOUSE),CARE ESTABLISHMENT,LAC Placements,Placements - residential homes,Agency Placements - In County
Cambridgeshire County Council,23-Jan-20,51301301174,"-2,948.30",CONQUEST CARE HOMES PETERBOROUGH,CARE ESTABLISHMENT,LD - Young Adults Team,LD - Young Adults - Special Needs,Residential Care
Cambridgeshire County Council,23-Jan-20,51301301174,"-2,948.30",CONQUEST CARE HOMES PETERBOROUGH,CARE ESTABLISHMENT,LD - Young Adults Team,LD - Young Adults - Special Needs,Residential Care
Cambridgeshire County Council,23-Jan-20,51301301174,"-2,948.30",CONQUEST CARE HOMES PETERBOROUGH,CARE ESTABLISHMENT,LD - Young Adults Team,LD - Young Adults - Special Needs,Residential Care
Cambridgeshire County Council,23-Jan-20,51301301174,"-2,948.30",CONQUEST CARE HOMES PETERBOROUGH,CARE ESTABLISHMENT,LD - Young Adults Team,LD - Young Adults - Special Needs,Residential Care
Cambridgeshire County Council,23-Jan-20,51301301174,"-2,948.30",CONQUEST CARE HOMES PETERBOROUGH,CARE ESTABLISHMENT,LD - Young Adults Team,LD - Young Adults - Special Needs,Residential Care
Cambridgeshire County Council,23-Jan-20,51301301174,"-2,948.30",CONQUEST CARE HOMES PETERBOROUGH,CARE ESTABLISHMENT,LD - Young Adults Team,LD - Young Adults - Special Needs,Residential Care
Cambridgeshire County Council,23-Jan-20,51301301174,"-2,948.30",CONQUEST CARE HOMES PETERBOROUGH,CARE ESTABLISHMENT,LD - Young Adults Team,LD - Young Adults - Special Needs,Residential Care
Cambridgeshire County Council,23-Jan-20,51301301174,"-2,948.30",CONQUEST CARE HOMES PETERBOROUGH,CARE ESTABLISHMENT,LD - Young Adults Team,LD - Young Adults - Special Needs,Residential Care
Cambridgeshire County Council,23-Jan-20,51301301174,"-2,948.30",CONQUEST CARE HOMES PETERBOROUGH,CARE ESTABLISHMENT,LD - Young Adults Team,LD - Young Adults - Special Needs,Residential Care
Cambridgeshire County Council,23-Jan-20,51301301174,"-2,948.30",CONQUEST CARE HOMES PETERBOROUGH,CARE ESTABLISHMENT,LD - Young Adults Team,LD - Young Adults - Special Needs,Residential Care
Cambridgeshire County Council,23-Jan-20,51301301174,"-2,948.30",CONQUEST CARE HOMES PETERBOROUGH,CARE ESTABLISHMENT,LD - Young Adults Team,LD - Young Adults - Special Needs,Residential Care
Cambridgeshire County Council,23-Jan-20,51301301174,"-2,948.30",CONQUEST CARE HOMES PETERBOROUGH,CARE ESTABLISHMENT,LD - Young Adults Team,LD - Young Adults - Special Needs,Residential Care
Cambridgeshire County Council,23-Jan-20,51301301174,"-2,948.30",CONQUEST CARE HOMES PETERBOROUGH,CARE ESTABLISHMENT,LD - Young Adults Team,LD - Young Adults - Special Needs,Residential Care
Cambridgeshire County Council,23-Jan-20,51301301174,"-2,948.30",CONQUEST CARE HOMES PETERBOROUGH,CARE ESTABLISHMENT,LD - Young Adults Team,LD - Young Adults - Special Needs,Residential Care
Cambridgeshire County Council,23-Jan-20,51301301174,"-2,948.30",CONQUEST CARE HOMES PETERBOROUGH,CARE ESTABLISHMENT,LD - Young Adults Team,LD - Young Adults - Special Needs,Residential Care
Cambridgeshire County Council,23-Jan-20,51301301174,"-2,948.30",CONQUEST CARE HOMES PETERBOROUGH,CARE ESTABLISHMENT,LD - Young Adults Team,LD - Young Adults - Special Needs,Residential Care
Cambridgeshire County Council,23-Jan-20,51301301174,"-2,948.30",CONQUEST CARE HOMES PETERBOROUGH,CARE ESTABLISHMENT,LD - Young Adults Team,LD - Young Adults - Special Needs,Residential Care
Cambridgeshire County Council,23-Jan-20,51301301174,"-2,948.30",CONQUEST CARE HOMES PETERBOROUGH,CARE ESTABLISHMENT,LD - Young Adults Team,LD - Young Adults - Special Needs,Residential Care
Cambridgeshire County Council,23-Jan-20,51301301174,"-2,948.30",CONQUEST CARE HOMES PETERBOROUGH,CARE ESTABLISHMENT,LD - Young Adults Team,LD - Young Adults - Special Needs,Residential Care
Cambridgeshire County Council,23-Jan-20,51301301174,"-2,948.30",CONQUEST CARE HOMES PETERBOROUGH,CARE ESTABLISHMENT,LD - Young Adults Team,LD - Young Adults - Special Needs,Residential Care
Cambridgeshire County Council,23-Jan-20,51301301174,"-2,948.30",CONQUEST CARE HOMES PETERBOROUGH,CARE ESTABLISHMENT,LD - Young Adults Team,LD - Young Adults - Special Needs,Residential Care
Cambridgeshire County Council,23-Jan-20,51301301174,"-2,948.30",CONQUEST CARE HOMES PETERBOROUGH,CARE ESTABLISHMENT,LD - Young Adults Team,LD - Young Adults - Special Needs,Residential Care
Cambridgeshire County Council,23-Jan-20,51301301174,"-2,948.30",CONQUEST CARE HOMES PETERBOROUGH,CARE ESTABLISHMENT,LD - Young Adults Team,LD - Young Adults - Special Needs,Residential Care
Cambridgeshire County Council,23-Jan-20,51301301174,"-2,948.30",CONQUEST CARE HOMES PETERBOROUGH,CARE ESTABLISHMENT,LD - Young Adults Team,LD - Young Adults - Special Needs,Residential Care
Cambridgeshire County Council,23-Jan-20,51301301174,"-2,948.30",CONQUEST CARE HOMES PETERBOROUGH,CARE ESTABLISHMENT,LD - Young Adults Team,LD - Young Adults - Special Needs,Residential Care
Cambridgeshire County Council,23-Jan-20,51301301174,"-2,948.30",CONQUEST CARE HOMES PETERBOROUGH,CARE ESTABLISHMENT,LD - Young Adults Team,LD - Young Adults - Special Needs,Residential Care
Cambridgeshire County Council,23-Jan-20,51301301174,"-2,948.30",CONQUEST CARE HOMES PETERBOROUGH,CARE ESTABLISHMENT,LD - Young Adults Team,LD - Young Adults - Special Needs,Residential Care
Cambridgeshire County Council,23-Jan-20,51301301174,"-2,948.30",CONQUEST CARE HOMES PETERBOROUGH,CARE ESTABLISHMENT,LD - Young Adults Team,LD - Young Adults - Special Needs,Residential Care
Cambridgeshire County Council,23-Jan-20,51301301174,"-2,948.30",CONQUEST CARE HOMES PETERBOROUGH,CARE ESTABLISHMENT,LD - Young Adults Team,LD - Young Adults - Special Needs,Residential Care
Cambridgeshire County Council,23-Jan-20,51301301174,"-2,948.30",CONQUEST CARE HOMES PETERBOROUGH,CARE ESTABLISHMENT,LD - Young Adults Team,LD - Young Adults - Special Needs,Residential Care
Cambridgeshire County Council,23-Jan-20,51301301174,"-2,948.30",CONQUEST CARE HOMES PETERBOROUGH,CARE ESTABLISHMENT,LD - Young Adults Team,LD - Young Adults - Special Needs,Residential Care
Cambridgeshire County Council,23-Jan-20,51301301174,"-2,948.30",CONQUEST CARE HOMES PETERBOROUGH,CARE ESTABLISHMENT,LD - Young Adults Team,LD - Young Adults - Special Needs,Residential Care
Cambridgeshire County Council,23-Jan-20,51301301174,"-2,948.30",CONQUEST CARE HOMES PETERBOROUGH,CARE ESTABLISHMENT,LD - Young Adults Team,LD - Young Adults - Special Needs,Residential Care
Cambridgeshire County Council,23-Jan-20,51301301174,"-2,948.30",CONQUEST CARE HOMES PETERBOROUGH,CARE ESTABLISHMENT,LD - Young Adults Team,LD - Young Adults - Special Needs,Residential Care
Cambridgeshire County Council,23-Jan-20,51301301174,"-2,948.30",CONQUEST CARE HOMES PETERBOROUGH,CARE ESTABLISHMENT,LD - Young Adults Team,LD - Young Adults - Special Needs,Residential Care
Cambridgeshire County Council,23-Jan-20,51301301174,"-2,948.30",CONQUEST CARE HOMES PETERBOROUGH,CARE ESTABLISHMENT,LD - Young Adults Team,LD - Young Adults - Special Needs,Residential Care
Cambridgeshire County Council,23-Jan-20,51301301174,"-2,948.30",CONQUEST CARE HOMES PETERBOROUGH,CARE ESTABLISHMENT,LD - Young Adults Team,LD - Young Adults - Special Needs,Residential Care
Cambridgeshire County Council,23-Jan-20,51301301174,"-2,948.30",CONQUEST CARE HOMES PETERBOROUGH,CARE ESTABLISHMENT,LD - Young Adults Team,LD - Young Adults - Special Needs,Residential Care
Cambridgeshire County Council,23-Jan-20,51301301174,"-2,948.30",CONQUEST CARE HOMES PETERBOROUGH,CARE ESTABLISHMENT,LD - Young Adults Team,LD - Young Adults - Special Needs,Residential Care
Cambridgeshire County Council,23-Jan-20,51301301174,"-2,948.30",CONQUEST CARE HOMES PETERBOROUGH,CARE ESTABLISHMENT,LD - Young Adults Team,LD - Young Adults - Special Needs,Residential Care
Cambridgeshire County Council,23-Jan-20,51301301174,"-2,948.30",CONQUEST CARE HOMES PETERBOROUGH,CARE ESTABLISHMENT,LD - Young Adults Team,LD - Young Adults - Special Needs,Residential Care
Cambridgeshire County Council,23-Jan-20,51301301174,"-2,948.30",CONQUEST CARE HOMES PETERBOROUGH,CARE ESTABLISHMENT,LD - Young Adults Team,LD - Young Adults - Special Needs,Residential Care
Cambridgeshire County Council,23-Jan-20,51301301174,"-2,948.30",CONQUEST CARE HOMES PETERBOROUGH,CARE ESTABLISHMENT,LD - Young Adults Team,LD - Young Adults - Special Needs,Residential Care
Cambridgeshire County Council,23-Jan-20,51301301152,"-2,843.57",CONQUEST CARE HOMES PETERBOROUGH,CARE ESTABLISHMENT,LD - Hunts Locality - Cost of Care,LD - Huntingdonshire - Special Needs,Residential Care
Cambridgeshire County Council,23-Jan-20,51301301152,"-2,843.57",CONQUEST CARE HOMES PETERBOROUGH,CARE ESTABLISHMENT,LD - Hunts Locality - Cost of Care,LD - Huntingdonshire - Special Needs,Residential Care
Cambridgeshire County Council,23-Jan-20,51301301152,"-2,843.57",CONQUEST CARE HOMES PETERBOROUGH,CARE ESTABLISHMENT,LD - Hunts Locality - Cost of Care,LD - Huntingdonshire - Special Needs,Residential Care
Cambridgeshire County Council,23-Jan-20,51301301152,"-2,843.57",CONQUEST CARE HOMES PETERBOROUGH,CARE ESTABLISHMENT,LD - Hunts Locality - Cost of Care,LD - Huntingdonshire - Special Needs,Residential Care
Cambridgeshire County Council,23-Jan-20,51301301152,"-2,843.57",CONQUEST CARE HOMES PETERBOROUGH,CARE ESTABLISHMENT,LD - Hunts Locality - Cost of Care,LD - Huntingdonshire - Special Needs,Residential Care
Cambridgeshire County Council,23-Jan-20,51301301152,"-2,843.57",CONQUEST CARE HOMES PETERBOROUGH,CARE ESTABLISHMENT,LD - Hunts Locality - Cost of Care,LD - Huntingdonshire - Special Needs,Residential Care
Cambridgeshire County Council,23-Jan-20,51301301152,"-2,843.57",CONQUEST CARE HOMES PETERBOROUGH,CARE ESTABLISHMENT,LD - Hunts Locality - Cost of Care,LD - Huntingdonshire - Special Needs,Residential Care
Cambridgeshire County Council,23-Jan-20,51301301152,"-2,843.57",CONQUEST CARE HOMES PETERBOROUGH,CARE ESTABLISHMENT,LD - Hunts Locality - Cost of Care,LD - Huntingdonshire - Special Needs,Residential Care
Cambridgeshire County Council,23-Jan-20,51301301152,"-2,843.57",CONQUEST CARE HOMES PETERBOROUGH,CARE ESTABLISHMENT,LD - Hunts Locality - Cost of Care,LD - Huntingdonshire - Special Needs,Residential Care
Cambridgeshire County Council,23-Jan-20,51301301152,"-2,843.57",CONQUEST CARE HOMES PETERBOROUGH,CARE ESTABLISHMENT,LD - Hunts Locality - Cost of Care,LD - Huntingdonshire - Special Needs,Residential Care
Cambridgeshire County Council,23-Jan-20,51301301152,"-2,843.57",CONQUEST CARE HOMES PETERBOROUGH,CARE ESTABLISHMENT,LD - Hunts Locality - Cost of Care,LD - Huntingdonshire - Special Needs,Residential Care
Cambridgeshire County Council,23-Jan-20,51301301152,"-2,843.57",CONQUEST CARE HOMES PETERBOROUGH,CARE ESTABLISHMENT,LD - Hunts Locality - Cost of Care,LD - Huntingdonshire - Special Needs,Residential Care
Cambridgeshire County Council,23-Jan-20,51301301152,"-2,843.57",CONQUEST CARE HOMES PETERBOROUGH,CARE ESTABLISHMENT,LD - Hunts Locality - Cost of Care,LD - Huntingdonshire - Special Needs,Residential Care
Cambridgeshire County Council,23-Jan-20,51301301152,"-2,843.57",CONQUEST CARE HOMES PETERBOROUGH,CARE ESTABLISHMENT,LD - Hunts Locality - Cost of Care,LD - Huntingdonshire - Special Needs,Residential Care
Cambridgeshire County Council,23-Jan-20,51301301152,"-2,843.57",CONQUEST CARE HOMES PETERBOROUGH,CARE ESTABLISHMENT,LD - Hunts Locality - Cost of Care,LD - Huntingdonshire - Special Needs,Residential Care
Cambridgeshire County Council,23-Jan-20,51301301152,"-2,843.57",CONQUEST CARE HOMES PETERBOROUGH,CARE ESTABLISHMENT,LD - Hunts Locality - Cost of Care,LD - Huntingdonshire - Special Needs,Residential Care
Cambridgeshire County Council,23-Jan-20,51301301152,"-2,843.57",CONQUEST CARE HOMES PETERBOROUGH,CARE ESTABLISHMENT,LD - Hunts Locality - Cost of Care,LD - Huntingdonshire - Special Needs,Residential Care
Cambridgeshire County Council,23-Jan-20,51301301152,"-2,843.57",CONQUEST CARE HOMES PETERBOROUGH,CARE ESTABLISHMENT,LD - Hunts Locality - Cost of Care,LD - Huntingdonshire - Special Needs,Residential Care
Cambridgeshire County Council,23-Jan-20,51301301152,"-2,843.57",CONQUEST CARE HOMES PETERBOROUGH,CARE ESTABLISHMENT,LD - Hunts Locality - Cost of Care,LD - Huntingdonshire - Special Needs,Residential Care
Cambridgeshire County Council,23-Jan-20,51301301152,"-2,843.57",CONQUEST CARE HOMES PETERBOROUGH,CARE ESTABLISHMENT,LD - Hunts Locality - Cost of Care,LD - Huntingdonshire - Special Needs,Residential Care
Cambridgeshire County Council,23-Jan-20,51301301152,"-2,843.57",CONQUEST CARE HOMES PETERBOROUGH,CARE ESTABLISHMENT,LD - Hunts Locality - Cost of Care,LD - Huntingdonshire - Special Needs,Residential Care
Cambridgeshire County Council,23-Jan-20,51301301152,"-2,843.57",CONQUEST CARE HOMES PETERBOROUGH,CARE ESTABLISHMENT,LD - Hunts Locality - Cost of Care,LD - Huntingdonshire - Special Needs,Residential Care
Cambridgeshire County Council,23-Jan-20,51301301152,"-2,843.57",CONQUEST CARE HOMES PETERBOROUGH,CARE ESTABLISHMENT,LD - Hunts Locality - Cost of Care,LD - Huntingdonshire - Special Needs,Residential Care
Cambridgeshire County Council,23-Jan-20,51301301152,"-2,843.57",CONQUEST CARE HOMES PETERBOROUGH,CARE ESTABLISHMENT,LD - Hunts Locality - Cost of Care,LD - Huntingdonshire - Special Needs,Residential Care
Cambridgeshire County Council,23-Jan-20,51301301152,"-2,843.57",CONQUEST CARE HOMES PETERBOROUGH,CARE ESTABLISHMENT,LD - Hunts Locality - Cost of Care,LD - Huntingdonshire - Special Needs,Residential Care
Cambridgeshire County Council,23-Jan-20,51301301152,"-2,843.57",CONQUEST CARE HOMES PETERBOROUGH,CARE ESTABLISHMENT,LD - Hunts Locality - Cost of Care,LD - Huntingdonshire - Special Needs,Residential Care
Cambridgeshire County Council,23-Jan-20,51301301152,"-2,843.57",CONQUEST CARE HOMES PETERBOROUGH,CARE ESTABLISHMENT,LD - Hunts Locality - Cost of Care,LD - Huntingdonshire - Special Needs,Residential Care
Cambridgeshire County Council,23-Jan-20,51301301152,"-2,843.57",CONQUEST CARE HOMES PETERBOROUGH,CARE ESTABLISHMENT,LD - Hunts Locality - Cost of Care,LD - Huntingdonshire - Special Needs,Residential Care
Cambridgeshire County Council,23-Jan-20,51301301152,"-2,843.57",CONQUEST CARE HOMES PETERBOROUGH,CARE ESTABLISHMENT,LD - Hunts Locality - Cost of Care,LD - Huntingdonshire - Special Needs,Residential Care
Cambridgeshire County Council,23-Jan-20,51301301152,"-2,843.57",CONQUEST CARE HOMES PETERBOROUGH,CARE ESTABLISHMENT,LD - Hunts Locality - Cost of Care,LD - Huntingdonshire - Special Needs,Residential Care
Cambridgeshire County Council,23-Jan-20,51301301152,"-2,843.57",CONQUEST CARE HOMES PETERBOROUGH,CARE ESTABLISHMENT,LD - Hunts Locality - Cost of Care,LD - Huntingdonshire - Special Needs,Residential Care
Cambridgeshire County Council,23-Jan-20,51301301152,"-2,843.57",CONQUEST CARE HOMES PETERBOROUGH,CARE ESTABLISHMENT,LD - Hunts Locality - Cost of Care,LD - Huntingdonshire - Special Needs,Residential Care
Cambridgeshire County Council,23-Jan-20,51301301152,"-2,843.57",CONQUEST CARE HOMES PETERBOROUGH,CARE ESTABLISHMENT,LD - Hunts Locality - Cost of Care,LD - Huntingdonshire - Special Needs,Residential Care
Cambridgeshire County Council,23-Jan-20,51301301152,"-2,843.57",CONQUEST CARE HOMES PETERBOROUGH,CARE ESTABLISHMENT,LD - Hunts Locality - Cost of Care,LD - Huntingdonshire - Special Needs,Residential Care
Cambridgeshire County Council,23-Jan-20,51301301152,"-2,843.57",CONQUEST CARE HOMES PETERBOROUGH,CARE ESTABLISHMENT,LD - Hunts Locality - Cost of Care,LD - Huntingdonshire - Special Needs,Residential Care
Cambridgeshire County Council,23-Jan-20,51301301152,"-2,843.57",CONQUEST CARE HOMES PETERBOROUGH,CARE ESTABLISHMENT,LD - Hunts Locality - Cost of Care,LD - Huntingdonshire - Special Needs,Residential Care
Cambridgeshire County Council,23-Jan-20,51301301152,"-2,843.57",CONQUEST CARE HOMES PETERBOROUGH,CARE ESTABLISHMENT,LD - Hunts Locality - Cost of Care,LD - Huntingdonshire - Special Needs,Residential Care
Cambridgeshire County Council,23-Jan-20,51301301152,"-2,843.57",CONQUEST CARE HOMES PETERBOROUGH,CARE ESTABLISHMENT,LD - Hunts Locality - Cost of Care,LD - Huntingdonshire - Special Needs,Residential Care
Cambridgeshire County Council,23-Jan-20,51301301152,"-2,843.57",CONQUEST CARE HOMES PETERBOROUGH,CARE ESTABLISHMENT,LD - Hunts Locality - Cost of Care,LD - Huntingdonshire - Special Needs,Residential Care
Cambridgeshire County Council,23-Jan-20,51301301152,"-2,843.57",CONQUEST CARE HOMES PETERBOROUGH,CARE ESTABLISHMENT,LD - Hunts Locality - Cost of Care,LD - Huntingdonshire - Special Needs,Residential Care
Cambridgeshire County Council,23-Jan-20,51301301152,"-2,843.57",CONQUEST CARE HOMES PETERBOROUGH,CARE ESTABLISHMENT,LD - Hunts Locality - Cost of Care,LD - Huntingdonshire - Special Needs,Residential Care
Cambridgeshire County Council,23-Jan-20,51301301152,"-2,843.57",CONQUEST CARE HOMES PETERBOROUGH,CARE ESTABLISHMENT,LD - Hunts Locality - Cost of Care,LD - Huntingdonshire - Special Needs,Residential Care
Cambridgeshire County Council,23-Jan-20,51301301152,"-2,843.57",CONQUEST CARE HOMES PETERBOROUGH,CARE ESTABLISHMENT,LD - Hunts Locality - Cost of Care,LD - Huntingdonshire - Special Needs,Residential Care
Cambridgeshire County Council,06-Jan-20,51301293014,"-2,584.79",E-VOICE SPEECH RECOGNITION LTD,TRADE SUPPLIER,Health & Safety,POD - Health & Safety,Equipment and Tools
Cambridgeshire County Council,23-Jan-20,51301301174,"-2,527.11",CONQUEST CARE HOMES PETERBOROUGH,CARE ESTABLISHMENT,LD - Young Adults Team,LD - Young Adults - Special Needs,Residential Care
Cambridgeshire County Council,23-Jan-20,51301300829,"-2,470.44",GLENHOLME HEALTHCARE LTD,CARE ESTABLISHMENT,LD - Young Adults Team,LD - Young Adults - Special Needs,Residential Care
Cambridgeshire County Council,23-Jan-20,51301300829,"-2,470.44",GLENHOLME HEALTHCARE LTD,CARE ESTABLISHMENT,LD - Young Adults Team,LD - Young Adults - Special Needs,Residential Care
Cambridgeshire County Council,23-Jan-20,51301300829,"-2,470.44",GLENHOLME HEALTHCARE LTD,CARE ESTABLISHMENT,LD - Young Adults Team,LD - Young Adults - Special Needs,Residential Care
Cambridgeshire County Council,23-Jan-20,51301300829,"-2,470.44",GLENHOLME HEALTHCARE LTD,CARE ESTABLISHMENT,LD - Young Adults Team,LD - Young Adults - Special Needs,Residential Care
Cambridgeshire County Council,23-Jan-20,51301300829,"-2,470.44",GLENHOLME HEALTHCARE LTD,CARE ESTABLISHMENT,LD - Young Adults Team,LD - Young Adults - Special Needs,Residential Care
Cambridgeshire County Council,23-Jan-20,51301300829,"-2,470.44",GLENHOLME HEALTHCARE LTD,CARE ESTABLISHMENT,LD - Young Adults Team,LD - Young Adults - Special Needs,Residential Care
Cambridgeshire County Council,23-Jan-20,51301300829,"-2,470.44",GLENHOLME HEALTHCARE LTD,CARE ESTABLISHMENT,LD - Young Adults Team,LD - Young Adults - Special Needs,Residential Care
Cambridgeshire County Council,23-Jan-20,51301300829,"-2,470.44",GLENHOLME HEALTHCARE LTD,CARE ESTABLISHMENT,LD - Young Adults Team,LD - Young Adults - Special Needs,Residential Care
Cambridgeshire County Council,23-Jan-20,51301300829,"-2,470.44",GLENHOLME HEALTHCARE LTD,CARE ESTABLISHMENT,LD - Young Adults Team,LD - Young Adults - Special Needs,Residential Care
Cambridgeshire County Council,23-Jan-20,51301300829,"-2,470.44",GLENHOLME HEALTHCARE LTD,CARE ESTABLISHMENT,LD - Young Adults Team,LD - Young Adults - Special Needs,Residential Care
Cambridgeshire County Council,23-Jan-20,51301300829,"-2,470.44",GLENHOLME HEALTHCARE LTD,CARE ESTABLISHMENT,LD - Young Adults Team,LD - Young Adults - Special Needs,Residential Care
Cambridgeshire County Council,23-Jan-20,51301300829,"-2,470.44",GLENHOLME HEALTHCARE LTD,CARE ESTABLISHMENT,LD - Young Adults Team,LD - Young Adults - Special Needs,Residential Care
Cambridgeshire County Council,23-Jan-20,51301300829,"-2,470.44",GLENHOLME HEALTHCARE LTD,CARE ESTABLISHMENT,LD - Young Adults Team,LD - Young Adults - Special Needs,Residential Care
Cambridgeshire County Council,23-Jan-20,51301300829,"-2,470.44",GLENHOLME HEALTHCARE LTD,CARE ESTABLISHMENT,LD - Young Adults Team,LD - Young Adults - Special Needs,Residential Care
Cambridgeshire County Council,23-Jan-20,51301300829,"-2,470.44",GLENHOLME HEALTHCARE LTD,CARE ESTABLISHMENT,LD - Young Adults Team,LD - Young Adults - Special Needs,Residential Care
Cambridgeshire County Council,23-Jan-20,51301300829,"-2,470.44",GLENHOLME HEALTHCARE LTD,CARE ESTABLISHMENT,LD - Young Adults Team,LD - Young Adults - Special Needs,Residential Care
Cambridgeshire County Council,23-Jan-20,51301300829,"-2,470.44",GLENHOLME HEALTHCARE LTD,CARE ESTABLISHMENT,LD - Young Adults Team,LD - Young Adults - Special Needs,Residential Care
Cambridgeshire County Council,23-Jan-20,51301300829,"-2,470.44",GLENHOLME HEALTHCARE LTD,CARE ESTABLISHMENT,LD - Young Adults Team,LD - Young Adults - Special Needs,Residential Care
Cambridgeshire County Council,23-Jan-20,51301300829,"-2,470.44",GLENHOLME HEALTHCARE LTD,CARE ESTABLISHMENT,LD - Young Adults Team,LD - Young Adults - Special Needs,Residential Care
Cambridgeshire County Council,23-Jan-20,51301300829,"-2,470.44",GLENHOLME HEALTHCARE LTD,CARE ESTABLISHMENT,LD - Young Adults Team,LD - Young Adults - Special Needs,Residential Care
Cambridgeshire County Council,23-Jan-20,51301300829,"-2,470.44",GLENHOLME HEALTHCARE LTD,CARE ESTABLISHMENT,LD - Young Adults Team,LD - Young Adults - Special Needs,Residential Care
Cambridgeshire County Council,23-Jan-20,51301300829,"-2,470.44",GLENHOLME HEALTHCARE LTD,CARE ESTABLISHMENT,LD - Young Adults Team,LD - Young Adults - Special Needs,Residential Care
Cambridgeshire County Council,23-Jan-20,51301300829,"-2,470.44",GLENHOLME HEALTHCARE LTD,CARE ESTABLISHMENT,LD - Young Adults Team,LD - Young Adults - Special Needs,Residential Care
Cambridgeshire County Council,23-Jan-20,51301300829,"-2,470.44",GLENHOLME HEALTHCARE LTD,CARE ESTABLISHMENT,LD - Young Adults Team,LD - Young Adults - Special Needs,Residential Care
Cambridgeshire County Council,23-Jan-20,51301300829,"-2,470.44",GLENHOLME HEALTHCARE LTD,CARE ESTABLISHMENT,LD - Young Adults Team,LD - Young Adults - Special Needs,Residential Care
Cambridgeshire County Council,23-Jan-20,51301300829,"-2,470.44",GLENHOLME HEALTHCARE LTD,CARE ESTABLISHMENT,LD - Young Adults Team,LD - Young Adults - Special Needs,Residential Care
Cambridgeshire County Council,23-Jan-20,51301300829,"-2,470.44",GLENHOLME HEALTHCARE LTD,CARE ESTABLISHMENT,LD - Young Adults Team,LD - Young Adults - Special Needs,Residential Care
Cambridgeshire County Council,23-Jan-20,51301300829,"-2,470.44",GLENHOLME HEALTHCARE LTD,CARE ESTABLISHMENT,LD - Young Adults Team,LD - Young Adults - Special Needs,Residential Care
Cambridgeshire County Council,23-Jan-20,51301300829,"-2,470.44",GLENHOLME HEALTHCARE LTD,CARE ESTABLISHMENT,LD - Young Adults Team,LD - Young Adults - Special Needs,Residential Care
Cambridgeshire County Council,23-Jan-20,51301300829,"-2,470.44",GLENHOLME HEALTHCARE LTD,CARE ESTABLISHMENT,LD - Young Adults Team,LD - Young Adults - Special Needs,Residential Care
Cambridgeshire County Council,23-Jan-20,51301300829,"-2,470.44",GLENHOLME HEALTHCARE LTD,CARE ESTABLISHMENT,LD - Young Adults Team,LD - Young Adults - Special Needs,Residential Care
Cambridgeshire County Council,23-Jan-20,51301300829,"-2,470.44",GLENHOLME HEALTHCARE LTD,CARE ESTABLISHMENT,LD - Young Adults Team,LD - Young Adults - Special Needs,Residential Care
Cambridgeshire County Council,23-Jan-20,51301300829,"-2,470.44",GLENHOLME HEALTHCARE LTD,CARE ESTABLISHMENT,LD - Young Adults Team,LD - Young Adults - Special Needs,Residential Care
Cambridgeshire County Council,23-Jan-20,51301300829,"-2,470.44",GLENHOLME HEALTHCARE LTD,CARE ESTABLISHMENT,LD - Young Adults Team,LD - Young Adults - Special Needs,Residential Care
Cambridgeshire County Council,23-Jan-20,51301300829,"-2,470.44",GLENHOLME HEALTHCARE LTD,CARE ESTABLISHMENT,LD - Young Adults Team,LD - Young Adults - Special Needs,Residential Care
Cambridgeshire County Council,23-Jan-20,51301300829,"-2,470.44",GLENHOLME HEALTHCARE LTD,CARE ESTABLISHMENT,LD - Young Adults Team,LD - Young Adults - Special Needs,Residential Care
Cambridgeshire County Council,23-Jan-20,51301300829,"-2,470.44",GLENHOLME HEALTHCARE LTD,CARE ESTABLISHMENT,LD - Young Adults Team,LD - Young Adults - Special Needs,Residential Care
Cambridgeshire County Council,23-Jan-20,51301300829,"-2,470.44",GLENHOLME HEALTHCARE LTD,CARE ESTABLISHMENT,LD - Young Adults Team,LD - Young Adults - Special Needs,Residential Care
Cambridgeshire County Council,23-Jan-20,51301300829,"-2,470.44",GLENHOLME HEALTHCARE LTD,CARE ESTABLISHMENT,LD - Young Adults Team,LD - Young Adults - Special Needs,Residential Care
Cambridgeshire County Council,23-Jan-20,51301300829,"-2,470.44",GLENHOLME HEALTHCARE LTD,CARE ESTABLISHMENT,LD - Young Adults Team,LD - Young Adults - Special Needs,Residential Care
Cambridgeshire County Council,23-Jan-20,51301300829,"-2,470.44",GLENHOLME HEALTHCARE LTD,CARE ESTABLISHMENT,LD - Young Adults Team,LD - Young Adults - Special Needs,Residential Care
Cambridgeshire County Council,23-Jan-20,51301300829,"-2,470.44",GLENHOLME HEALTHCARE LTD,CARE ESTABLISHMENT,LD - Young Adults Team,LD - Young Adults - Special Needs,Residential Care
Cambridgeshire County Council,23-Jan-20,51301300829,"-2,470.44",GLENHOLME HEALTHCARE LTD,CARE ESTABLISHMENT,LD - Young Adults Team,LD - Young Adults - Special Needs,Residential Care
Cambridgeshire County Council,23-Jan-20,51301301152,"-2,437.35",CONQUEST CARE HOMES PETERBOROUGH,CARE ESTABLISHMENT,LD - Hunts Locality - Cost of Care,LD - Huntingdonshire - Special Needs,Residential Care
Cambridgeshire County Council,29-Jan-20,51301303476,"-2,386.81",ETHELDRED HOUSE,CARE ESTABLISHMENT,OP - City & South Blocks,City and South - Long term blocks,Nursing Care
Cambridgeshire County Council,23-Jan-20,51301301465,"-2,290.70",SENSE EAST,CARE ESTABLISHMENT,LD - South Locality - Cost of Care,LD - South Cambs - Care,Residential Care
Cambridgeshire County Council,23-Jan-20,51301301465,"-2,290.70",SENSE EAST,CARE ESTABLISHMENT,LD - South Locality - Cost of Care,LD - South Cambs - Care,Residential Care
Cambridgeshire County Council,23-Jan-20,51301301465,"-2,290.70",SENSE EAST,CARE ESTABLISHMENT,LD - South Locality - Cost of Care,LD - South Cambs - Care,Residential Care
Cambridgeshire County Council,23-Jan-20,51301301465,"-2,290.70",SENSE EAST,CARE ESTABLISHMENT,LD - South Locality - Cost of Care,LD - South Cambs - Care,Residential Care
Cambridgeshire County Council,23-Jan-20,51301301465,"-2,290.70",SENSE EAST,CARE ESTABLISHMENT,LD - South Locality - Cost of Care,LD - South Cambs - Care,Residential Care
Cambridgeshire County Council,23-Jan-20,51301301465,"-2,290.70",SENSE EAST,CARE ESTABLISHMENT,LD - South Locality - Cost of Care,LD - South Cambs - Care,Residential Care
Cambridgeshire County Council,23-Jan-20,51301301465,"-2,290.70",SENSE EAST,CARE ESTABLISHMENT,LD - South Locality - Cost of Care,LD - South Cambs - Care,Residential Care
Cambridgeshire County Council,23-Jan-20,51301301465,"-2,290.70",SENSE EAST,CARE ESTABLISHMENT,LD - South Locality - Cost of Care,LD - South Cambs - Care,Residential Care
Cambridgeshire County Council,23-Jan-20,51301301465,"-2,290.70",SENSE EAST,CARE ESTABLISHMENT,LD - South Locality - Cost of Care,LD - South Cambs - Care,Residential Care
Cambridgeshire County Council,23-Jan-20,51301301465,"-2,290.70",SENSE EAST,CARE ESTABLISHMENT,LD - South Locality - Cost of Care,LD - South Cambs - Care,Residential Care
Cambridgeshire County Council,23-Jan-20,51301301465,"-2,290.70",SENSE EAST,CARE ESTABLISHMENT,LD - South Locality - Cost of Care,LD - South Cambs - Care,Residential Care
Cambridgeshire County Council,23-Jan-20,51301301465,"-2,290.70",SENSE EAST,CARE ESTABLISHMENT,LD - South Locality - Cost of Care,LD - South Cambs - Care,Residential Care
Cambridgeshire County Council,23-Jan-20,51301301465,"-2,290.70",SENSE EAST,CARE ESTABLISHMENT,LD - South Locality - Cost of Care,LD - South Cambs - Care,Residential Care
Cambridgeshire County Council,23-Jan-20,51301301465,"-2,290.70",SENSE EAST,CARE ESTABLISHMENT,LD - South Locality - Cost of Care,LD - South Cambs - Care,Residential Care
Cambridgeshire County Council,23-Jan-20,51301301465,"-2,290.70",SENSE EAST,CARE ESTABLISHMENT,LD - South Locality - Cost of Care,LD - South Cambs - Care,Residential Care
Cambridgeshire County Council,23-Jan-20,51301301465,"-2,290.70",SENSE EAST,CARE ESTABLISHMENT,LD - South Locality - Cost of Care,LD - South Cambs - Care,Residential Care
Cambridgeshire County Council,23-Jan-20,51301301465,"-2,290.70",SENSE EAST,CARE ESTABLISHMENT,LD - South Locality - Cost of Care,LD - South Cambs - Care,Residential Care
Cambridgeshire County Council,23-Jan-20,51301301465,"-2,290.70",SENSE EAST,CARE ESTABLISHMENT,LD - South Locality - Cost of Care,LD - South Cambs - Care,Residential Care
Cambridgeshire County Council,23-Jan-20,51301301465,"-2,290.70",SENSE EAST,CARE ESTABLISHMENT,LD - South Locality - Cost of Care,LD - South Cambs - Care,Residential Care
Cambridgeshire County Council,23-Jan-20,51301301465,"-2,290.70",SENSE EAST,CARE ESTABLISHMENT,LD - South Locality - Cost of Care,LD - South Cambs - Care,Residential Care
Cambridgeshire County Council,23-Jan-20,51301301465,"-2,290.70",SENSE EAST,CARE ESTABLISHMENT,LD - South Locality - Cost of Care,LD - South Cambs - Care,Residential Care
Cambridgeshire County Council,23-Jan-20,51301301465,"-2,290.70",SENSE EAST,CARE ESTABLISHMENT,LD - South Locality - Cost of Care,LD - South Cambs - Care,Residential Care
Cambridgeshire County Council,23-Jan-20,51301301465,"-2,290.70",SENSE EAST,CARE ESTABLISHMENT,LD - South Locality - Cost of Care,LD - South Cambs - Care,Residential Care
Cambridgeshire County Council,23-Jan-20,51301301465,"-2,290.70",SENSE EAST,CARE ESTABLISHMENT,LD - South Locality - Cost of Care,LD - South Cambs - Care,Residential Care
Cambridgeshire County Council,23-Jan-20,51301301465,"-2,290.70",SENSE EAST,CARE ESTABLISHMENT,LD - South Locality - Cost of Care,LD - South Cambs - Care,Residential Care
Cambridgeshire County Council,23-Jan-20,51301301465,"-2,290.70",SENSE EAST,CARE ESTABLISHMENT,LD - South Locality - Cost of Care,LD - South Cambs - Care,Residential Care
Cambridgeshire County Council,23-Jan-20,51301301465,"-2,290.70",SENSE EAST,CARE ESTABLISHMENT,LD - South Locality - Cost of Care,LD - South Cambs - Care,Residential Care
Cambridgeshire County Council,23-Jan-20,51301301465,"-2,290.70",SENSE EAST,CARE ESTABLISHMENT,LD - South Locality - Cost of Care,LD - South Cambs - Care,Residential Care
Cambridgeshire County Council,23-Jan-20,51301301465,"-2,290.70",SENSE EAST,CARE ESTABLISHMENT,LD - South Locality - Cost of Care,LD - South Cambs - Care,Residential Care
Cambridgeshire County Council,23-Jan-20,51301301465,"-2,290.70",SENSE EAST,CARE ESTABLISHMENT,LD - South Locality - Cost of Care,LD - South Cambs - Care,Residential Care
Cambridgeshire County Council,23-Jan-20,51301301465,"-2,290.70",SENSE EAST,CARE ESTABLISHMENT,LD - South Locality - Cost of Care,LD - South Cambs - Care,Residential Care
Cambridgeshire County Council,23-Jan-20,51301301465,"-2,290.70",SENSE EAST,CARE ESTABLISHMENT,LD - South Locality - Cost of Care,LD - South Cambs - Care,Residential Care
Cambridgeshire County Council,23-Jan-20,51301301465,"-2,290.70",SENSE EAST,CARE ESTABLISHMENT,LD - South Locality - Cost of Care,LD - South Cambs - Care,Residential Care
Cambridgeshire County Council,23-Jan-20,51301301465,"-2,290.70",SENSE EAST,CARE ESTABLISHMENT,LD - South Locality - Cost of Care,LD - South Cambs - Care,Residential Care
Cambridgeshire County Council,23-Jan-20,51301301465,"-2,290.70",SENSE EAST,CARE ESTABLISHMENT,LD - South Locality - Cost of Care,LD - South Cambs - Care,Residential Care
Cambridgeshire County Council,23-Jan-20,51301301465,"-2,290.70",SENSE EAST,CARE ESTABLISHMENT,LD - South Locality - Cost of Care,LD - South Cambs - Care,Residential Care
Cambridgeshire County Council,23-Jan-20,51301301465,"-2,290.70",SENSE EAST,CARE ESTABLISHMENT,LD - South Locality - Cost of Care,LD - South Cambs - Care,Residential Care
Cambridgeshire County Council,23-Jan-20,51301301465,"-2,290.70",SENSE EAST,CARE ESTABLISHMENT,LD - South Locality - Cost of Care,LD - South Cambs - Care,Residential Care
Cambridgeshire County Council,23-Jan-20,51301301465,"-2,290.70",SENSE EAST,CARE ESTABLISHMENT,LD - South Locality - Cost of Care,LD - South Cambs - Care,Residential Care
Cambridgeshire County Council,23-Jan-20,51301301465,"-2,290.70",SENSE EAST,CARE ESTABLISHMENT,LD - South Locality - Cost of Care,LD - South Cambs - Care,Residential Care
Cambridgeshire County Council,23-Jan-20,51301301465,"-2,290.70",SENSE EAST,CARE ESTABLISHMENT,LD - South Locality - Cost of Care,LD - South Cambs - Care,Residential Care
Cambridgeshire County Council,23-Jan-20,51301301465,"-2,290.70",SENSE EAST,CARE ESTABLISHMENT,LD - South Locality - Cost of Care,LD - South Cambs - Care,Residential Care
Cambridgeshire County Council,23-Jan-20,51301301465,"-2,290.70",SENSE EAST,CARE ESTABLISHMENT,LD - South Locality - Cost of Care,LD - South Cambs - Care,Residential Care
Cambridgeshire County Council,23-Jan-20,51301301465,"-2,290.70",SENSE EAST,CARE ESTABLISHMENT,LD - South Locality - Cost of Care,LD - South Cambs - Care,Residential Care
Cambridgeshire County Council,23-Jan-20,51301301465,"-2,290.70",SENSE EAST,CARE ESTABLISHMENT,LD - South Locality - Cost of Care,LD - South Cambs - Care,Residential Care
Cambridgeshire County Council,23-Jan-20,51301301465,"-2,290.70",SENSE EAST,CARE ESTABLISHMENT,LD - South Locality - Cost of Care,LD - South Cambs - Care,Residential Care
Cambridgeshire County Council,23-Jan-20,51301301465,"-2,290.70",SENSE EAST,CARE ESTABLISHMENT,LD - South Locality - Cost of Care,LD - South Cambs - Care,Residential Care
Cambridgeshire County Council,23-Jan-20,51301301465,"-2,290.70",SENSE EAST,CARE ESTABLISHMENT,LD - South Locality - Cost of Care,LD - South Cambs - Care,Residential Care
Cambridgeshire County Council,23-Jan-20,51301301465,"-2,290.70",SENSE EAST,CARE ESTABLISHMENT,LD - South Locality - Cost of Care,LD - South Cambs - Care,Residential Care
Cambridgeshire County Council,23-Jan-20,51301301465,"-2,290.70",SENSE EAST,CARE ESTABLISHMENT,LD - South Locality - Cost of Care,LD - South Cambs - Care,Residential Care
Cambridgeshire County Council,23-Jan-20,51301301465,"-2,290.70",SENSE EAST,CARE ESTABLISHMENT,LD - South Locality - Cost of Care,LD - South Cambs - Care,Residential Care
Cambridgeshire County Council,23-Jan-20,51301301465,"-2,290.70",SENSE EAST,CARE ESTABLISHMENT,LD - South Locality - Cost of Care,LD - South Cambs - Care,Residential Care
Cambridgeshire County Council,23-Jan-20,51301301465,"-2,290.70",SENSE EAST,CARE ESTABLISHMENT,LD - South Locality - Cost of Care,LD - South Cambs - Care,Residential Care
Cambridgeshire County Council,23-Jan-20,51301301465,"-2,290.70",SENSE EAST,CARE ESTABLISHMENT,LD - South Locality - Cost of Care,LD - South Cambs - Care,Residential Care
Cambridgeshire County Council,23-Jan-20,51301301465,"-2,290.70",SENSE EAST,CARE ESTABLISHMENT,LD - South Locality - Cost of Care,LD - South Cambs - Care,Residential Care
Cambridgeshire County Council,23-Jan-20,51301301465,"-2,290.70",SENSE EAST,CARE ESTABLISHMENT,LD - South Locality - Cost of Care,LD - South Cambs - Care,Residential Care
Cambridgeshire County Council,23-Jan-20,51301301465,"-2,290.70",SENSE EAST,CARE ESTABLISHMENT,LD - South Locality - Cost of Care,LD - South Cambs - Care,Residential Care
Cambridgeshire County Council,23-Jan-20,51301301465,"-2,290.70",SENSE EAST,CARE ESTABLISHMENT,LD - South Locality - Cost of Care,LD - South Cambs - Care,Residential Care
Cambridgeshire County Council,23-Jan-20,51301301465,"-2,290.70",SENSE EAST,CARE ESTABLISHMENT,LD - South Locality - Cost of Care,LD - South Cambs - Care,Residential Care
Cambridgeshire County Council,23-Jan-20,51301301465,"-2,290.70",SENSE EAST,CARE ESTABLISHMENT,LD - South Locality - Cost of Care,LD - South Cambs - Care,Residential Care
Cambridgeshire County Council,23-Jan-20,51301301465,"-2,290.70",SENSE EAST,CARE ESTABLISHMENT,LD - South Locality - Cost of Care,LD - South Cambs - Care,Residential Care
Cambridgeshire County Council,23-Jan-20,51301301465,"-2,290.70",SENSE EAST,CARE ESTABLISHMENT,LD - South Locality - Cost of Care,LD - South Cambs - Care,Residential Care
Cambridgeshire County Council,23-Jan-20,51301301465,"-2,290.70",SENSE EAST,CARE ESTABLISHMENT,LD - South Locality - Cost of Care,LD - South Cambs - Care,Residential Care
Cambridgeshire County Council,23-Jan-20,51301301465,"-2,290.70",SENSE EAST,CARE ESTABLISHMENT,LD - South Locality - Cost of Care,LD - South Cambs - Care,Residential Care
Cambridgeshire County Council,23-Jan-20,51301301465,"-2,290.70",SENSE EAST,CARE ESTABLISHMENT,LD - South Locality - Cost of Care,LD - South Cambs - Care,Residential Care
Cambridgeshire County Council,23-Jan-20,51301301465,"-2,290.70",SENSE EAST,CARE ESTABLISHMENT,LD - South Locality - Cost of Care,LD - South Cambs - Care,Residential Care
Cambridgeshire County Council,23-Jan-20,51301301465,"-2,290.70",SENSE EAST,CARE ESTABLISHMENT,LD - South Locality - Cost of Care,LD - South Cambs - Care,Residential Care
Cambridgeshire County Council,23-Jan-20,51301301465,"-2,290.70",SENSE EAST,CARE ESTABLISHMENT,LD - South Locality - Cost of Care,LD - South Cambs - Care,Residential Care
Cambridgeshire County Council,23-Jan-20,51301301465,"-2,290.70",SENSE EAST,CARE ESTABLISHMENT,LD - South Locality - Cost of Care,LD - South Cambs - Care,Residential Care
Cambridgeshire County Council,23-Jan-20,51301301465,"-2,290.70",SENSE EAST,CARE ESTABLISHMENT,LD - South Locality - Cost of Care,LD - South Cambs - Care,Residential Care
Cambridgeshire County Council,23-Jan-20,51301301465,"-2,290.70",SENSE EAST,CARE ESTABLISHMENT,LD - South Locality - Cost of Care,LD - South Cambs - Care,Residential Care
Cambridgeshire County Council,23-Jan-20,51301301465,"-2,290.70",SENSE EAST,CARE ESTABLISHMENT,LD - South Locality - Cost of Care,LD - South Cambs - Care,Residential Care
Cambridgeshire County Council,23-Jan-20,51301301465,"-2,290.70",SENSE EAST,CARE ESTABLISHMENT,LD - South Locality - Cost of Care,LD - South Cambs - Care,Residential Care
Cambridgeshire County Council,23-Jan-20,51301301465,"-2,290.70",SENSE EAST,CARE ESTABLISHMENT,LD - South Locality - Cost of Care,LD - South Cambs - Care,Residential Care
Cambridgeshire County Council,23-Jan-20,51301301465,"-2,290.70",SENSE EAST,CARE ESTABLISHMENT,LD - South Locality - Cost of Care,LD - South Cambs - Care,Residential Care
Cambridgeshire County Council,23-Jan-20,51301301465,"-2,290.70",SENSE EAST,CARE ESTABLISHMENT,LD - South Locality - Cost of Care,LD - South Cambs - Care,Residential Care
Cambridgeshire County Council,23-Jan-20,51301301465,"-2,290.70",SENSE EAST,CARE ESTABLISHMENT,LD - South Locality - Cost of Care,LD - South Cambs - Care,Residential Care
Cambridgeshire County Council,23-Jan-20,51301301465,"-2,290.70",SENSE EAST,CARE ESTABLISHMENT,LD - South Locality - Cost of Care,LD - South Cambs - Care,Residential Care
Cambridgeshire County Council,23-Jan-20,51301301465,"-2,290.70",SENSE EAST,CARE ESTABLISHMENT,LD - South Locality - Cost of Care,LD - South Cambs - Care,Residential Care
Cambridgeshire County Council,23-Jan-20,51301301465,"-2,290.70",SENSE EAST,CARE ESTABLISHMENT,LD - South Locality - Cost of Care,LD - South Cambs - Care,Residential Care
Cambridgeshire County Council,23-Jan-20,51301301465,"-2,290.70",SENSE EAST,CARE ESTABLISHMENT,LD - South Locality - Cost of Care,LD - South Cambs - Care,Residential Care
Cambridgeshire County Council,23-Jan-20,51301301465,"-2,290.70",SENSE EAST,CARE ESTABLISHMENT,LD - South Locality - Cost of Care,LD - South Cambs - Care,Residential Care
Cambridgeshire County Council,23-Jan-20,51301301465,"-2,290.70",SENSE EAST,CARE ESTABLISHMENT,LD - South Locality - Cost of Care,LD - South Cambs - Care,Residential Care
Cambridgeshire County Council,23-Jan-20,51301301465,"-2,290.70",SENSE EAST,CARE ESTABLISHMENT,LD - South Locality - Cost of Care,LD - South Cambs - Care,Residential Care
Cambridgeshire County Council,23-Jan-20,51301301465,"-2,290.70",SENSE EAST,CARE ESTABLISHMENT,LD - South Locality - Cost of Care,LD - South Cambs - Care,Residential Care
Cambridgeshire County Council,23-Jan-20,51301301465,"-2,290.70",SENSE EAST,CARE ESTABLISHMENT,LD - South Locality - Cost of Care,LD - South Cambs - Care,Residential Care
Cambridgeshire County Council,23-Jan-20,51301301465,"-2,290.70",SENSE EAST,CARE ESTABLISHMENT,LD - South Locality - Cost of Care,LD - South Cambs - Care,Residential Care
Cambridgeshire County Council,23-Jan-20,51301301465,"-2,290.70",SENSE EAST,CARE ESTABLISHMENT,LD - South Locality - Cost of Care,LD - South Cambs - Care,Residential Care
Cambridgeshire County Council,23-Jan-20,51301301465,"-2,290.70",SENSE EAST,CARE ESTABLISHMENT,LD - South Locality - Cost of Care,LD - South Cambs - Care,Residential Care
Cambridgeshire County Council,23-Jan-20,51301301465,"-2,290.70",SENSE EAST,CARE ESTABLISHMENT,LD - South Locality - Cost of Care,LD - South Cambs - Care,Residential Care
Cambridgeshire County Council,23-Jan-20,51301301465,"-2,290.70",SENSE EAST,CARE ESTABLISHMENT,LD - South Locality - Cost of Care,LD - South Cambs - Care,Residential Care
Cambridgeshire County Council,23-Jan-20,51301301465,"-2,290.70",SENSE EAST,CARE ESTABLISHMENT,LD - South Locality - Cost of Care,LD - South Cambs - Care,Residential Care
Cambridgeshire County Council,23-Jan-20,51301301465,"-2,290.70",SENSE EAST,CARE ESTABLISHMENT,LD - South Locality - Cost of Care,LD - South Cambs - Care,Residential Care
Cambridgeshire County Council,23-Jan-20,51301301465,"-2,290.70",SENSE EAST,CARE ESTABLISHMENT,LD - South Locality - Cost of Care,LD - South Cambs - Care,Residential Care
Cambridgeshire County Council,23-Jan-20,51301301465,"-2,290.70",SENSE EAST,CARE ESTABLISHMENT,LD - South Locality - Cost of Care,LD - South Cambs - Care,Residential Care
Cambridgeshire County Council,23-Jan-20,51301301465,"-2,290.70",SENSE EAST,CARE ESTABLISHMENT,LD - South Locality - Cost of Care,LD - South Cambs - Care,Residential Care
Cambridgeshire County Council,29-Jan-20,51301302102,"-2,269.40",Redacted Personal Data,INDIVIDUAL,OP - City & South Locality - Cost of Care,Older People - City & South - Care,Direct Payments
Cambridgeshire County Council,24-Jan-20,51301301798,"-2,267.14",SUNBEAM PRIDE FOSTERING SERVICE,CARE ESTABLISHMENT,LAC Placements,Placements - independent fostering,Agency Placements - Out of  County
Cambridgeshire County Council,23-Jan-20,51301301641,"-2,188.72",SENSE NATIONAL DEAF & BLIND,CARE ESTABLISHMENT,LD - Fenland Locality - Cost of Care,LD - Fenland  - Care,Residential Care
Cambridgeshire County Council,23-Jan-20,51301301641,"-2,188.72",SENSE NATIONAL DEAF & BLIND,CARE ESTABLISHMENT,LD - Fenland Locality - Cost of Care,LD - Fenland  - Care,Residential Care
Cambridgeshire County Council,23-Jan-20,51301301641,"-2,188.72",SENSE NATIONAL DEAF & BLIND,CARE ESTABLISHMENT,LD - Fenland Locality - Cost of Care,LD - Fenland  - Care,Residential Care
Cambridgeshire County Council,23-Jan-20,51301301641,"-2,188.72",SENSE NATIONAL DEAF & BLIND,CARE ESTABLISHMENT,LD - Fenland Locality - Cost of Care,LD - Fenland  - Care,Residential Care
Cambridgeshire County Council,23-Jan-20,51301301641,"-2,188.72",SENSE NATIONAL DEAF & BLIND,CARE ESTABLISHMENT,LD - Fenland Locality - Cost of Care,LD - Fenland  - Care,Residential Care
Cambridgeshire County Council,23-Jan-20,51301301641,"-2,188.72",SENSE NATIONAL DEAF & BLIND,CARE ESTABLISHMENT,LD - Fenland Locality - Cost of Care,LD - Fenland  - Care,Residential Care
Cambridgeshire County Council,23-Jan-20,51301301641,"-2,188.72",SENSE NATIONAL DEAF & BLIND,CARE ESTABLISHMENT,LD - Fenland Locality - Cost of Care,LD - Fenland  - Care,Residential Care
Cambridgeshire County Council,23-Jan-20,51301301641,"-2,188.72",SENSE NATIONAL DEAF & BLIND,CARE ESTABLISHMENT,LD - Fenland Locality - Cost of Care,LD - Fenland  - Care,Residential Care
Cambridgeshire County Council,23-Jan-20,51301301641,"-2,188.72",SENSE NATIONAL DEAF & BLIND,CARE ESTABLISHMENT,LD - Fenland Locality - Cost of Care,LD - Fenland  - Care,Residential Care
Cambridgeshire County Council,23-Jan-20,51301301641,"-2,188.72",SENSE NATIONAL DEAF & BLIND,CARE ESTABLISHMENT,LD - Fenland Locality - Cost of Care,LD - Fenland  - Care,Residential Care
Cambridgeshire County Council,23-Jan-20,51301301641,"-2,188.72",SENSE NATIONAL DEAF & BLIND,CARE ESTABLISHMENT,LD - Fenland Locality - Cost of Care,LD - Fenland  - Care,Residential Care
Cambridgeshire County Council,23-Jan-20,51301301641,"-2,188.72",SENSE NATIONAL DEAF & BLIND,CARE ESTABLISHMENT,LD - Fenland Locality - Cost of Care,LD - Fenland  - Care,Residential Care
Cambridgeshire County Council,23-Jan-20,51301301641,"-2,188.72",SENSE NATIONAL DEAF & BLIND,CARE ESTABLISHMENT,LD - Fenland Locality - Cost of Care,LD - Fenland  - Care,Residential Care
Cambridgeshire County Council,23-Jan-20,51301301641,"-2,188.72",SENSE NATIONAL DEAF & BLIND,CARE ESTABLISHMENT,LD - Fenland Locality - Cost of Care,LD - Fenland  - Care,Residential Care
Cambridgeshire County Council,23-Jan-20,51301301641,"-2,188.72",SENSE NATIONAL DEAF & BLIND,CARE ESTABLISHMENT,LD - Fenland Locality - Cost of Care,LD - Fenland  - Care,Residential Care
Cambridgeshire County Council,23-Jan-20,51301301641,"-2,188.72",SENSE NATIONAL DEAF & BLIND,CARE ESTABLISHMENT,LD - Fenland Locality - Cost of Care,LD - Fenland  - Care,Residential Care
Cambridgeshire County Council,23-Jan-20,51301301641,"-2,188.72",SENSE NATIONAL DEAF & BLIND,CARE ESTABLISHMENT,LD - Fenland Locality - Cost of Care,LD - Fenland  - Care,Residential Care
Cambridgeshire County Council,23-Jan-20,51301301641,"-2,188.72",SENSE NATIONAL DEAF & BLIND,CARE ESTABLISHMENT,LD - Fenland Locality - Cost of Care,LD - Fenland  - Care,Residential Care
Cambridgeshire County Council,23-Jan-20,51301301641,"-2,188.72",SENSE NATIONAL DEAF & BLIND,CARE ESTABLISHMENT,LD - Fenland Locality - Cost of Care,LD - Fenland  - Care,Residential Care
Cambridgeshire County Council,23-Jan-20,51301301641,"-2,188.72",SENSE NATIONAL DEAF & BLIND,CARE ESTABLISHMENT,LD - Fenland Locality - Cost of Care,LD - Fenland  - Care,Residential Care
Cambridgeshire County Council,23-Jan-20,51301301641,"-2,188.72",SENSE NATIONAL DEAF & BLIND,CARE ESTABLISHMENT,LD - Fenland Locality - Cost of Care,LD - Fenland  - Care,Residential Care
Cambridgeshire County Council,23-Jan-20,51301301641,"-2,188.72",SENSE NATIONAL DEAF & BLIND,CARE ESTABLISHMENT,LD - Fenland Locality - Cost of Care,LD - Fenland  - Care,Residential Care
Cambridgeshire County Council,23-Jan-20,51301301641,"-2,188.72",SENSE NATIONAL DEAF & BLIND,CARE ESTABLISHMENT,LD - Fenland Locality - Cost of Care,LD - Fenland  - Care,Residential Care
Cambridgeshire County Council,23-Jan-20,51301301641,"-2,188.72",SENSE NATIONAL DEAF & BLIND,CARE ESTABLISHMENT,LD - Fenland Locality - Cost of Care,LD - Fenland  - Care,Residential Care
Cambridgeshire County Council,23-Jan-20,51301300514,"-2,160.00",SECURITY GATES AND DOORS,PARTNERSHIP,County Farms,County Farms,County Farms Maintenance unplanned
Cambridgeshire County Council,29-Jan-20,51301301853,"-2,155.92",OPUS LGSS (PEOPLE SOLUTIONS) LTD,TRADE SUPPLIER,"School Condition, Maintenance & Suitability","School Condition, Maintenance & Suitability","New Construction, Conversion and Renovation"
Cambridgeshire County Council,30-Jan-20,51301301558,"-2,142.38",VOYAGE,CARE ESTABLISHMENT,LD - City Locality - Cost of Care,LD - City - Special Needs,Residential Care
Cambridgeshire County Council,30-Jan-20,51301301558,"-2,142.38",VOYAGE,CARE ESTABLISHMENT,LD - City Locality - Cost of Care,LD - City - Special Needs,Residential Care
Cambridgeshire County Council,30-Jan-20,51301301558,"-2,142.38",VOYAGE,CARE ESTABLISHMENT,LD - City Locality - Cost of Care,LD - City - Special Needs,Residential Care
Cambridgeshire County Council,30-Jan-20,51301301558,"-2,142.38",VOYAGE,CARE ESTABLISHMENT,LD - City Locality - Cost of Care,LD - City - Special Needs,Residential Care
Cambridgeshire County Council,30-Jan-20,51301301558,"-2,142.38",VOYAGE,CARE ESTABLISHMENT,LD - City Locality - Cost of Care,LD - City - Special Needs,Residential Care
Cambridgeshire County Council,30-Jan-20,51301301558,"-2,142.38",VOYAGE,CARE ESTABLISHMENT,LD - City Locality - Cost of Care,LD - City - Special Needs,Residential Care
Cambridgeshire County Council,30-Jan-20,51301301558,"-2,142.38",VOYAGE,CARE ESTABLISHMENT,LD - City Locality - Cost of Care,LD - City - Special Needs,Residential Care
Cambridgeshire County Council,30-Jan-20,51301301558,"-2,142.38",VOYAGE,CARE ESTABLISHMENT,LD - City Locality - Cost of Care,LD - City - Special Needs,Residential Care
Cambridgeshire County Council,30-Jan-20,51301301558,"-2,142.38",VOYAGE,CARE ESTABLISHMENT,LD - City Locality - Cost of Care,LD - City - Special Needs,Residential Care
Cambridgeshire County Council,30-Jan-20,51301301558,"-2,142.38",VOYAGE,CARE ESTABLISHMENT,LD - City Locality - Cost of Care,LD - City - Special Needs,Residential Care
Cambridgeshire County Council,30-Jan-20,51301301558,"-2,142.38",VOYAGE,CARE ESTABLISHMENT,LD - City Locality - Cost of Care,LD - City - Special Needs,Residential Care
Cambridgeshire County Council,30-Jan-20,51301301558,"-2,142.38",VOYAGE,CARE ESTABLISHMENT,LD - City Locality - Cost of Care,LD - City - Special Needs,Residential Care
Cambridgeshire County Council,30-Jan-20,51301301558,"-2,142.38",VOYAGE,CARE ESTABLISHMENT,LD - City Locality - Cost of Care,LD - City - Special Needs,Residential Care
Cambridgeshire County Council,30-Jan-20,51301301558,"-2,142.38",VOYAGE,CARE ESTABLISHMENT,LD - City Locality - Cost of Care,LD - City - Special Needs,Residential Care
Cambridgeshire County Council,30-Jan-20,51301301558,"-2,142.38",VOYAGE,CARE ESTABLISHMENT,LD - City Locality - Cost of Care,LD - City - Special Needs,Residential Care
Cambridgeshire County Council,30-Jan-20,51301301558,"-2,142.38",VOYAGE,CARE ESTABLISHMENT,LD - City Locality - Cost of Care,LD - City - Special Needs,Residential Care
Cambridgeshire County Council,30-Jan-20,51301301558,"-2,142.38",VOYAGE,CARE ESTABLISHMENT,LD - City Locality - Cost of Care,LD - City - Special Needs,Residential Care
Cambridgeshire County Council,30-Jan-20,51301301558,"-2,142.38",VOYAGE,CARE ESTABLISHMENT,LD - City Locality - Cost of Care,LD - City - Special Needs,Residential Care
Cambridgeshire County Council,30-Jan-20,51301301558,"-2,142.38",VOYAGE,CARE ESTABLISHMENT,LD - City Locality - Cost of Care,LD - City - Special Needs,Residential Care
Cambridgeshire County Council,30-Jan-20,51301301558,"-2,142.38",VOYAGE,CARE ESTABLISHMENT,LD - City Locality - Cost of Care,LD - City - Special Needs,Residential Care
Cambridgeshire County Council,30-Jan-20,51301301558,"-2,142.38",VOYAGE,CARE ESTABLISHMENT,LD - City Locality - Cost of Care,LD - City - Special Needs,Residential Care
Cambridgeshire County Council,30-Jan-20,51301301558,"-2,142.38",VOYAGE,CARE ESTABLISHMENT,LD - City Locality - Cost of Care,LD - City - Special Needs,Residential Care
Cambridgeshire County Council,30-Jan-20,51301301558,"-2,142.38",VOYAGE,CARE ESTABLISHMENT,LD - City Locality - Cost of Care,LD - City - Special Needs,Residential Care
Cambridgeshire County Council,30-Jan-20,51301301558,"-2,142.38",VOYAGE,CARE ESTABLISHMENT,LD - City Locality - Cost of Care,LD - City - Special Needs,Residential Care
Cambridgeshire County Council,30-Jan-20,51301301558,"-2,142.38",VOYAGE,CARE ESTABLISHMENT,LD - City Locality - Cost of Care,LD - City - Special Needs,Residential Care
Cambridgeshire County Council,30-Jan-20,51301301558,"-2,142.38",VOYAGE,CARE ESTABLISHMENT,LD - City Locality - Cost of Care,LD - City - Special Needs,Residential Care
Cambridgeshire County Council,30-Jan-20,51301301558,"-2,142.38",VOYAGE,CARE ESTABLISHMENT,LD - City Locality - Cost of Care,LD - City - Special Needs,Residential Care
Cambridgeshire County Council,30-Jan-20,51301301558,"-2,142.38",VOYAGE,CARE ESTABLISHMENT,LD - City Locality - Cost of Care,LD - City - Special Needs,Residential Care
Cambridgeshire County Council,30-Jan-20,51301301558,"-2,142.38",VOYAGE,CARE ESTABLISHMENT,LD - City Locality - Cost of Care,LD - City - Special Needs,Residential Care
Cambridgeshire County Council,30-Jan-20,51301301558,"-2,142.38",VOYAGE,CARE ESTABLISHMENT,LD - City Locality - Cost of Care,LD - City - Special Needs,Residential Care
Cambridgeshire County Council,30-Jan-20,51301301558,"-2,142.38",VOYAGE,CARE ESTABLISHMENT,LD - City Locality - Cost of Care,LD - City - Special Needs,Residential Care
Cambridgeshire County Council,30-Jan-20,51301301558,"-2,142.38",VOYAGE,CARE ESTABLISHMENT,LD - City Locality - Cost of Care,LD - City - Special Needs,Residential Care
Cambridgeshire County Council,30-Jan-20,51301301558,"-2,142.38",VOYAGE,CARE ESTABLISHMENT,LD - City Locality - Cost of Care,LD - City - Special Needs,Residential Care
Cambridgeshire County Council,30-Jan-20,51301301559,"-2,142.38",VOYAGE,CARE ESTABLISHMENT,LD - South Locality - Cost of Care,LD - South Cambs - Special Needs,Residential Care
Cambridgeshire County Council,30-Jan-20,51301301559,"-2,142.38",VOYAGE,CARE ESTABLISHMENT,LD - South Locality - Cost of Care,LD - South Cambs - Special Needs,Residential Care
Cambridgeshire County Council,30-Jan-20,51301301559,"-2,142.38",VOYAGE,CARE ESTABLISHMENT,LD - South Locality - Cost of Care,LD - South Cambs - Special Needs,Residential Care
Cambridgeshire County Council,30-Jan-20,51301301559,"-2,142.38",VOYAGE,CARE ESTABLISHMENT,LD - South Locality - Cost of Care,LD - South Cambs - Special Needs,Residential Care
Cambridgeshire County Council,30-Jan-20,51301301559,"-2,142.38",VOYAGE,CARE ESTABLISHMENT,LD - South Locality - Cost of Care,LD - South Cambs - Special Needs,Residential Care
Cambridgeshire County Council,30-Jan-20,51301301559,"-2,142.38",VOYAGE,CARE ESTABLISHMENT,LD - South Locality - Cost of Care,LD - South Cambs - Special Needs,Residential Care
Cambridgeshire County Council,30-Jan-20,51301301559,"-2,142.38",VOYAGE,CARE ESTABLISHMENT,LD - South Locality - Cost of Care,LD - South Cambs - Special Needs,Residential Care
Cambridgeshire County Council,30-Jan-20,51301301559,"-2,142.38",VOYAGE,CARE ESTABLISHMENT,LD - South Locality - Cost of Care,LD - South Cambs - Special Needs,Residential Care
Cambridgeshire County Council,30-Jan-20,51301301559,"-2,142.38",VOYAGE,CARE ESTABLISHMENT,LD - South Locality - Cost of Care,LD - South Cambs - Special Needs,Residential Care
Cambridgeshire County Council,30-Jan-20,51301301559,"-2,142.38",VOYAGE,CARE ESTABLISHMENT,LD - South Locality - Cost of Care,LD - South Cambs - Special Needs,Residential Care
Cambridgeshire County Council,30-Jan-20,51301301559,"-2,142.38",VOYAGE,CARE ESTABLISHMENT,LD - South Locality - Cost of Care,LD - South Cambs - Special Needs,Residential Care
Cambridgeshire County Council,30-Jan-20,51301301559,"-2,142.38",VOYAGE,CARE ESTABLISHMENT,LD - South Locality - Cost of Care,LD - South Cambs - Special Needs,Residential Care
Cambridgeshire County Council,30-Jan-20,51301301559,"-2,142.38",VOYAGE,CARE ESTABLISHMENT,LD - South Locality - Cost of Care,LD - South Cambs - Special Needs,Residential Care
Cambridgeshire County Council,30-Jan-20,51301301559,"-2,142.38",VOYAGE,CARE ESTABLISHMENT,LD - South Locality - Cost of Care,LD - South Cambs - Special Needs,Residential Care
Cambridgeshire County Council,30-Jan-20,51301301559,"-2,142.38",VOYAGE,CARE ESTABLISHMENT,LD - South Locality - Cost of Care,LD - South Cambs - Special Needs,Residential Care
Cambridgeshire County Council,30-Jan-20,51301301559,"-2,142.38",VOYAGE,CARE ESTABLISHMENT,LD - South Locality - Cost of Care,LD - South Cambs - Special Needs,Residential Care
Cambridgeshire County Council,30-Jan-20,51301301559,"-2,142.38",VOYAGE,CARE ESTABLISHMENT,LD - South Locality - Cost of Care,LD - South Cambs - Special Needs,Residential Care
Cambridgeshire County Council,30-Jan-20,51301301559,"-2,142.38",VOYAGE,CARE ESTABLISHMENT,LD - South Locality - Cost of Care,LD - South Cambs - Special Needs,Residential Care
Cambridgeshire County Council,30-Jan-20,51301301559,"-2,142.38",VOYAGE,CARE ESTABLISHMENT,LD - South Locality - Cost of Care,LD - South Cambs - Special Needs,Residential Care
Cambridgeshire County Council,30-Jan-20,51301301559,"-2,142.38",VOYAGE,CARE ESTABLISHMENT,LD - South Locality - Cost of Care,LD - South Cambs - Special Needs,Residential Care
Cambridgeshire County Council,30-Jan-20,51301301559,"-2,142.38",VOYAGE,CARE ESTABLISHMENT,LD - South Locality - Cost of Care,LD - South Cambs - Special Needs,Residential Care
Cambridgeshire County Council,30-Jan-20,51301301559,"-2,142.38",VOYAGE,CARE ESTABLISHMENT,LD - South Locality - Cost of Care,LD - South Cambs - Special Needs,Residential Care
Cambridgeshire County Council,30-Jan-20,51301301559,"-2,142.38",VOYAGE,CARE ESTABLISHMENT,LD - South Locality - Cost of Care,LD - South Cambs - Special Needs,Residential Care
Cambridgeshire County Council,30-Jan-20,51301301559,"-2,142.38",VOYAGE,CARE ESTABLISHMENT,LD - South Locality - Cost of Care,LD - South Cambs - Special Needs,Residential Care
Cambridgeshire County Council,30-Jan-20,51301301559,"-2,142.38",VOYAGE,CARE ESTABLISHMENT,LD - South Locality - Cost of Care,LD - South Cambs - Special Needs,Residential Care
Cambridgeshire County Council,30-Jan-20,51301301559,"-2,142.38",VOYAGE,CARE ESTABLISHMENT,LD - South Locality - Cost of Care,LD - South Cambs - Special Needs,Residential Care
Cambridgeshire County Council,30-Jan-20,51301301559,"-2,142.38",VOYAGE,CARE ESTABLISHMENT,LD - South Locality - Cost of Care,LD - South Cambs - Special Needs,Residential Care
Cambridgeshire County Council,30-Jan-20,51301301559,"-2,142.38",VOYAGE,CARE ESTABLISHMENT,LD - South Locality - Cost of Care,LD - South Cambs - Special Needs,Residential Care
Cambridgeshire County Council,30-Jan-20,51301301559,"-2,142.38",VOYAGE,CARE ESTABLISHMENT,LD - South Locality - Cost of Care,LD - South Cambs - Special Needs,Residential Care
Cambridgeshire County Council,30-Jan-20,51301301559,"-2,142.38",VOYAGE,CARE ESTABLISHMENT,LD - South Locality - Cost of Care,LD - South Cambs - Special Needs,Residential Care
Cambridgeshire County Council,30-Jan-20,51301301559,"-2,142.38",VOYAGE,CARE ESTABLISHMENT,LD - South Locality - Cost of Care,LD - South Cambs - Special Needs,Residential Care
Cambridgeshire County Council,30-Jan-20,51301301559,"-2,142.38",VOYAGE,CARE ESTABLISHMENT,LD - South Locality - Cost of Care,LD - South Cambs - Special Needs,Residential Care
Cambridgeshire County Council,30-Jan-20,51301301559,"-2,142.38",VOYAGE,CARE ESTABLISHMENT,LD - South Locality - Cost of Care,LD - South Cambs - Special Needs,Residential Care
Cambridgeshire County Council,30-Jan-20,51301301559,"-2,142.38",VOYAGE,CARE ESTABLISHMENT,LD - South Locality - Cost of Care,LD - South Cambs - Special Needs,Residential Care
Cambridgeshire County Council,30-Jan-20,51301301559,"-2,142.38",VOYAGE,CARE ESTABLISHMENT,LD - South Locality - Cost of Care,LD - South Cambs - Special Needs,Residential Care
Cambridgeshire County Council,30-Jan-20,51301301559,"-2,142.38",VOYAGE,CARE ESTABLISHMENT,LD - South Locality - Cost of Care,LD - South Cambs - Special Needs,Residential Care
Cambridgeshire County Council,30-Jan-20,51301301559,"-2,142.38",VOYAGE,CARE ESTABLISHMENT,LD - South Locality - Cost of Care,LD - South Cambs - Special Needs,Residential Care
Cambridgeshire County Council,23-Jan-20,51301300829,"-2,117.52",GLENHOLME HEALTHCARE LTD,CARE ESTABLISHMENT,LD - Young Adults Team,LD - Young Adults - Special Needs,Residential Care
Cambridgeshire County Council,24-Jan-20,51301301985,"-2,005.57",GLENHOLME HEALTHCARE LTD,CARE ESTABLISHMENT,LD - Hunts Locality - Cost of Care,LD - Huntingdonshire - Care,Supported Living
Cambridgeshire County Council,24-Jan-20,51301301985,"-2,005.57",GLENHOLME HEALTHCARE LTD,CARE ESTABLISHMENT,LD - Hunts Locality - Cost of Care,LD - Huntingdonshire - Care,Supported Living
Cambridgeshire County Council,24-Jan-20,51301301985,"-2,005.57",GLENHOLME HEALTHCARE LTD,CARE ESTABLISHMENT,LD - Hunts Locality - Cost of Care,LD - Huntingdonshire - Care,Supported Living
Cambridgeshire County Council,24-Jan-20,51301301985,"-2,005.57",GLENHOLME HEALTHCARE LTD,CARE ESTABLISHMENT,LD - Hunts Locality - Cost of Care,LD - Huntingdonshire - Care,Supported Living
Cambridgeshire County Council,24-Jan-20,51301301985,"-2,005.57",GLENHOLME HEALTHCARE LTD,CARE ESTABLISHMENT,LD - Hunts Locality - Cost of Care,LD - Huntingdonshire - Care,Supported Living
Cambridgeshire County Council,24-Jan-20,51301301985,"-2,005.57",GLENHOLME HEALTHCARE LTD,CARE ESTABLISHMENT,LD - Hunts Locality - Cost of Care,LD - Huntingdonshire - Care,Supported Living
Cambridgeshire County Council,24-Jan-20,51301301985,"-2,005.57",GLENHOLME HEALTHCARE LTD,CARE ESTABLISHMENT,LD - Hunts Locality - Cost of Care,LD - Huntingdonshire - Care,Supported Living
Cambridgeshire County Council,24-Jan-20,51301301985,"-2,005.57",GLENHOLME HEALTHCARE LTD,CARE ESTABLISHMENT,LD - Hunts Locality - Cost of Care,LD - Huntingdonshire - Care,Supported Living
Cambridgeshire County Council,24-Jan-20,51301301985,"-2,005.57",GLENHOLME HEALTHCARE LTD,CARE ESTABLISHMENT,LD - Hunts Locality - Cost of Care,LD - Huntingdonshire - Care,Supported Living
Cambridgeshire County Council,24-Jan-20,51301301985,"-2,005.57",GLENHOLME HEALTHCARE LTD,CARE ESTABLISHMENT,LD - Hunts Locality - Cost of Care,LD - Huntingdonshire - Care,Supported Living
Cambridgeshire County Council,24-Jan-20,51301301985,"-2,005.57",GLENHOLME HEALTHCARE LTD,CARE ESTABLISHMENT,LD - Hunts Locality - Cost of Care,LD - Huntingdonshire - Care,Supported Living
Cambridgeshire County Council,24-Jan-20,51301301985,"-2,005.57",GLENHOLME HEALTHCARE LTD,CARE ESTABLISHMENT,LD - Hunts Locality - Cost of Care,LD - Huntingdonshire - Care,Supported Living
Cambridgeshire County Council,24-Jan-20,51301301985,"-2,005.57",GLENHOLME HEALTHCARE LTD,CARE ESTABLISHMENT,LD - Hunts Locality - Cost of Care,LD - Huntingdonshire - Care,Supported Living
Cambridgeshire County Council,24-Jan-20,51301301985,"-2,005.57",GLENHOLME HEALTHCARE LTD,CARE ESTABLISHMENT,LD - Hunts Locality - Cost of Care,LD - Huntingdonshire - Care,Supported Living
Cambridgeshire County Council,23-Jan-20,51301301272,"-1,996.94",CONQUEST CARE HOMES PETERBOROUGH,CARE ESTABLISHMENT,LD - Hunts Locality - Cost of Care,LD - Huntingdonshire - Special Needs,Residential Care
Cambridgeshire County Council,23-Jan-20,51301301272,"-1,996.94",CONQUEST CARE HOMES PETERBOROUGH,CARE ESTABLISHMENT,LD - Hunts Locality - Cost of Care,LD - Huntingdonshire - Special Needs,Residential Care
Cambridgeshire County Council,23-Jan-20,51301301272,"-1,996.94",CONQUEST CARE HOMES PETERBOROUGH,CARE ESTABLISHMENT,LD - Hunts Locality - Cost of Care,LD - Huntingdonshire - Special Needs,Residential Care
Cambridgeshire County Council,23-Jan-20,51301301272,"-1,996.94",CONQUEST CARE HOMES PETERBOROUGH,CARE ESTABLISHMENT,LD - Hunts Locality - Cost of Care,LD - Huntingdonshire - Special Needs,Residential Care
Cambridgeshire County Council,23-Jan-20,51301301272,"-1,996.94",CONQUEST CARE HOMES PETERBOROUGH,CARE ESTABLISHMENT,LD - Hunts Locality - Cost of Care,LD - Huntingdonshire - Special Needs,Residential Care
Cambridgeshire County Council,23-Jan-20,51301301272,"-1,996.94",CONQUEST CARE HOMES PETERBOROUGH,CARE ESTABLISHMENT,LD - Hunts Locality - Cost of Care,LD - Huntingdonshire - Special Needs,Residential Care
Cambridgeshire County Council,23-Jan-20,51301301272,"-1,996.94",CONQUEST CARE HOMES PETERBOROUGH,CARE ESTABLISHMENT,LD - Hunts Locality - Cost of Care,LD - Huntingdonshire - Special Needs,Residential Care
Cambridgeshire County Council,23-Jan-20,51301301272,"-1,996.94",CONQUEST CARE HOMES PETERBOROUGH,CARE ESTABLISHMENT,LD - Hunts Locality - Cost of Care,LD - Huntingdonshire - Special Needs,Residential Care
Cambridgeshire County Council,30-Jan-20,51301301564,"-1,839.69",VOYAGE,CARE ESTABLISHMENT,LD - South Locality - Cost of Care,LD - South Cambs - Special Needs,Residential Care
Cambridgeshire County Council,30-Jan-20,51301301564,"-1,839.69",VOYAGE,CARE ESTABLISHMENT,LD - South Locality - Cost of Care,LD - South Cambs - Special Needs,Residential Care
Cambridgeshire County Council,30-Jan-20,51301301564,"-1,839.69",VOYAGE,CARE ESTABLISHMENT,LD - South Locality - Cost of Care,LD - South Cambs - Special Needs,Residential Care
Cambridgeshire County Council,30-Jan-20,51301301564,"-1,839.69",VOYAGE,CARE ESTABLISHMENT,LD - South Locality - Cost of Care,LD - South Cambs - Special Needs,Residential Care
Cambridgeshire County Council,30-Jan-20,51301301564,"-1,839.69",VOYAGE,CARE ESTABLISHMENT,LD - South Locality - Cost of Care,LD - South Cambs - Special Needs,Residential Care
Cambridgeshire County Council,30-Jan-20,51301301564,"-1,839.69",VOYAGE,CARE ESTABLISHMENT,LD - South Locality - Cost of Care,LD - South Cambs - Special Needs,Residential Care
Cambridgeshire County Council,30-Jan-20,51301301564,"-1,839.69",VOYAGE,CARE ESTABLISHMENT,LD - South Locality - Cost of Care,LD - South Cambs - Special Needs,Residential Care
Cambridgeshire County Council,30-Jan-20,51301301564,"-1,839.69",VOYAGE,CARE ESTABLISHMENT,LD - South Locality - Cost of Care,LD - South Cambs - Special Needs,Residential Care
Cambridgeshire County Council,30-Jan-20,51301301564,"-1,839.69",VOYAGE,CARE ESTABLISHMENT,LD - South Locality - Cost of Care,LD - South Cambs - Special Needs,Residential Care
Cambridgeshire County Council,30-Jan-20,51301301564,"-1,839.69",VOYAGE,CARE ESTABLISHMENT,LD - South Locality - Cost of Care,LD - South Cambs - Special Needs,Residential Care
Cambridgeshire County Council,30-Jan-20,51301301564,"-1,839.69",VOYAGE,CARE ESTABLISHMENT,LD - South Locality - Cost of Care,LD - South Cambs - Special Needs,Residential Care
Cambridgeshire County Council,30-Jan-20,51301301564,"-1,839.69",VOYAGE,CARE ESTABLISHMENT,LD - South Locality - Cost of Care,LD - South Cambs - Special Needs,Residential Care
Cambridgeshire County Council,30-Jan-20,51301301564,"-1,839.69",VOYAGE,CARE ESTABLISHMENT,LD - South Locality - Cost of Care,LD - South Cambs - Special Needs,Residential Care
Cambridgeshire County Council,30-Jan-20,51301301564,"-1,839.69",VOYAGE,CARE ESTABLISHMENT,LD - South Locality - Cost of Care,LD - South Cambs - Special Needs,Residential Care
Cambridgeshire County Council,30-Jan-20,51301301564,"-1,839.69",VOYAGE,CARE ESTABLISHMENT,LD - South Locality - Cost of Care,LD - South Cambs - Special Needs,Residential Care
Cambridgeshire County Council,30-Jan-20,51301301564,"-1,839.69",VOYAGE,CARE ESTABLISHMENT,LD - South Locality - Cost of Care,LD - South Cambs - Special Needs,Residential Care
Cambridgeshire County Council,30-Jan-20,51301301564,"-1,839.69",VOYAGE,CARE ESTABLISHMENT,LD - South Locality - Cost of Care,LD - South Cambs - Special Needs,Residential Care
Cambridgeshire County Council,30-Jan-20,51301301564,"-1,839.69",VOYAGE,CARE ESTABLISHMENT,LD - South Locality - Cost of Care,LD - South Cambs - Special Needs,Residential Care
Cambridgeshire County Council,30-Jan-20,51301301564,"-1,839.69",VOYAGE,CARE ESTABLISHMENT,LD - South Locality - Cost of Care,LD - South Cambs - Special Needs,Residential Care
Cambridgeshire County Council,30-Jan-20,51301301564,"-1,839.69",VOYAGE,CARE ESTABLISHMENT,LD - South Locality - Cost of Care,LD - South Cambs - Special Needs,Residential Care
Cambridgeshire County Council,30-Jan-20,51301301564,"-1,839.69",VOYAGE,CARE ESTABLISHMENT,LD - South Locality - Cost of Care,LD - South Cambs - Special Needs,Residential Care
Cambridgeshire County Council,30-Jan-20,51301301564,"-1,839.69",VOYAGE,CARE ESTABLISHMENT,LD - South Locality - Cost of Care,LD - South Cambs - Special Needs,Residential Care
Cambridgeshire County Council,30-Jan-20,51301301564,"-1,839.69",VOYAGE,CARE ESTABLISHMENT,LD - South Locality - Cost of Care,LD - South Cambs - Special Needs,Residential Care
Cambridgeshire County Council,30-Jan-20,51301301564,"-1,839.69",VOYAGE,CARE ESTABLISHMENT,LD - South Locality - Cost of Care,LD - South Cambs - Special Needs,Residential Care
Cambridgeshire County Council,30-Jan-20,51301301564,"-1,839.69",VOYAGE,CARE ESTABLISHMENT,LD - South Locality - Cost of Care,LD - South Cambs - Special Needs,Residential Care
Cambridgeshire County Council,30-Jan-20,51301301564,"-1,839.69",VOYAGE,CARE ESTABLISHMENT,LD - South Locality - Cost of Care,LD - South Cambs - Special Needs,Residential Care
Cambridgeshire County Council,30-Jan-20,51301301564,"-1,839.69",VOYAGE,CARE ESTABLISHMENT,LD - South Locality - Cost of Care,LD - South Cambs - Special Needs,Residential Care
Cambridgeshire County Council,30-Jan-20,51301301564,"-1,839.69",VOYAGE,CARE ESTABLISHMENT,LD - South Locality - Cost of Care,LD - South Cambs - Special Needs,Residential Care
Cambridgeshire County Council,30-Jan-20,51301301564,"-1,839.69",VOYAGE,CARE ESTABLISHMENT,LD - South Locality - Cost of Care,LD - South Cambs - Special Needs,Residential Care
Cambridgeshire County Council,30-Jan-20,51301301564,"-1,839.69",VOYAGE,CARE ESTABLISHMENT,LD - South Locality - Cost of Care,LD - South Cambs - Special Needs,Residential Care
Cambridgeshire County Council,30-Jan-20,51301301564,"-1,839.69",VOYAGE,CARE ESTABLISHMENT,LD - South Locality - Cost of Care,LD - South Cambs - Special Needs,Residential Care
Cambridgeshire County Council,30-Jan-20,51301301564,"-1,839.69",VOYAGE,CARE ESTABLISHMENT,LD - South Locality - Cost of Care,LD - South Cambs - Special Needs,Residential Care
Cambridgeshire County Council,30-Jan-20,51301301564,"-1,839.69",VOYAGE,CARE ESTABLISHMENT,LD - South Locality - Cost of Care,LD - South Cambs - Special Needs,Residential Care
Cambridgeshire County Council,23-Jan-20,51301301531,"-1,831.18",EYNESBURY HOUSE,CARE ESTABLISHMENT,AMH - Hunts & Fens,Hunts Mental Health Team,Residential Care
Cambridgeshire County Council,23-Jan-20,51301301531,"-1,831.18",EYNESBURY HOUSE,CARE ESTABLISHMENT,AMH - Hunts & Fens,Hunts Mental Health Team,Residential Care
Cambridgeshire County Council,23-Jan-20,51301301531,"-1,831.18",EYNESBURY HOUSE,CARE ESTABLISHMENT,AMH - Hunts & Fens,Hunts Mental Health Team,Residential Care
Cambridgeshire County Council,23-Jan-20,51301301531,"-1,831.18",EYNESBURY HOUSE,CARE ESTABLISHMENT,AMH - Hunts & Fens,Hunts Mental Health Team,Residential Care
Cambridgeshire County Council,23-Jan-20,51301301531,"-1,831.18",EYNESBURY HOUSE,CARE ESTABLISHMENT,AMH - Hunts & Fens,Hunts Mental Health Team,Residential Care
Cambridgeshire County Council,23-Jan-20,51301301531,"-1,831.18",EYNESBURY HOUSE,CARE ESTABLISHMENT,AMH - Hunts & Fens,Hunts Mental Health Team,Residential Care
Cambridgeshire County Council,23-Jan-20,51301301531,"-1,831.18",EYNESBURY HOUSE,CARE ESTABLISHMENT,AMH - Hunts & Fens,Hunts Mental Health Team,Residential Care
Cambridgeshire County Council,23-Jan-20,51301301531,"-1,831.18",EYNESBURY HOUSE,CARE ESTABLISHMENT,AMH - Hunts & Fens,Hunts Mental Health Team,Residential Care
Cambridgeshire County Council,23-Jan-20,51301301531,"-1,831.18",EYNESBURY HOUSE,CARE ESTABLISHMENT,AMH - Hunts & Fens,Hunts Mental Health Team,Residential Care
Cambridgeshire County Council,23-Jan-20,51301301531,"-1,831.18",EYNESBURY HOUSE,CARE ESTABLISHMENT,AMH - Hunts & Fens,Hunts Mental Health Team,Residential Care
Cambridgeshire County Council,23-Jan-20,51301301531,"-1,831.18",EYNESBURY HOUSE,CARE ESTABLISHMENT,AMH - Hunts & Fens,Hunts Mental Health Team,Residential Care
Cambridgeshire County Council,23-Jan-20,51301301531,"-1,831.18",EYNESBURY HOUSE,CARE ESTABLISHMENT,AMH - Hunts & Fens,Hunts Mental Health Team,Residential Care
Cambridgeshire County Council,23-Jan-20,51301301531,"-1,831.18",EYNESBURY HOUSE,CARE ESTABLISHMENT,AMH - Hunts & Fens,Hunts Mental Health Team,Residential Care
Cambridgeshire County Council,23-Jan-20,51301301531,"-1,831.18",EYNESBURY HOUSE,CARE ESTABLISHMENT,AMH - Hunts & Fens,Hunts Mental Health Team,Residential Care
Cambridgeshire County Council,23-Jan-20,51301301531,"-1,831.18",EYNESBURY HOUSE,CARE ESTABLISHMENT,AMH - Hunts & Fens,Hunts Mental Health Team,Residential Care
Cambridgeshire County Council,23-Jan-20,51301301531,"-1,831.18",EYNESBURY HOUSE,CARE ESTABLISHMENT,AMH - Hunts & Fens,Hunts Mental Health Team,Residential Care
Cambridgeshire County Council,23-Jan-20,51301301531,"-1,831.18",EYNESBURY HOUSE,CARE ESTABLISHMENT,AMH - Hunts & Fens,Hunts Mental Health Team,Residential Care
Cambridgeshire County Council,23-Jan-20,51301301531,"-1,831.18",EYNESBURY HOUSE,CARE ESTABLISHMENT,AMH - Hunts & Fens,Hunts Mental Health Team,Residential Care
Cambridgeshire County Council,23-Jan-20,51301301531,"-1,831.18",EYNESBURY HOUSE,CARE ESTABLISHMENT,AMH - Hunts & Fens,Hunts Mental Health Team,Residential Care
Cambridgeshire County Council,23-Jan-20,51301301531,"-1,831.18",EYNESBURY HOUSE,CARE ESTABLISHMENT,AMH - Hunts & Fens,Hunts Mental Health Team,Residential Care
Cambridgeshire County Council,23-Jan-20,51301301531,"-1,831.18",EYNESBURY HOUSE,CARE ESTABLISHMENT,AMH - Hunts & Fens,Hunts Mental Health Team,Residential Care
Cambridgeshire County Council,23-Jan-20,51301301531,"-1,831.18",EYNESBURY HOUSE,CARE ESTABLISHMENT,AMH - Hunts & Fens,Hunts Mental Health Team,Residential Care
Cambridgeshire County Council,23-Jan-20,51301301531,"-1,831.18",EYNESBURY HOUSE,CARE ESTABLISHMENT,AMH - Hunts & Fens,Hunts Mental Health Team,Residential Care
Cambridgeshire County Council,23-Jan-20,51301301531,"-1,831.18",EYNESBURY HOUSE,CARE ESTABLISHMENT,AMH - Hunts & Fens,Hunts Mental Health Team,Residential Care
Cambridgeshire County Council,23-Jan-20,51301301531,"-1,831.18",EYNESBURY HOUSE,CARE ESTABLISHMENT,AMH - Hunts & Fens,Hunts Mental Health Team,Residential Care
Cambridgeshire County Council,23-Jan-20,51301301531,"-1,831.18",EYNESBURY HOUSE,CARE ESTABLISHMENT,AMH - Hunts & Fens,Hunts Mental Health Team,Residential Care
Cambridgeshire County Council,23-Jan-20,51301301531,"-1,831.18",EYNESBURY HOUSE,CARE ESTABLISHMENT,AMH - Hunts & Fens,Hunts Mental Health Team,Residential Care
Cambridgeshire County Council,23-Jan-20,51301301531,"-1,831.18",EYNESBURY HOUSE,CARE ESTABLISHMENT,AMH - Hunts & Fens,Hunts Mental Health Team,Residential Care
Cambridgeshire County Council,23-Jan-20,51301301531,"-1,831.18",EYNESBURY HOUSE,CARE ESTABLISHMENT,AMH - Hunts & Fens,Hunts Mental Health Team,Residential Care
Cambridgeshire County Council,23-Jan-20,51301301531,"-1,831.18",EYNESBURY HOUSE,CARE ESTABLISHMENT,AMH - Hunts & Fens,Hunts Mental Health Team,Residential Care
Cambridgeshire County Council,23-Jan-20,51301301531,"-1,831.18",EYNESBURY HOUSE,CARE ESTABLISHMENT,AMH - Hunts & Fens,Hunts Mental Health Team,Residential Care
Cambridgeshire County Council,23-Jan-20,51301301531,"-1,831.18",EYNESBURY HOUSE,CARE ESTABLISHMENT,AMH - Hunts & Fens,Hunts Mental Health Team,Residential Care
Cambridgeshire County Council,23-Jan-20,51301301531,"-1,831.18",EYNESBURY HOUSE,CARE ESTABLISHMENT,AMH - Hunts & Fens,Hunts Mental Health Team,Residential Care
Cambridgeshire County Council,23-Jan-20,51301301531,"-1,831.18",EYNESBURY HOUSE,CARE ESTABLISHMENT,AMH - Hunts & Fens,Hunts Mental Health Team,Residential Care
Cambridgeshire County Council,23-Jan-20,51301301531,"-1,831.18",EYNESBURY HOUSE,CARE ESTABLISHMENT,AMH - Hunts & Fens,Hunts Mental Health Team,Residential Care
Cambridgeshire County Council,23-Jan-20,51301301531,"-1,831.18",EYNESBURY HOUSE,CARE ESTABLISHMENT,AMH - Hunts & Fens,Hunts Mental Health Team,Residential Care
Cambridgeshire County Council,23-Jan-20,51301301531,"-1,831.18",EYNESBURY HOUSE,CARE ESTABLISHMENT,AMH - Hunts & Fens,Hunts Mental Health Team,Residential Care
Cambridgeshire County Council,23-Jan-20,51301301531,"-1,831.18",EYNESBURY HOUSE,CARE ESTABLISHMENT,AMH - Hunts & Fens,Hunts Mental Health Team,Residential Care
Cambridgeshire County Council,23-Jan-20,51301301531,"-1,831.18",EYNESBURY HOUSE,CARE ESTABLISHMENT,AMH - Hunts & Fens,Hunts Mental Health Team,Residential Care
Cambridgeshire County Council,23-Jan-20,51301301531,"-1,831.18",EYNESBURY HOUSE,CARE ESTABLISHMENT,AMH - Hunts & Fens,Hunts Mental Health Team,Residential Care
Cambridgeshire County Council,23-Jan-20,51301301531,"-1,831.18",EYNESBURY HOUSE,CARE ESTABLISHMENT,AMH - Hunts & Fens,Hunts Mental Health Team,Residential Care
Cambridgeshire County Council,23-Jan-20,51301301531,"-1,831.18",EYNESBURY HOUSE,CARE ESTABLISHMENT,AMH - Hunts & Fens,Hunts Mental Health Team,Residential Care
Cambridgeshire County Council,23-Jan-20,51301300796,"-1,780.18",CONQUEST CARE HOMES PETERBOROUGH,CARE ESTABLISHMENT,LD - Fenland Locality - Cost of Care,LD - Fenland  - Special Needs,Residential Care
Cambridgeshire County Council,23-Jan-20,51301300796,"-1,780.18",CONQUEST CARE HOMES PETERBOROUGH,CARE ESTABLISHMENT,LD - Fenland Locality - Cost of Care,LD - Fenland  - Special Needs,Residential Care
Cambridgeshire County Council,23-Jan-20,51301300796,"-1,780.18",CONQUEST CARE HOMES PETERBOROUGH,CARE ESTABLISHMENT,LD - Fenland Locality - Cost of Care,LD - Fenland  - Special Needs,Residential Care
Cambridgeshire County Council,23-Jan-20,51301300796,"-1,780.18",CONQUEST CARE HOMES PETERBOROUGH,CARE ESTABLISHMENT,LD - Fenland Locality - Cost of Care,LD - Fenland  - Special Needs,Residential Care
Cambridgeshire County Council,23-Jan-20,51301300796,"-1,780.18",CONQUEST CARE HOMES PETERBOROUGH,CARE ESTABLISHMENT,LD - Fenland Locality - Cost of Care,LD - Fenland  - Special Needs,Residential Care
Cambridgeshire County Council,23-Jan-20,51301300796,"-1,780.18",CONQUEST CARE HOMES PETERBOROUGH,CARE ESTABLISHMENT,LD - Fenland Locality - Cost of Care,LD - Fenland  - Special Needs,Residential Care
Cambridgeshire County Council,23-Jan-20,51301300796,"-1,780.18",CONQUEST CARE HOMES PETERBOROUGH,CARE ESTABLISHMENT,LD - Fenland Locality - Cost of Care,LD - Fenland  - Special Needs,Residential Care
Cambridgeshire County Council,23-Jan-20,51301300796,"-1,780.18",CONQUEST CARE HOMES PETERBOROUGH,CARE ESTABLISHMENT,LD - Fenland Locality - Cost of Care,LD - Fenland  - Special Needs,Residential Care
Cambridgeshire County Council,23-Jan-20,51301300796,"-1,780.18",CONQUEST CARE HOMES PETERBOROUGH,CARE ESTABLISHMENT,LD - Fenland Locality - Cost of Care,LD - Fenland  - Special Needs,Residential Care
Cambridgeshire County Council,23-Jan-20,51301300796,"-1,780.18",CONQUEST CARE HOMES PETERBOROUGH,CARE ESTABLISHMENT,LD - Fenland Locality - Cost of Care,LD - Fenland  - Special Needs,Residential Care
Cambridgeshire County Council,23-Jan-20,51301300796,"-1,780.18",CONQUEST CARE HOMES PETERBOROUGH,CARE ESTABLISHMENT,LD - Fenland Locality - Cost of Care,LD - Fenland  - Special Needs,Residential Care
Cambridgeshire County Council,23-Jan-20,51301300796,"-1,780.18",CONQUEST CARE HOMES PETERBOROUGH,CARE ESTABLISHMENT,LD - Fenland Locality - Cost of Care,LD - Fenland  - Special Needs,Residential Care
Cambridgeshire County Council,23-Jan-20,51301300796,"-1,780.18",CONQUEST CARE HOMES PETERBOROUGH,CARE ESTABLISHMENT,LD - Fenland Locality - Cost of Care,LD - Fenland  - Special Needs,Residential Care
Cambridgeshire County Council,23-Jan-20,51301300796,"-1,780.18",CONQUEST CARE HOMES PETERBOROUGH,CARE ESTABLISHMENT,LD - Fenland Locality - Cost of Care,LD - Fenland  - Special Needs,Residential Care
Cambridgeshire County Council,23-Jan-20,51301300796,"-1,780.18",CONQUEST CARE HOMES PETERBOROUGH,CARE ESTABLISHMENT,LD - Fenland Locality - Cost of Care,LD - Fenland  - Special Needs,Residential Care
Cambridgeshire County Council,23-Jan-20,51301300796,"-1,780.18",CONQUEST CARE HOMES PETERBOROUGH,CARE ESTABLISHMENT,LD - Fenland Locality - Cost of Care,LD - Fenland  - Special Needs,Residential Care
Cambridgeshire County Council,23-Jan-20,51301300796,"-1,780.18",CONQUEST CARE HOMES PETERBOROUGH,CARE ESTABLISHMENT,LD - Fenland Locality - Cost of Care,LD - Fenland  - Special Needs,Residential Care
Cambridgeshire County Council,23-Jan-20,51301300796,"-1,780.18",CONQUEST CARE HOMES PETERBOROUGH,CARE ESTABLISHMENT,LD - Fenland Locality - Cost of Care,LD - Fenland  - Special Needs,Residential Care
Cambridgeshire County Council,23-Jan-20,51301300796,"-1,780.18",CONQUEST CARE HOMES PETERBOROUGH,CARE ESTABLISHMENT,LD - Fenland Locality - Cost of Care,LD - Fenland  - Special Needs,Residential Care
Cambridgeshire County Council,23-Jan-20,51301300796,"-1,780.18",CONQUEST CARE HOMES PETERBOROUGH,CARE ESTABLISHMENT,LD - Fenland Locality - Cost of Care,LD - Fenland  - Special Needs,Residential Care
Cambridgeshire County Council,23-Jan-20,51301300796,"-1,780.18",CONQUEST CARE HOMES PETERBOROUGH,CARE ESTABLISHMENT,LD - Fenland Locality - Cost of Care,LD - Fenland  - Special Needs,Residential Care
Cambridgeshire County Council,23-Jan-20,51301300796,"-1,780.18",CONQUEST CARE HOMES PETERBOROUGH,CARE ESTABLISHMENT,LD - Fenland Locality - Cost of Care,LD - Fenland  - Special Needs,Residential Care
Cambridgeshire County Council,23-Jan-20,51301300796,"-1,780.18",CONQUEST CARE HOMES PETERBOROUGH,CARE ESTABLISHMENT,LD - Fenland Locality - Cost of Care,LD - Fenland  - Special Needs,Residential Care
Cambridgeshire County Council,23-Jan-20,51301300796,"-1,780.18",CONQUEST CARE HOMES PETERBOROUGH,CARE ESTABLISHMENT,LD - Fenland Locality - Cost of Care,LD - Fenland  - Special Needs,Residential Care
Cambridgeshire County Council,23-Jan-20,51301300796,"-1,780.18",CONQUEST CARE HOMES PETERBOROUGH,CARE ESTABLISHMENT,LD - Fenland Locality - Cost of Care,LD - Fenland  - Special Needs,Residential Care
Cambridgeshire County Council,23-Jan-20,51301300796,"-1,780.18",CONQUEST CARE HOMES PETERBOROUGH,CARE ESTABLISHMENT,LD - Fenland Locality - Cost of Care,LD - Fenland  - Special Needs,Residential Care
Cambridgeshire County Council,23-Jan-20,51301300796,"-1,780.18",CONQUEST CARE HOMES PETERBOROUGH,CARE ESTABLISHMENT,LD - Fenland Locality - Cost of Care,LD - Fenland  - Special Needs,Residential Care
Cambridgeshire County Council,23-Jan-20,51301300796,"-1,780.18",CONQUEST CARE HOMES PETERBOROUGH,CARE ESTABLISHMENT,LD - Fenland Locality - Cost of Care,LD - Fenland  - Special Needs,Residential Care
Cambridgeshire County Council,23-Jan-20,51301300796,"-1,780.18",CONQUEST CARE HOMES PETERBOROUGH,CARE ESTABLISHMENT,LD - Fenland Locality - Cost of Care,LD - Fenland  - Special Needs,Residential Care
Cambridgeshire County Council,23-Jan-20,51301300796,"-1,780.18",CONQUEST CARE HOMES PETERBOROUGH,CARE ESTABLISHMENT,LD - Fenland Locality - Cost of Care,LD - Fenland  - Special Needs,Residential Care
Cambridgeshire County Council,23-Jan-20,51301300796,"-1,780.18",CONQUEST CARE HOMES PETERBOROUGH,CARE ESTABLISHMENT,LD - Fenland Locality - Cost of Care,LD - Fenland  - Special Needs,Residential Care
Cambridgeshire County Council,23-Jan-20,51301300796,"-1,780.18",CONQUEST CARE HOMES PETERBOROUGH,CARE ESTABLISHMENT,LD - Fenland Locality - Cost of Care,LD - Fenland  - Special Needs,Residential Care
Cambridgeshire County Council,23-Jan-20,51301300796,"-1,780.18",CONQUEST CARE HOMES PETERBOROUGH,CARE ESTABLISHMENT,LD - Fenland Locality - Cost of Care,LD - Fenland  - Special Needs,Residential Care
Cambridgeshire County Council,23-Jan-20,51301300796,"-1,780.18",CONQUEST CARE HOMES PETERBOROUGH,CARE ESTABLISHMENT,LD - Fenland Locality - Cost of Care,LD - Fenland  - Special Needs,Residential Care
Cambridgeshire County Council,23-Jan-20,51301300796,"-1,780.18",CONQUEST CARE HOMES PETERBOROUGH,CARE ESTABLISHMENT,LD - Fenland Locality - Cost of Care,LD - Fenland  - Special Needs,Residential Care
Cambridgeshire County Council,23-Jan-20,51301300796,"-1,780.18",CONQUEST CARE HOMES PETERBOROUGH,CARE ESTABLISHMENT,LD - Fenland Locality - Cost of Care,LD - Fenland  - Special Needs,Residential Care
Cambridgeshire County Council,23-Jan-20,51301300796,"-1,780.18",CONQUEST CARE HOMES PETERBOROUGH,CARE ESTABLISHMENT,LD - Fenland Locality - Cost of Care,LD - Fenland  - Special Needs,Residential Care
Cambridgeshire County Council,23-Jan-20,51301300796,"-1,780.18",CONQUEST CARE HOMES PETERBOROUGH,CARE ESTABLISHMENT,LD - Fenland Locality - Cost of Care,LD - Fenland  - Special Needs,Residential Care
Cambridgeshire County Council,23-Jan-20,51301300796,"-1,780.18",CONQUEST CARE HOMES PETERBOROUGH,CARE ESTABLISHMENT,LD - Fenland Locality - Cost of Care,LD - Fenland  - Special Needs,Residential Care
Cambridgeshire County Council,23-Jan-20,51301300796,"-1,780.18",CONQUEST CARE HOMES PETERBOROUGH,CARE ESTABLISHMENT,LD - Fenland Locality - Cost of Care,LD - Fenland  - Special Needs,Residential Care
Cambridgeshire County Council,23-Jan-20,51301300796,"-1,780.18",CONQUEST CARE HOMES PETERBOROUGH,CARE ESTABLISHMENT,LD - Fenland Locality - Cost of Care,LD - Fenland  - Special Needs,Residential Care
Cambridgeshire County Council,23-Jan-20,51301300796,"-1,780.18",CONQUEST CARE HOMES PETERBOROUGH,CARE ESTABLISHMENT,LD - Fenland Locality - Cost of Care,LD - Fenland  - Special Needs,Residential Care
Cambridgeshire County Council,23-Jan-20,51301300796,"-1,780.18",CONQUEST CARE HOMES PETERBOROUGH,CARE ESTABLISHMENT,LD - Fenland Locality - Cost of Care,LD - Fenland  - Special Needs,Residential Care
Cambridgeshire County Council,23-Jan-20,51301301150,"-1,759.04",CONQUEST CARE HOMES PETERBOROUGH,CARE ESTABLISHMENT,LD - Hunts Locality - Cost of Care,LD - Huntingdonshire - Care,Residential Care
Cambridgeshire County Council,23-Jan-20,51301301150,"-1,759.04",CONQUEST CARE HOMES PETERBOROUGH,CARE ESTABLISHMENT,LD - Hunts Locality - Cost of Care,LD - Huntingdonshire - Care,Residential Care
Cambridgeshire County Council,23-Jan-20,51301301150,"-1,759.04",CONQUEST CARE HOMES PETERBOROUGH,CARE ESTABLISHMENT,LD - Hunts Locality - Cost of Care,LD - Huntingdonshire - Care,Residential Care
Cambridgeshire County Council,23-Jan-20,51301301150,"-1,759.04",CONQUEST CARE HOMES PETERBOROUGH,CARE ESTABLISHMENT,LD - Hunts Locality - Cost of Care,LD - Huntingdonshire - Care,Residential Care
Cambridgeshire County Council,23-Jan-20,51301301150,"-1,759.04",CONQUEST CARE HOMES PETERBOROUGH,CARE ESTABLISHMENT,LD - Hunts Locality - Cost of Care,LD - Huntingdonshire - Care,Residential Care
Cambridgeshire County Council,23-Jan-20,51301301150,"-1,759.04",CONQUEST CARE HOMES PETERBOROUGH,CARE ESTABLISHMENT,LD - Hunts Locality - Cost of Care,LD - Huntingdonshire - Care,Residential Care
Cambridgeshire County Council,23-Jan-20,51301301150,"-1,759.04",CONQUEST CARE HOMES PETERBOROUGH,CARE ESTABLISHMENT,LD - Hunts Locality - Cost of Care,LD - Huntingdonshire - Care,Residential Care
Cambridgeshire County Council,23-Jan-20,51301301150,"-1,759.04",CONQUEST CARE HOMES PETERBOROUGH,CARE ESTABLISHMENT,LD - Hunts Locality - Cost of Care,LD - Huntingdonshire - Care,Residential Care
Cambridgeshire County Council,23-Jan-20,51301301150,"-1,759.04",CONQUEST CARE HOMES PETERBOROUGH,CARE ESTABLISHMENT,LD - Hunts Locality - Cost of Care,LD - Huntingdonshire - Care,Residential Care
Cambridgeshire County Council,23-Jan-20,51301301150,"-1,759.04",CONQUEST CARE HOMES PETERBOROUGH,CARE ESTABLISHMENT,LD - Hunts Locality - Cost of Care,LD - Huntingdonshire - Care,Residential Care
Cambridgeshire County Council,23-Jan-20,51301301150,"-1,759.04",CONQUEST CARE HOMES PETERBOROUGH,CARE ESTABLISHMENT,LD - Hunts Locality - Cost of Care,LD - Huntingdonshire - Care,Residential Care
Cambridgeshire County Council,23-Jan-20,51301301150,"-1,759.04",CONQUEST CARE HOMES PETERBOROUGH,CARE ESTABLISHMENT,LD - Hunts Locality - Cost of Care,LD - Huntingdonshire - Care,Residential Care
Cambridgeshire County Council,23-Jan-20,51301301150,"-1,759.04",CONQUEST CARE HOMES PETERBOROUGH,CARE ESTABLISHMENT,LD - Hunts Locality - Cost of Care,LD - Huntingdonshire - Care,Residential Care
Cambridgeshire County Council,23-Jan-20,51301301150,"-1,759.04",CONQUEST CARE HOMES PETERBOROUGH,CARE ESTABLISHMENT,LD - Hunts Locality - Cost of Care,LD - Huntingdonshire - Care,Residential Care
Cambridgeshire County Council,23-Jan-20,51301301150,"-1,759.04",CONQUEST CARE HOMES PETERBOROUGH,CARE ESTABLISHMENT,LD - Hunts Locality - Cost of Care,LD - Huntingdonshire - Care,Residential Care
Cambridgeshire County Council,23-Jan-20,51301301150,"-1,759.04",CONQUEST CARE HOMES PETERBOROUGH,CARE ESTABLISHMENT,LD - Hunts Locality - Cost of Care,LD - Huntingdonshire - Care,Residential Care
Cambridgeshire County Council,23-Jan-20,51301301150,"-1,759.04",CONQUEST CARE HOMES PETERBOROUGH,CARE ESTABLISHMENT,LD - Hunts Locality - Cost of Care,LD - Huntingdonshire - Care,Residential Care
Cambridgeshire County Council,23-Jan-20,51301301150,"-1,759.04",CONQUEST CARE HOMES PETERBOROUGH,CARE ESTABLISHMENT,LD - Hunts Locality - Cost of Care,LD - Huntingdonshire - Care,Residential Care
Cambridgeshire County Council,23-Jan-20,51301301150,"-1,759.04",CONQUEST CARE HOMES PETERBOROUGH,CARE ESTABLISHMENT,LD - Hunts Locality - Cost of Care,LD - Huntingdonshire - Care,Residential Care
Cambridgeshire County Council,23-Jan-20,51301301150,"-1,759.04",CONQUEST CARE HOMES PETERBOROUGH,CARE ESTABLISHMENT,LD - Hunts Locality - Cost of Care,LD - Huntingdonshire - Care,Residential Care
Cambridgeshire County Council,23-Jan-20,51301301150,"-1,759.04",CONQUEST CARE HOMES PETERBOROUGH,CARE ESTABLISHMENT,LD - Hunts Locality - Cost of Care,LD - Huntingdonshire - Care,Residential Care
Cambridgeshire County Council,23-Jan-20,51301301150,"-1,759.04",CONQUEST CARE HOMES PETERBOROUGH,CARE ESTABLISHMENT,LD - Hunts Locality - Cost of Care,LD - Huntingdonshire - Care,Residential Care
Cambridgeshire County Council,23-Jan-20,51301301150,"-1,759.04",CONQUEST CARE HOMES PETERBOROUGH,CARE ESTABLISHMENT,LD - Hunts Locality - Cost of Care,LD - Huntingdonshire - Care,Residential Care
Cambridgeshire County Council,23-Jan-20,51301301150,"-1,759.04",CONQUEST CARE HOMES PETERBOROUGH,CARE ESTABLISHMENT,LD - Hunts Locality - Cost of Care,LD - Huntingdonshire - Care,Residential Care
Cambridgeshire County Council,23-Jan-20,51301301150,"-1,759.04",CONQUEST CARE HOMES PETERBOROUGH,CARE ESTABLISHMENT,LD - Hunts Locality - Cost of Care,LD - Huntingdonshire - Care,Residential Care
Cambridgeshire County Council,23-Jan-20,51301301150,"-1,759.04",CONQUEST CARE HOMES PETERBOROUGH,CARE ESTABLISHMENT,LD - Hunts Locality - Cost of Care,LD - Huntingdonshire - Care,Residential Care
Cambridgeshire County Council,23-Jan-20,51301301150,"-1,759.04",CONQUEST CARE HOMES PETERBOROUGH,CARE ESTABLISHMENT,LD - Hunts Locality - Cost of Care,LD - Huntingdonshire - Care,Residential Care
Cambridgeshire County Council,23-Jan-20,51301301150,"-1,759.04",CONQUEST CARE HOMES PETERBOROUGH,CARE ESTABLISHMENT,LD - Hunts Locality - Cost of Care,LD - Huntingdonshire - Care,Residential Care
Cambridgeshire County Council,23-Jan-20,51301301150,"-1,759.04",CONQUEST CARE HOMES PETERBOROUGH,CARE ESTABLISHMENT,LD - Hunts Locality - Cost of Care,LD - Huntingdonshire - Care,Residential Care
Cambridgeshire County Council,23-Jan-20,51301301150,"-1,759.04",CONQUEST CARE HOMES PETERBOROUGH,CARE ESTABLISHMENT,LD - Hunts Locality - Cost of Care,LD - Huntingdonshire - Care,Residential Care
Cambridgeshire County Council,23-Jan-20,51301301150,"-1,759.04",CONQUEST CARE HOMES PETERBOROUGH,CARE ESTABLISHMENT,LD - Hunts Locality - Cost of Care,LD - Huntingdonshire - Care,Residential Care
Cambridgeshire County Council,23-Jan-20,51301301150,"-1,759.04",CONQUEST CARE HOMES PETERBOROUGH,CARE ESTABLISHMENT,LD - Hunts Locality - Cost of Care,LD - Huntingdonshire - Care,Residential Care
Cambridgeshire County Council,23-Jan-20,51301301150,"-1,759.04",CONQUEST CARE HOMES PETERBOROUGH,CARE ESTABLISHMENT,LD - Hunts Locality - Cost of Care,LD - Huntingdonshire - Care,Residential Care
Cambridgeshire County Council,23-Jan-20,51301301150,"-1,759.04",CONQUEST CARE HOMES PETERBOROUGH,CARE ESTABLISHMENT,LD - Hunts Locality - Cost of Care,LD - Huntingdonshire - Care,Residential Care
Cambridgeshire County Council,23-Jan-20,51301301150,"-1,759.04",CONQUEST CARE HOMES PETERBOROUGH,CARE ESTABLISHMENT,LD - Hunts Locality - Cost of Care,LD - Huntingdonshire - Care,Residential Care
Cambridgeshire County Council,23-Jan-20,51301301150,"-1,759.04",CONQUEST CARE HOMES PETERBOROUGH,CARE ESTABLISHMENT,LD - Hunts Locality - Cost of Care,LD - Huntingdonshire - Care,Residential Care
Cambridgeshire County Council,23-Jan-20,51301301150,"-1,759.04",CONQUEST CARE HOMES PETERBOROUGH,CARE ESTABLISHMENT,LD - Hunts Locality - Cost of Care,LD - Huntingdonshire - Care,Residential Care
Cambridgeshire County Council,23-Jan-20,51301301150,"-1,759.04",CONQUEST CARE HOMES PETERBOROUGH,CARE ESTABLISHMENT,LD - Hunts Locality - Cost of Care,LD - Huntingdonshire - Care,Residential Care
Cambridgeshire County Council,23-Jan-20,51301301150,"-1,759.04",CONQUEST CARE HOMES PETERBOROUGH,CARE ESTABLISHMENT,LD - Hunts Locality - Cost of Care,LD - Huntingdonshire - Care,Residential Care
Cambridgeshire County Council,23-Jan-20,51301301150,"-1,759.04",CONQUEST CARE HOMES PETERBOROUGH,CARE ESTABLISHMENT,LD - Hunts Locality - Cost of Care,LD - Huntingdonshire - Care,Residential Care
Cambridgeshire County Council,23-Jan-20,51301301150,"-1,759.04",CONQUEST CARE HOMES PETERBOROUGH,CARE ESTABLISHMENT,LD - Hunts Locality - Cost of Care,LD - Huntingdonshire - Care,Residential Care
Cambridgeshire County Council,23-Jan-20,51301301150,"-1,759.04",CONQUEST CARE HOMES PETERBOROUGH,CARE ESTABLISHMENT,LD - Hunts Locality - Cost of Care,LD - Huntingdonshire - Care,Residential Care
Cambridgeshire County Council,23-Jan-20,51301301150,"-1,759.04",CONQUEST CARE HOMES PETERBOROUGH,CARE ESTABLISHMENT,LD - Hunts Locality - Cost of Care,LD - Huntingdonshire - Care,Residential Care
Cambridgeshire County Council,30-Jan-20,51301305079,"-1,759.01",Redacted Personal Data,SERVICE USER,Physical Disablity - Cost of Care,Countywide PD Service - Care,Direct Payments
Cambridgeshire County Council,30-Jan-20,51301305079,"-1,759.01",Redacted Personal Data,SERVICE USER,Physical Disablity - Cost of Care,Countywide PD Service - Care,Direct Payments
Cambridgeshire County Council,30-Jan-20,51301305079,"-1,759.01",Redacted Personal Data,SERVICE USER,Physical Disablity - Cost of Care,Countywide PD Service - Care,Direct Payments
Cambridgeshire County Council,30-Jan-20,51301305079,"-1,759.01",Redacted Personal Data,SERVICE USER,Physical Disablity - Cost of Care,Countywide PD Service - Care,Direct Payments
Cambridgeshire County Council,30-Jan-20,51301305079,"-1,759.01",Redacted Personal Data,SERVICE USER,Physical Disablity - Cost of Care,Countywide PD Service - Care,Direct Payments
Cambridgeshire County Council,30-Jan-20,51301305079,"-1,759.01",Redacted Personal Data,SERVICE USER,Physical Disablity - Cost of Care,Countywide PD Service - Care,Direct Payments
Cambridgeshire County Council,30-Jan-20,51301305079,"-1,759.01",Redacted Personal Data,SERVICE USER,Physical Disablity - Cost of Care,Countywide PD Service - Care,Direct Payments
Cambridgeshire County Council,30-Jan-20,51301305079,"-1,759.01",Redacted Personal Data,SERVICE USER,Physical Disablity - Cost of Care,Countywide PD Service - Care,Direct Payments
Cambridgeshire County Council,30-Jan-20,51301305079,"-1,759.01",Redacted Personal Data,SERVICE USER,Physical Disablity - Cost of Care,Countywide PD Service - Care,Direct Payments
Cambridgeshire County Council,30-Jan-20,51301305079,"-1,759.01",Redacted Personal Data,SERVICE USER,Physical Disablity - Cost of Care,Countywide PD Service - Care,Direct Payments
Cambridgeshire County Council,30-Jan-20,51301305079,"-1,759.01",Redacted Personal Data,SERVICE USER,Physical Disablity - Cost of Care,Countywide PD Service - Care,Direct Payments
Cambridgeshire County Council,30-Jan-20,51301305079,"-1,759.01",Redacted Personal Data,SERVICE USER,Physical Disablity - Cost of Care,Countywide PD Service - Care,Direct Payments
Cambridgeshire County Council,30-Jan-20,51301305079,"-1,759.01",Redacted Personal Data,SERVICE USER,Physical Disablity - Cost of Care,Countywide PD Service - Care,Direct Payments
Cambridgeshire County Council,30-Jan-20,51301305079,"-1,759.01",Redacted Personal Data,SERVICE USER,Physical Disablity - Cost of Care,Countywide PD Service - Care,Direct Payments
Cambridgeshire County Council,30-Jan-20,51301305079,"-1,759.01",Redacted Personal Data,SERVICE USER,Physical Disablity - Cost of Care,Countywide PD Service - Care,Direct Payments
Cambridgeshire County Council,30-Jan-20,51301305079,"-1,759.01",Redacted Personal Data,SERVICE USER,Physical Disablity - Cost of Care,Countywide PD Service - Care,Direct Payments
Cambridgeshire County Council,30-Jan-20,51301305079,"-1,759.01",Redacted Personal Data,SERVICE USER,Physical Disablity - Cost of Care,Countywide PD Service - Care,Direct Payments
Cambridgeshire County Council,30-Jan-20,51301305079,"-1,759.01",Redacted Personal Data,SERVICE USER,Physical Disablity - Cost of Care,Countywide PD Service - Care,Direct Payments
Cambridgeshire County Council,30-Jan-20,51301305079,"-1,759.01",Redacted Personal Data,SERVICE USER,Physical Disablity - Cost of Care,Countywide PD Service - Care,Direct Payments
Cambridgeshire County Council,30-Jan-20,51301305079,"-1,759.01",Redacted Personal Data,SERVICE USER,Physical Disablity - Cost of Care,Countywide PD Service - Care,Direct Payments
Cambridgeshire County Council,23-Jan-20,51301301272,"-1,711.66",CONQUEST CARE HOMES PETERBOROUGH,CARE ESTABLISHMENT,LD - Hunts Locality - Cost of Care,LD - Huntingdonshire - Special Needs,Residential Care
Cambridgeshire County Council,23-Jan-20,51301301272,"-1,711.66",CONQUEST CARE HOMES PETERBOROUGH,CARE ESTABLISHMENT,LD - Hunts Locality - Cost of Care,LD - Huntingdonshire - Special Needs,Residential Care
Cambridgeshire County Council,23-Jan-20,51301300808,"-1,674.55",CONQUEST CARE HOMES PETERBOROUGH,CARE ESTABLISHMENT,LD - Fenland Locality - Cost of Care,LD - Fenland  - Special Needs,Residential Care
Cambridgeshire County Council,23-Jan-20,51301300808,"-1,674.55",CONQUEST CARE HOMES PETERBOROUGH,CARE ESTABLISHMENT,LD - Fenland Locality - Cost of Care,LD - Fenland  - Special Needs,Residential Care
Cambridgeshire County Council,23-Jan-20,51301300808,"-1,674.55",CONQUEST CARE HOMES PETERBOROUGH,CARE ESTABLISHMENT,LD - Fenland Locality - Cost of Care,LD - Fenland  - Special Needs,Residential Care
Cambridgeshire County Council,23-Jan-20,51301300808,"-1,674.55",CONQUEST CARE HOMES PETERBOROUGH,CARE ESTABLISHMENT,LD - Fenland Locality - Cost of Care,LD - Fenland  - Special Needs,Residential Care
Cambridgeshire County Council,23-Jan-20,51301300808,"-1,674.55",CONQUEST CARE HOMES PETERBOROUGH,CARE ESTABLISHMENT,LD - Fenland Locality - Cost of Care,LD - Fenland  - Special Needs,Residential Care
Cambridgeshire County Council,23-Jan-20,51301300808,"-1,674.55",CONQUEST CARE HOMES PETERBOROUGH,CARE ESTABLISHMENT,LD - Fenland Locality - Cost of Care,LD - Fenland  - Special Needs,Residential Care
Cambridgeshire County Council,23-Jan-20,51301300808,"-1,674.55",CONQUEST CARE HOMES PETERBOROUGH,CARE ESTABLISHMENT,LD - Fenland Locality - Cost of Care,LD - Fenland  - Special Needs,Residential Care
Cambridgeshire County Council,23-Jan-20,51301300808,"-1,674.55",CONQUEST CARE HOMES PETERBOROUGH,CARE ESTABLISHMENT,LD - Fenland Locality - Cost of Care,LD - Fenland  - Special Needs,Residential Care
Cambridgeshire County Council,23-Jan-20,51301300808,"-1,674.55",CONQUEST CARE HOMES PETERBOROUGH,CARE ESTABLISHMENT,LD - Fenland Locality - Cost of Care,LD - Fenland  - Special Needs,Residential Care
Cambridgeshire County Council,23-Jan-20,51301300808,"-1,674.55",CONQUEST CARE HOMES PETERBOROUGH,CARE ESTABLISHMENT,LD - Fenland Locality - Cost of Care,LD - Fenland  - Special Needs,Residential Care
Cambridgeshire County Council,23-Jan-20,51301300808,"-1,674.55",CONQUEST CARE HOMES PETERBOROUGH,CARE ESTABLISHMENT,LD - Fenland Locality - Cost of Care,LD - Fenland  - Special Needs,Residential Care
Cambridgeshire County Council,23-Jan-20,51301300808,"-1,674.55",CONQUEST CARE HOMES PETERBOROUGH,CARE ESTABLISHMENT,LD - Fenland Locality - Cost of Care,LD - Fenland  - Special Needs,Residential Care
Cambridgeshire County Council,23-Jan-20,51301300808,"-1,674.55",CONQUEST CARE HOMES PETERBOROUGH,CARE ESTABLISHMENT,LD - Fenland Locality - Cost of Care,LD - Fenland  - Special Needs,Residential Care
Cambridgeshire County Council,23-Jan-20,51301300808,"-1,674.55",CONQUEST CARE HOMES PETERBOROUGH,CARE ESTABLISHMENT,LD - Fenland Locality - Cost of Care,LD - Fenland  - Special Needs,Residential Care
Cambridgeshire County Council,23-Jan-20,51301300808,"-1,674.55",CONQUEST CARE HOMES PETERBOROUGH,CARE ESTABLISHMENT,LD - Fenland Locality - Cost of Care,LD - Fenland  - Special Needs,Residential Care
Cambridgeshire County Council,23-Jan-20,51301300808,"-1,674.55",CONQUEST CARE HOMES PETERBOROUGH,CARE ESTABLISHMENT,LD - Fenland Locality - Cost of Care,LD - Fenland  - Special Needs,Residential Care
Cambridgeshire County Council,23-Jan-20,51301300808,"-1,674.55",CONQUEST CARE HOMES PETERBOROUGH,CARE ESTABLISHMENT,LD - Fenland Locality - Cost of Care,LD - Fenland  - Special Needs,Residential Care
Cambridgeshire County Council,23-Jan-20,51301300808,"-1,674.55",CONQUEST CARE HOMES PETERBOROUGH,CARE ESTABLISHMENT,LD - Fenland Locality - Cost of Care,LD - Fenland  - Special Needs,Residential Care
Cambridgeshire County Council,23-Jan-20,51301300808,"-1,674.55",CONQUEST CARE HOMES PETERBOROUGH,CARE ESTABLISHMENT,LD - Fenland Locality - Cost of Care,LD - Fenland  - Special Needs,Residential Care
Cambridgeshire County Council,23-Jan-20,51301300808,"-1,674.55",CONQUEST CARE HOMES PETERBOROUGH,CARE ESTABLISHMENT,LD - Fenland Locality - Cost of Care,LD - Fenland  - Special Needs,Residential Care
Cambridgeshire County Council,23-Jan-20,51301300808,"-1,674.55",CONQUEST CARE HOMES PETERBOROUGH,CARE ESTABLISHMENT,LD - Fenland Locality - Cost of Care,LD - Fenland  - Special Needs,Residential Care
Cambridgeshire County Council,23-Jan-20,51301300808,"-1,674.55",CONQUEST CARE HOMES PETERBOROUGH,CARE ESTABLISHMENT,LD - Fenland Locality - Cost of Care,LD - Fenland  - Special Needs,Residential Care
Cambridgeshire County Council,23-Jan-20,51301300808,"-1,674.55",CONQUEST CARE HOMES PETERBOROUGH,CARE ESTABLISHMENT,LD - Fenland Locality - Cost of Care,LD - Fenland  - Special Needs,Residential Care
Cambridgeshire County Council,23-Jan-20,51301300808,"-1,674.55",CONQUEST CARE HOMES PETERBOROUGH,CARE ESTABLISHMENT,LD - Fenland Locality - Cost of Care,LD - Fenland  - Special Needs,Residential Care
Cambridgeshire County Council,23-Jan-20,51301300808,"-1,674.55",CONQUEST CARE HOMES PETERBOROUGH,CARE ESTABLISHMENT,LD - Fenland Locality - Cost of Care,LD - Fenland  - Special Needs,Residential Care
Cambridgeshire County Council,23-Jan-20,51301300808,"-1,674.55",CONQUEST CARE HOMES PETERBOROUGH,CARE ESTABLISHMENT,LD - Fenland Locality - Cost of Care,LD - Fenland  - Special Needs,Residential Care
Cambridgeshire County Council,23-Jan-20,51301300808,"-1,674.55",CONQUEST CARE HOMES PETERBOROUGH,CARE ESTABLISHMENT,LD - Fenland Locality - Cost of Care,LD - Fenland  - Special Needs,Residential Care
Cambridgeshire County Council,23-Jan-20,51301300808,"-1,674.55",CONQUEST CARE HOMES PETERBOROUGH,CARE ESTABLISHMENT,LD - Fenland Locality - Cost of Care,LD - Fenland  - Special Needs,Residential Care
Cambridgeshire County Council,23-Jan-20,51301300808,"-1,674.55",CONQUEST CARE HOMES PETERBOROUGH,CARE ESTABLISHMENT,LD - Fenland Locality - Cost of Care,LD - Fenland  - Special Needs,Residential Care
Cambridgeshire County Council,23-Jan-20,51301300808,"-1,674.55",CONQUEST CARE HOMES PETERBOROUGH,CARE ESTABLISHMENT,LD - Fenland Locality - Cost of Care,LD - Fenland  - Special Needs,Residential Care
Cambridgeshire County Council,23-Jan-20,51301300808,"-1,674.55",CONQUEST CARE HOMES PETERBOROUGH,CARE ESTABLISHMENT,LD - Fenland Locality - Cost of Care,LD - Fenland  - Special Needs,Residential Care
Cambridgeshire County Council,23-Jan-20,51301300808,"-1,674.55",CONQUEST CARE HOMES PETERBOROUGH,CARE ESTABLISHMENT,LD - Fenland Locality - Cost of Care,LD - Fenland  - Special Needs,Residential Care
Cambridgeshire County Council,23-Jan-20,51301300808,"-1,674.55",CONQUEST CARE HOMES PETERBOROUGH,CARE ESTABLISHMENT,LD - Fenland Locality - Cost of Care,LD - Fenland  - Special Needs,Residential Care
Cambridgeshire County Council,23-Jan-20,51301300808,"-1,674.55",CONQUEST CARE HOMES PETERBOROUGH,CARE ESTABLISHMENT,LD - Fenland Locality - Cost of Care,LD - Fenland  - Special Needs,Residential Care
Cambridgeshire County Council,23-Jan-20,51301300808,"-1,674.55",CONQUEST CARE HOMES PETERBOROUGH,CARE ESTABLISHMENT,LD - Fenland Locality - Cost of Care,LD - Fenland  - Special Needs,Residential Care
Cambridgeshire County Council,23-Jan-20,51301300808,"-1,674.55",CONQUEST CARE HOMES PETERBOROUGH,CARE ESTABLISHMENT,LD - Fenland Locality - Cost of Care,LD - Fenland  - Special Needs,Residential Care
Cambridgeshire County Council,23-Jan-20,51301300808,"-1,674.55",CONQUEST CARE HOMES PETERBOROUGH,CARE ESTABLISHMENT,LD - Fenland Locality - Cost of Care,LD - Fenland  - Special Needs,Residential Care
Cambridgeshire County Council,23-Jan-20,51301300808,"-1,674.55",CONQUEST CARE HOMES PETERBOROUGH,CARE ESTABLISHMENT,LD - Fenland Locality - Cost of Care,LD - Fenland  - Special Needs,Residential Care
Cambridgeshire County Council,23-Jan-20,51301300808,"-1,674.55",CONQUEST CARE HOMES PETERBOROUGH,CARE ESTABLISHMENT,LD - Fenland Locality - Cost of Care,LD - Fenland  - Special Needs,Residential Care
Cambridgeshire County Council,23-Jan-20,51301300808,"-1,674.55",CONQUEST CARE HOMES PETERBOROUGH,CARE ESTABLISHMENT,LD - Fenland Locality - Cost of Care,LD - Fenland  - Special Needs,Residential Care
Cambridgeshire County Council,23-Jan-20,51301300808,"-1,674.55",CONQUEST CARE HOMES PETERBOROUGH,CARE ESTABLISHMENT,LD - Fenland Locality - Cost of Care,LD - Fenland  - Special Needs,Residential Care
Cambridgeshire County Council,23-Jan-20,51301300808,"-1,674.55",CONQUEST CARE HOMES PETERBOROUGH,CARE ESTABLISHMENT,LD - Fenland Locality - Cost of Care,LD - Fenland  - Special Needs,Residential Care
Cambridgeshire County Council,23-Jan-20,51301300808,"-1,674.55",CONQUEST CARE HOMES PETERBOROUGH,CARE ESTABLISHMENT,LD - Fenland Locality - Cost of Care,LD - Fenland  - Special Needs,Residential Care
Cambridgeshire County Council,29-Jan-20,51301303466,"-1,665.00",ETHELDRED HOUSE,CARE ESTABLISHMENT,OP - City & South Blocks,City and South - Long term blocks,Residential Care
Cambridgeshire County Council,23-Jan-20,51301301000,"-1,634.04",GLENHOLME HEALTHCARE LTD,CARE ESTABLISHMENT,LD - Young Adults Team,LD - Young Adults - Care,Residential Care
Cambridgeshire County Council,23-Jan-20,51301301000,"-1,634.04",GLENHOLME HEALTHCARE LTD,CARE ESTABLISHMENT,LD - Young Adults Team,LD - Young Adults - Care,Residential Care
Cambridgeshire County Council,23-Jan-20,51301301000,"-1,634.04",GLENHOLME HEALTHCARE LTD,CARE ESTABLISHMENT,LD - Young Adults Team,LD - Young Adults - Care,Residential Care
Cambridgeshire County Council,23-Jan-20,51301301000,"-1,634.04",GLENHOLME HEALTHCARE LTD,CARE ESTABLISHMENT,LD - Young Adults Team,LD - Young Adults - Care,Residential Care
Cambridgeshire County Council,23-Jan-20,51301301000,"-1,634.04",GLENHOLME HEALTHCARE LTD,CARE ESTABLISHMENT,LD - Young Adults Team,LD - Young Adults - Care,Residential Care
Cambridgeshire County Council,23-Jan-20,51301301000,"-1,634.04",GLENHOLME HEALTHCARE LTD,CARE ESTABLISHMENT,LD - Young Adults Team,LD - Young Adults - Care,Residential Care
Cambridgeshire County Council,23-Jan-20,51301301000,"-1,634.04",GLENHOLME HEALTHCARE LTD,CARE ESTABLISHMENT,LD - Young Adults Team,LD - Young Adults - Care,Residential Care
Cambridgeshire County Council,23-Jan-20,51301301000,"-1,634.04",GLENHOLME HEALTHCARE LTD,CARE ESTABLISHMENT,LD - Young Adults Team,LD - Young Adults - Care,Residential Care
Cambridgeshire County Council,23-Jan-20,51301301000,"-1,634.04",GLENHOLME HEALTHCARE LTD,CARE ESTABLISHMENT,LD - Young Adults Team,LD - Young Adults - Care,Residential Care
Cambridgeshire County Council,23-Jan-20,51301301000,"-1,634.04",GLENHOLME HEALTHCARE LTD,CARE ESTABLISHMENT,LD - Young Adults Team,LD - Young Adults - Care,Residential Care
Cambridgeshire County Council,23-Jan-20,51301301000,"-1,634.04",GLENHOLME HEALTHCARE LTD,CARE ESTABLISHMENT,LD - Young Adults Team,LD - Young Adults - Care,Residential Care
Cambridgeshire County Council,23-Jan-20,51301301000,"-1,634.04",GLENHOLME HEALTHCARE LTD,CARE ESTABLISHMENT,LD - Young Adults Team,LD - Young Adults - Care,Residential Care
Cambridgeshire County Council,23-Jan-20,51301301000,"-1,634.04",GLENHOLME HEALTHCARE LTD,CARE ESTABLISHMENT,LD - Young Adults Team,LD - Young Adults - Care,Residential Care
Cambridgeshire County Council,23-Jan-20,51301301000,"-1,634.04",GLENHOLME HEALTHCARE LTD,CARE ESTABLISHMENT,LD - Young Adults Team,LD - Young Adults - Care,Residential Care
Cambridgeshire County Council,23-Jan-20,51301301000,"-1,634.04",GLENHOLME HEALTHCARE LTD,CARE ESTABLISHMENT,LD - Young Adults Team,LD - Young Adults - Care,Residential Care
Cambridgeshire County Council,23-Jan-20,51301301000,"-1,634.04",GLENHOLME HEALTHCARE LTD,CARE ESTABLISHMENT,LD - Young Adults Team,LD - Young Adults - Care,Residential Care
Cambridgeshire County Council,23-Jan-20,51301301000,"-1,634.04",GLENHOLME HEALTHCARE LTD,CARE ESTABLISHMENT,LD - Young Adults Team,LD - Young Adults - Care,Residential Care
Cambridgeshire County Council,23-Jan-20,51301301000,"-1,634.04",GLENHOLME HEALTHCARE LTD,CARE ESTABLISHMENT,LD - Young Adults Team,LD - Young Adults - Care,Residential Care
Cambridgeshire County Council,23-Jan-20,51301301000,"-1,634.04",GLENHOLME HEALTHCARE LTD,CARE ESTABLISHMENT,LD - Young Adults Team,LD - Young Adults - Care,Residential Care
Cambridgeshire County Council,23-Jan-20,51301301000,"-1,634.04",GLENHOLME HEALTHCARE LTD,CARE ESTABLISHMENT,LD - Young Adults Team,LD - Young Adults - Care,Residential Care
Cambridgeshire County Council,23-Jan-20,51301301000,"-1,634.04",GLENHOLME HEALTHCARE LTD,CARE ESTABLISHMENT,LD - Young Adults Team,LD - Young Adults - Care,Residential Care
Cambridgeshire County Council,23-Jan-20,51301301000,"-1,634.04",GLENHOLME HEALTHCARE LTD,CARE ESTABLISHMENT,LD - Young Adults Team,LD - Young Adults - Care,Residential Care
Cambridgeshire County Council,23-Jan-20,51301301000,"-1,634.04",GLENHOLME HEALTHCARE LTD,CARE ESTABLISHMENT,LD - Young Adults Team,LD - Young Adults - Care,Residential Care
Cambridgeshire County Council,23-Jan-20,51301301000,"-1,634.04",GLENHOLME HEALTHCARE LTD,CARE ESTABLISHMENT,LD - Young Adults Team,LD - Young Adults - Care,Residential Care
Cambridgeshire County Council,23-Jan-20,51301301000,"-1,634.04",GLENHOLME HEALTHCARE LTD,CARE ESTABLISHMENT,LD - Young Adults Team,LD - Young Adults - Care,Residential Care
Cambridgeshire County Council,23-Jan-20,51301301000,"-1,634.04",GLENHOLME HEALTHCARE LTD,CARE ESTABLISHMENT,LD - Young Adults Team,LD - Young Adults - Care,Residential Care
Cambridgeshire County Council,23-Jan-20,51301301000,"-1,634.04",GLENHOLME HEALTHCARE LTD,CARE ESTABLISHMENT,LD - Young Adults Team,LD - Young Adults - Care,Residential Care
Cambridgeshire County Council,23-Jan-20,51301301000,"-1,634.04",GLENHOLME HEALTHCARE LTD,CARE ESTABLISHMENT,LD - Young Adults Team,LD - Young Adults - Care,Residential Care
Cambridgeshire County Council,23-Jan-20,51301301000,"-1,634.04",GLENHOLME HEALTHCARE LTD,CARE ESTABLISHMENT,LD - Young Adults Team,LD - Young Adults - Care,Residential Care
Cambridgeshire County Council,23-Jan-20,51301301000,"-1,634.04",GLENHOLME HEALTHCARE LTD,CARE ESTABLISHMENT,LD - Young Adults Team,LD - Young Adults - Care,Residential Care
Cambridgeshire County Council,23-Jan-20,51301301000,"-1,634.04",GLENHOLME HEALTHCARE LTD,CARE ESTABLISHMENT,LD - Young Adults Team,LD - Young Adults - Care,Residential Care
Cambridgeshire County Council,23-Jan-20,51301301000,"-1,634.04",GLENHOLME HEALTHCARE LTD,CARE ESTABLISHMENT,LD - Young Adults Team,LD - Young Adults - Care,Residential Care
Cambridgeshire County Council,23-Jan-20,51301301000,"-1,634.04",GLENHOLME HEALTHCARE LTD,CARE ESTABLISHMENT,LD - Young Adults Team,LD - Young Adults - Care,Residential Care
Cambridgeshire County Council,23-Jan-20,51301301000,"-1,634.04",GLENHOLME HEALTHCARE LTD,CARE ESTABLISHMENT,LD - Young Adults Team,LD - Young Adults - Care,Residential Care
Cambridgeshire County Council,23-Jan-20,51301301000,"-1,634.04",GLENHOLME HEALTHCARE LTD,CARE ESTABLISHMENT,LD - Young Adults Team,LD - Young Adults - Care,Residential Care
Cambridgeshire County Council,02-Jan-20,51301292178,"-1,553.58",Heartwood RSC Ltd,CARE ESTABLISHMENT,LAC Placements,Placements - residential homes,Agency Placements - Out of  County
Cambridgeshire County Council,27-Jan-20,51301298247,"-1,542.86",UNIQUE CARE HOMES,CARE ESTABLISHMENT,LAC Placements,Placements - residential homes,Agency Placements - Out of  County
Cambridgeshire County Council,23-Jan-20,51301300796,"-1,525.86",CONQUEST CARE HOMES PETERBOROUGH,CARE ESTABLISHMENT,LD - Fenland Locality - Cost of Care,LD - Fenland  - Special Needs,Residential Care
Cambridgeshire County Council,23-Jan-20,51301300972,"-1,519.20",CONQUEST CARE HOMES PETERBOROUGH,CARE ESTABLISHMENT,LD - Fenland Locality - Cost of Care,LD - Fenland  - Care,Residential Care
Cambridgeshire County Council,23-Jan-20,51301300972,"-1,519.20",CONQUEST CARE HOMES PETERBOROUGH,CARE ESTABLISHMENT,LD - Fenland Locality - Cost of Care,LD - Fenland  - Care,Residential Care
Cambridgeshire County Council,23-Jan-20,51301300972,"-1,519.20",CONQUEST CARE HOMES PETERBOROUGH,CARE ESTABLISHMENT,LD - Fenland Locality - Cost of Care,LD - Fenland  - Care,Residential Care
Cambridgeshire County Council,23-Jan-20,51301300972,"-1,519.20",CONQUEST CARE HOMES PETERBOROUGH,CARE ESTABLISHMENT,LD - Fenland Locality - Cost of Care,LD - Fenland  - Care,Residential Care
Cambridgeshire County Council,23-Jan-20,51301300972,"-1,519.20",CONQUEST CARE HOMES PETERBOROUGH,CARE ESTABLISHMENT,LD - Fenland Locality - Cost of Care,LD - Fenland  - Care,Residential Care
Cambridgeshire County Council,23-Jan-20,51301300972,"-1,519.20",CONQUEST CARE HOMES PETERBOROUGH,CARE ESTABLISHMENT,LD - Fenland Locality - Cost of Care,LD - Fenland  - Care,Residential Care
Cambridgeshire County Council,23-Jan-20,51301300972,"-1,519.20",CONQUEST CARE HOMES PETERBOROUGH,CARE ESTABLISHMENT,LD - Fenland Locality - Cost of Care,LD - Fenland  - Care,Residential Care
Cambridgeshire County Council,23-Jan-20,51301300972,"-1,519.20",CONQUEST CARE HOMES PETERBOROUGH,CARE ESTABLISHMENT,LD - Fenland Locality - Cost of Care,LD - Fenland  - Care,Residential Care
Cambridgeshire County Council,23-Jan-20,51301300972,"-1,519.20",CONQUEST CARE HOMES PETERBOROUGH,CARE ESTABLISHMENT,LD - Fenland Locality - Cost of Care,LD - Fenland  - Care,Residential Care
Cambridgeshire County Council,23-Jan-20,51301300972,"-1,519.20",CONQUEST CARE HOMES PETERBOROUGH,CARE ESTABLISHMENT,LD - Fenland Locality - Cost of Care,LD - Fenland  - Care,Residential Care
Cambridgeshire County Council,23-Jan-20,51301300972,"-1,519.20",CONQUEST CARE HOMES PETERBOROUGH,CARE ESTABLISHMENT,LD - Fenland Locality - Cost of Care,LD - Fenland  - Care,Residential Care
Cambridgeshire County Council,23-Jan-20,51301300972,"-1,519.20",CONQUEST CARE HOMES PETERBOROUGH,CARE ESTABLISHMENT,LD - Fenland Locality - Cost of Care,LD - Fenland  - Care,Residential Care
Cambridgeshire County Council,23-Jan-20,51301300972,"-1,519.20",CONQUEST CARE HOMES PETERBOROUGH,CARE ESTABLISHMENT,LD - Fenland Locality - Cost of Care,LD - Fenland  - Care,Residential Care
Cambridgeshire County Council,23-Jan-20,51301300972,"-1,519.20",CONQUEST CARE HOMES PETERBOROUGH,CARE ESTABLISHMENT,LD - Fenland Locality - Cost of Care,LD - Fenland  - Care,Residential Care
Cambridgeshire County Council,23-Jan-20,51301300972,"-1,519.20",CONQUEST CARE HOMES PETERBOROUGH,CARE ESTABLISHMENT,LD - Fenland Locality - Cost of Care,LD - Fenland  - Care,Residential Care
Cambridgeshire County Council,23-Jan-20,51301300972,"-1,519.20",CONQUEST CARE HOMES PETERBOROUGH,CARE ESTABLISHMENT,LD - Fenland Locality - Cost of Care,LD - Fenland  - Care,Residential Care
Cambridgeshire County Council,23-Jan-20,51301300972,"-1,519.20",CONQUEST CARE HOMES PETERBOROUGH,CARE ESTABLISHMENT,LD - Fenland Locality - Cost of Care,LD - Fenland  - Care,Residential Care
Cambridgeshire County Council,23-Jan-20,51301300972,"-1,519.20",CONQUEST CARE HOMES PETERBOROUGH,CARE ESTABLISHMENT,LD - Fenland Locality - Cost of Care,LD - Fenland  - Care,Residential Care
Cambridgeshire County Council,23-Jan-20,51301300972,"-1,519.20",CONQUEST CARE HOMES PETERBOROUGH,CARE ESTABLISHMENT,LD - Fenland Locality - Cost of Care,LD - Fenland  - Care,Residential Care
Cambridgeshire County Council,23-Jan-20,51301300972,"-1,519.20",CONQUEST CARE HOMES PETERBOROUGH,CARE ESTABLISHMENT,LD - Fenland Locality - Cost of Care,LD - Fenland  - Care,Residential Care
Cambridgeshire County Council,23-Jan-20,51301300972,"-1,519.20",CONQUEST CARE HOMES PETERBOROUGH,CARE ESTABLISHMENT,LD - Fenland Locality - Cost of Care,LD - Fenland  - Care,Residential Care
Cambridgeshire County Council,23-Jan-20,51301300972,"-1,519.20",CONQUEST CARE HOMES PETERBOROUGH,CARE ESTABLISHMENT,LD - Fenland Locality - Cost of Care,LD - Fenland  - Care,Residential Care
Cambridgeshire County Council,23-Jan-20,51301300972,"-1,519.20",CONQUEST CARE HOMES PETERBOROUGH,CARE ESTABLISHMENT,LD - Fenland Locality - Cost of Care,LD - Fenland  - Care,Residential Care
Cambridgeshire County Council,23-Jan-20,51301300972,"-1,519.20",CONQUEST CARE HOMES PETERBOROUGH,CARE ESTABLISHMENT,LD - Fenland Locality - Cost of Care,LD - Fenland  - Care,Residential Care
Cambridgeshire County Council,24-Jan-20,51301301977,"-1,518.75",GUYATT HOUSE CARE LTD,CARE ESTABLISHMENT,LD - Young Adults Team,LD - Young Adults - Care,Supported Living
Cambridgeshire County Council,24-Jan-20,51301301977,"-1,518.75",GUYATT HOUSE CARE LTD,CARE ESTABLISHMENT,LD - Young Adults Team,LD - Young Adults - Care,Supported Living
Cambridgeshire County Council,24-Jan-20,51301301977,"-1,518.75",GUYATT HOUSE CARE LTD,CARE ESTABLISHMENT,LD - Young Adults Team,LD - Young Adults - Care,Supported Living
Cambridgeshire County Council,24-Jan-20,51301301977,"-1,518.75",GUYATT HOUSE CARE LTD,CARE ESTABLISHMENT,LD - Young Adults Team,LD - Young Adults - Care,Supported Living
Cambridgeshire County Council,24-Jan-20,51301301977,"-1,518.75",GUYATT HOUSE CARE LTD,CARE ESTABLISHMENT,LD - Young Adults Team,LD - Young Adults - Care,Supported Living
Cambridgeshire County Council,24-Jan-20,51301301977,"-1,518.75",GUYATT HOUSE CARE LTD,CARE ESTABLISHMENT,LD - Young Adults Team,LD - Young Adults - Care,Supported Living
Cambridgeshire County Council,24-Jan-20,51301301977,"-1,518.75",GUYATT HOUSE CARE LTD,CARE ESTABLISHMENT,LD - Young Adults Team,LD - Young Adults - Care,Supported Living
Cambridgeshire County Council,24-Jan-20,51301301977,"-1,518.75",GUYATT HOUSE CARE LTD,CARE ESTABLISHMENT,LD - Young Adults Team,LD - Young Adults - Care,Supported Living
Cambridgeshire County Council,24-Jan-20,51301301977,"-1,518.75",GUYATT HOUSE CARE LTD,CARE ESTABLISHMENT,LD - Young Adults Team,LD - Young Adults - Care,Supported Living
Cambridgeshire County Council,24-Jan-20,51301301977,"-1,518.75",GUYATT HOUSE CARE LTD,CARE ESTABLISHMENT,LD - Young Adults Team,LD - Young Adults - Care,Supported Living
Cambridgeshire County Council,24-Jan-20,51301301977,"-1,518.75",GUYATT HOUSE CARE LTD,CARE ESTABLISHMENT,LD - Young Adults Team,LD - Young Adults - Care,Supported Living
Cambridgeshire County Council,24-Jan-20,51301301977,"-1,518.75",GUYATT HOUSE CARE LTD,CARE ESTABLISHMENT,LD - Young Adults Team,LD - Young Adults - Care,Supported Living
Cambridgeshire County Council,24-Jan-20,51301301977,"-1,518.75",GUYATT HOUSE CARE LTD,CARE ESTABLISHMENT,LD - Young Adults Team,LD - Young Adults - Care,Supported Living
Cambridgeshire County Council,24-Jan-20,51301301977,"-1,518.75",GUYATT HOUSE CARE LTD,CARE ESTABLISHMENT,LD - Young Adults Team,LD - Young Adults - Care,Supported Living
Cambridgeshire County Council,23-Jan-20,51301300780,"-1,510.50",BROAD OAKS VCT LTD,CARE ESTABLISHMENT,LD - Fenland Locality - Cost of Care,LD - Fenland  - Special Needs,Residential Care
Cambridgeshire County Council,23-Jan-20,51301300780,"-1,510.50",BROAD OAKS VCT LTD,CARE ESTABLISHMENT,LD - Fenland Locality - Cost of Care,LD - Fenland  - Special Needs,Residential Care
Cambridgeshire County Council,23-Jan-20,51301300780,"-1,510.50",BROAD OAKS VCT LTD,CARE ESTABLISHMENT,LD - Fenland Locality - Cost of Care,LD - Fenland  - Special Needs,Residential Care
Cambridgeshire County Council,23-Jan-20,51301300780,"-1,510.50",BROAD OAKS VCT LTD,CARE ESTABLISHMENT,LD - Fenland Locality - Cost of Care,LD - Fenland  - Special Needs,Residential Care
Cambridgeshire County Council,23-Jan-20,51301300780,"-1,510.50",BROAD OAKS VCT LTD,CARE ESTABLISHMENT,LD - Fenland Locality - Cost of Care,LD - Fenland  - Special Needs,Residential Care
Cambridgeshire County Council,23-Jan-20,51301300780,"-1,510.50",BROAD OAKS VCT LTD,CARE ESTABLISHMENT,LD - Fenland Locality - Cost of Care,LD - Fenland  - Special Needs,Residential Care
Cambridgeshire County Council,23-Jan-20,51301301150,"-1,507.75",CONQUEST CARE HOMES PETERBOROUGH,CARE ESTABLISHMENT,LD - Hunts Locality - Cost of Care,LD - Huntingdonshire - Care,Residential Care
Cambridgeshire County Council,23-Jan-20,51301300778,"-1,471.71",CONQUEST CARE HOMES PETERBOROUGH,CARE ESTABLISHMENT,Physical Disablity - Cost of Care,Countywide PD Service - Care,Residential Care
Cambridgeshire County Council,23-Jan-20,51301300778,"-1,471.71",CONQUEST CARE HOMES PETERBOROUGH,CARE ESTABLISHMENT,Physical Disablity - Cost of Care,Countywide PD Service - Care,Residential Care
Cambridgeshire County Council,23-Jan-20,51301300778,"-1,471.71",CONQUEST CARE HOMES PETERBOROUGH,CARE ESTABLISHMENT,Physical Disablity - Cost of Care,Countywide PD Service - Care,Residential Care
Cambridgeshire County Council,23-Jan-20,51301300778,"-1,471.71",CONQUEST CARE HOMES PETERBOROUGH,CARE ESTABLISHMENT,Physical Disablity - Cost of Care,Countywide PD Service - Care,Residential Care
Cambridgeshire County Council,23-Jan-20,51301300778,"-1,471.71",CONQUEST CARE HOMES PETERBOROUGH,CARE ESTABLISHMENT,Physical Disablity - Cost of Care,Countywide PD Service - Care,Residential Care
Cambridgeshire County Council,23-Jan-20,51301300778,"-1,471.71",CONQUEST CARE HOMES PETERBOROUGH,CARE ESTABLISHMENT,Physical Disablity - Cost of Care,Countywide PD Service - Care,Residential Care
Cambridgeshire County Council,23-Jan-20,51301300778,"-1,471.71",CONQUEST CARE HOMES PETERBOROUGH,CARE ESTABLISHMENT,Physical Disablity - Cost of Care,Countywide PD Service - Care,Residential Care
Cambridgeshire County Council,23-Jan-20,51301300778,"-1,471.71",CONQUEST CARE HOMES PETERBOROUGH,CARE ESTABLISHMENT,Physical Disablity - Cost of Care,Countywide PD Service - Care,Residential Care
Cambridgeshire County Council,23-Jan-20,51301300778,"-1,471.71",CONQUEST CARE HOMES PETERBOROUGH,CARE ESTABLISHMENT,Physical Disablity - Cost of Care,Countywide PD Service - Care,Residential Care
Cambridgeshire County Council,23-Jan-20,51301300778,"-1,471.71",CONQUEST CARE HOMES PETERBOROUGH,CARE ESTABLISHMENT,Physical Disablity - Cost of Care,Countywide PD Service - Care,Residential Care
Cambridgeshire County Council,23-Jan-20,51301300778,"-1,471.71",CONQUEST CARE HOMES PETERBOROUGH,CARE ESTABLISHMENT,Physical Disablity - Cost of Care,Countywide PD Service - Care,Residential Care
Cambridgeshire County Council,23-Jan-20,51301300778,"-1,471.71",CONQUEST CARE HOMES PETERBOROUGH,CARE ESTABLISHMENT,Physical Disablity - Cost of Care,Countywide PD Service - Care,Residential Care
Cambridgeshire County Council,23-Jan-20,51301300778,"-1,471.71",CONQUEST CARE HOMES PETERBOROUGH,CARE ESTABLISHMENT,Physical Disablity - Cost of Care,Countywide PD Service - Care,Residential Care
Cambridgeshire County Council,23-Jan-20,51301300778,"-1,471.71",CONQUEST CARE HOMES PETERBOROUGH,CARE ESTABLISHMENT,Physical Disablity - Cost of Care,Countywide PD Service - Care,Residential Care
Cambridgeshire County Council,23-Jan-20,51301300778,"-1,471.71",CONQUEST CARE HOMES PETERBOROUGH,CARE ESTABLISHMENT,Physical Disablity - Cost of Care,Countywide PD Service - Care,Residential Care
Cambridgeshire County Council,23-Jan-20,51301300778,"-1,471.71",CONQUEST CARE HOMES PETERBOROUGH,CARE ESTABLISHMENT,Physical Disablity - Cost of Care,Countywide PD Service - Care,Residential Care
Cambridgeshire County Council,23-Jan-20,51301300778,"-1,471.71",CONQUEST CARE HOMES PETERBOROUGH,CARE ESTABLISHMENT,Physical Disablity - Cost of Care,Countywide PD Service - Care,Residential Care
Cambridgeshire County Council,23-Jan-20,51301300778,"-1,471.71",CONQUEST CARE HOMES PETERBOROUGH,CARE ESTABLISHMENT,Physical Disablity - Cost of Care,Countywide PD Service - Care,Residential Care
Cambridgeshire County Council,23-Jan-20,51301300778,"-1,471.71",CONQUEST CARE HOMES PETERBOROUGH,CARE ESTABLISHMENT,Physical Disablity - Cost of Care,Countywide PD Service - Care,Residential Care
Cambridgeshire County Council,23-Jan-20,51301300778,"-1,471.71",CONQUEST CARE HOMES PETERBOROUGH,CARE ESTABLISHMENT,Physical Disablity - Cost of Care,Countywide PD Service - Care,Residential Care
Cambridgeshire County Council,23-Jan-20,51301300778,"-1,471.71",CONQUEST CARE HOMES PETERBOROUGH,CARE ESTABLISHMENT,Physical Disablity - Cost of Care,Countywide PD Service - Care,Residential Care
Cambridgeshire County Council,23-Jan-20,51301300778,"-1,471.71",CONQUEST CARE HOMES PETERBOROUGH,CARE ESTABLISHMENT,Physical Disablity - Cost of Care,Countywide PD Service - Care,Residential Care
Cambridgeshire County Council,23-Jan-20,51301300778,"-1,471.71",CONQUEST CARE HOMES PETERBOROUGH,CARE ESTABLISHMENT,Physical Disablity - Cost of Care,Countywide PD Service - Care,Residential Care
Cambridgeshire County Council,23-Jan-20,51301300778,"-1,471.71",CONQUEST CARE HOMES PETERBOROUGH,CARE ESTABLISHMENT,Physical Disablity - Cost of Care,Countywide PD Service - Care,Residential Care
Cambridgeshire County Council,23-Jan-20,51301300778,"-1,471.71",CONQUEST CARE HOMES PETERBOROUGH,CARE ESTABLISHMENT,Physical Disablity - Cost of Care,Countywide PD Service - Care,Residential Care
Cambridgeshire County Council,23-Jan-20,51301300778,"-1,471.71",CONQUEST CARE HOMES PETERBOROUGH,CARE ESTABLISHMENT,Physical Disablity - Cost of Care,Countywide PD Service - Care,Residential Care
Cambridgeshire County Council,23-Jan-20,51301300778,"-1,471.71",CONQUEST CARE HOMES PETERBOROUGH,CARE ESTABLISHMENT,Physical Disablity - Cost of Care,Countywide PD Service - Care,Residential Care
Cambridgeshire County Council,23-Jan-20,51301300778,"-1,471.71",CONQUEST CARE HOMES PETERBOROUGH,CARE ESTABLISHMENT,Physical Disablity - Cost of Care,Countywide PD Service - Care,Residential Care
Cambridgeshire County Council,23-Jan-20,51301300778,"-1,471.71",CONQUEST CARE HOMES PETERBOROUGH,CARE ESTABLISHMENT,Physical Disablity - Cost of Care,Countywide PD Service - Care,Residential Care
Cambridgeshire County Council,23-Jan-20,51301300778,"-1,471.71",CONQUEST CARE HOMES PETERBOROUGH,CARE ESTABLISHMENT,Physical Disablity - Cost of Care,Countywide PD Service - Care,Residential Care
Cambridgeshire County Council,23-Jan-20,51301300778,"-1,471.71",CONQUEST CARE HOMES PETERBOROUGH,CARE ESTABLISHMENT,Physical Disablity - Cost of Care,Countywide PD Service - Care,Residential Care
Cambridgeshire County Council,23-Jan-20,51301300778,"-1,471.71",CONQUEST CARE HOMES PETERBOROUGH,CARE ESTABLISHMENT,Physical Disablity - Cost of Care,Countywide PD Service - Care,Residential Care
Cambridgeshire County Council,23-Jan-20,51301300778,"-1,471.71",CONQUEST CARE HOMES PETERBOROUGH,CARE ESTABLISHMENT,Physical Disablity - Cost of Care,Countywide PD Service - Care,Residential Care
Cambridgeshire County Council,23-Jan-20,51301300778,"-1,471.71",CONQUEST CARE HOMES PETERBOROUGH,CARE ESTABLISHMENT,Physical Disablity - Cost of Care,Countywide PD Service - Care,Residential Care
Cambridgeshire County Council,23-Jan-20,51301300778,"-1,471.71",CONQUEST CARE HOMES PETERBOROUGH,CARE ESTABLISHMENT,Physical Disablity - Cost of Care,Countywide PD Service - Care,Residential Care
Cambridgeshire County Council,23-Jan-20,51301300778,"-1,471.71",CONQUEST CARE HOMES PETERBOROUGH,CARE ESTABLISHMENT,Physical Disablity - Cost of Care,Countywide PD Service - Care,Residential Care
Cambridgeshire County Council,23-Jan-20,51301300778,"-1,471.71",CONQUEST CARE HOMES PETERBOROUGH,CARE ESTABLISHMENT,Physical Disablity - Cost of Care,Countywide PD Service - Care,Residential Care
Cambridgeshire County Council,23-Jan-20,51301300778,"-1,471.71",CONQUEST CARE HOMES PETERBOROUGH,CARE ESTABLISHMENT,Physical Disablity - Cost of Care,Countywide PD Service - Care,Residential Care
Cambridgeshire County Council,23-Jan-20,51301300778,"-1,471.71",CONQUEST CARE HOMES PETERBOROUGH,CARE ESTABLISHMENT,Physical Disablity - Cost of Care,Countywide PD Service - Care,Residential Care
Cambridgeshire County Council,23-Jan-20,51301300778,"-1,471.71",CONQUEST CARE HOMES PETERBOROUGH,CARE ESTABLISHMENT,Physical Disablity - Cost of Care,Countywide PD Service - Care,Residential Care
Cambridgeshire County Council,23-Jan-20,51301300778,"-1,471.71",CONQUEST CARE HOMES PETERBOROUGH,CARE ESTABLISHMENT,Physical Disablity - Cost of Care,Countywide PD Service - Care,Residential Care
Cambridgeshire County Council,23-Jan-20,51301300778,"-1,471.71",CONQUEST CARE HOMES PETERBOROUGH,CARE ESTABLISHMENT,Physical Disablity - Cost of Care,Countywide PD Service - Care,Residential Care
Cambridgeshire County Council,23-Jan-20,51301300778,"-1,471.71",CONQUEST CARE HOMES PETERBOROUGH,CARE ESTABLISHMENT,Physical Disablity - Cost of Care,Countywide PD Service - Care,Residential Care
Cambridgeshire County Council,23-Jan-20,51301301641,"-1,459.15",SENSE NATIONAL DEAF & BLIND,CARE ESTABLISHMENT,LD - Fenland Locality - Cost of Care,LD - Fenland  - Care,Residential Care
Cambridgeshire County Council,23-Jan-20,51301301641,"-1,459.15",SENSE NATIONAL DEAF & BLIND,CARE ESTABLISHMENT,LD - Fenland Locality - Cost of Care,LD - Fenland  - Care,Residential Care
Cambridgeshire County Council,23-Jan-20,51301301641,"-1,459.15",SENSE NATIONAL DEAF & BLIND,CARE ESTABLISHMENT,LD - Fenland Locality - Cost of Care,LD - Fenland  - Care,Residential Care
Cambridgeshire County Council,23-Jan-20,51301301641,"-1,459.15",SENSE NATIONAL DEAF & BLIND,CARE ESTABLISHMENT,LD - Fenland Locality - Cost of Care,LD - Fenland  - Care,Residential Care
Cambridgeshire County Council,23-Jan-20,51301301641,"-1,459.15",SENSE NATIONAL DEAF & BLIND,CARE ESTABLISHMENT,LD - Fenland Locality - Cost of Care,LD - Fenland  - Care,Residential Care
Cambridgeshire County Council,23-Jan-20,51301301641,"-1,459.15",SENSE NATIONAL DEAF & BLIND,CARE ESTABLISHMENT,LD - Fenland Locality - Cost of Care,LD - Fenland  - Care,Residential Care
Cambridgeshire County Council,23-Jan-20,51301301641,"-1,459.15",SENSE NATIONAL DEAF & BLIND,CARE ESTABLISHMENT,LD - Fenland Locality - Cost of Care,LD - Fenland  - Care,Residential Care
Cambridgeshire County Council,23-Jan-20,51301301641,"-1,459.15",SENSE NATIONAL DEAF & BLIND,CARE ESTABLISHMENT,LD - Fenland Locality - Cost of Care,LD - Fenland  - Care,Residential Care
Cambridgeshire County Council,23-Jan-20,51301301641,"-1,459.15",SENSE NATIONAL DEAF & BLIND,CARE ESTABLISHMENT,LD - Fenland Locality - Cost of Care,LD - Fenland  - Care,Residential Care
Cambridgeshire County Council,23-Jan-20,51301301641,"-1,459.15",SENSE NATIONAL DEAF & BLIND,CARE ESTABLISHMENT,LD - Fenland Locality - Cost of Care,LD - Fenland  - Care,Residential Care
Cambridgeshire County Council,23-Jan-20,51301301641,"-1,459.15",SENSE NATIONAL DEAF & BLIND,CARE ESTABLISHMENT,LD - Fenland Locality - Cost of Care,LD - Fenland  - Care,Residential Care
Cambridgeshire County Council,23-Jan-20,51301301641,"-1,459.15",SENSE NATIONAL DEAF & BLIND,CARE ESTABLISHMENT,LD - Fenland Locality - Cost of Care,LD - Fenland  - Care,Residential Care
Cambridgeshire County Council,23-Jan-20,51301301641,"-1,459.15",SENSE NATIONAL DEAF & BLIND,CARE ESTABLISHMENT,LD - Fenland Locality - Cost of Care,LD - Fenland  - Care,Residential Care
Cambridgeshire County Council,23-Jan-20,51301301641,"-1,459.15",SENSE NATIONAL DEAF & BLIND,CARE ESTABLISHMENT,LD - Fenland Locality - Cost of Care,LD - Fenland  - Care,Residential Care
Cambridgeshire County Council,23-Jan-20,51301301641,"-1,459.15",SENSE NATIONAL DEAF & BLIND,CARE ESTABLISHMENT,LD - Fenland Locality - Cost of Care,LD - Fenland  - Care,Residential Care
Cambridgeshire County Council,23-Jan-20,51301301641,"-1,459.15",SENSE NATIONAL DEAF & BLIND,CARE ESTABLISHMENT,LD - Fenland Locality - Cost of Care,LD - Fenland  - Care,Residential Care
Cambridgeshire County Council,23-Jan-20,51301301641,"-1,459.15",SENSE NATIONAL DEAF & BLIND,CARE ESTABLISHMENT,LD - Fenland Locality - Cost of Care,LD - Fenland  - Care,Residential Care
Cambridgeshire County Council,23-Jan-20,51301301641,"-1,459.15",SENSE NATIONAL DEAF & BLIND,CARE ESTABLISHMENT,LD - Fenland Locality - Cost of Care,LD - Fenland  - Care,Residential Care
Cambridgeshire County Council,23-Jan-20,51301301641,"-1,459.15",SENSE NATIONAL DEAF & BLIND,CARE ESTABLISHMENT,LD - Fenland Locality - Cost of Care,LD - Fenland  - Care,Residential Care
Cambridgeshire County Council,23-Jan-20,51301301641,"-1,459.15",SENSE NATIONAL DEAF & BLIND,CARE ESTABLISHMENT,LD - Fenland Locality - Cost of Care,LD - Fenland  - Care,Residential Care
Cambridgeshire County Council,23-Jan-20,51301301641,"-1,459.15",SENSE NATIONAL DEAF & BLIND,CARE ESTABLISHMENT,LD - Fenland Locality - Cost of Care,LD - Fenland  - Care,Residential Care
Cambridgeshire County Council,23-Jan-20,51301301641,"-1,459.15",SENSE NATIONAL DEAF & BLIND,CARE ESTABLISHMENT,LD - Fenland Locality - Cost of Care,LD - Fenland  - Care,Residential Care
Cambridgeshire County Council,23-Jan-20,51301301641,"-1,459.15",SENSE NATIONAL DEAF & BLIND,CARE ESTABLISHMENT,LD - Fenland Locality - Cost of Care,LD - Fenland  - Care,Residential Care
Cambridgeshire County Council,23-Jan-20,51301301641,"-1,459.15",SENSE NATIONAL DEAF & BLIND,CARE ESTABLISHMENT,LD - Fenland Locality - Cost of Care,LD - Fenland  - Care,Residential Care
Cambridgeshire County Council,23-Jan-20,51301301166,"-1,436.54",CONQUEST CARE HOMES PETERBOROUGH,CARE ESTABLISHMENT,LD - Hunts Locality - Cost of Care,LD - Huntingdonshire - Special Needs,Residential Care
Cambridgeshire County Council,23-Jan-20,51301301166,"-1,436.54",CONQUEST CARE HOMES PETERBOROUGH,CARE ESTABLISHMENT,LD - Hunts Locality - Cost of Care,LD - Huntingdonshire - Special Needs,Residential Care
Cambridgeshire County Council,23-Jan-20,51301301166,"-1,436.54",CONQUEST CARE HOMES PETERBOROUGH,CARE ESTABLISHMENT,LD - Hunts Locality - Cost of Care,LD - Huntingdonshire - Special Needs,Residential Care
Cambridgeshire County Council,23-Jan-20,51301301166,"-1,436.54",CONQUEST CARE HOMES PETERBOROUGH,CARE ESTABLISHMENT,LD - Hunts Locality - Cost of Care,LD - Huntingdonshire - Special Needs,Residential Care
Cambridgeshire County Council,23-Jan-20,51301301166,"-1,436.54",CONQUEST CARE HOMES PETERBOROUGH,CARE ESTABLISHMENT,LD - Hunts Locality - Cost of Care,LD - Huntingdonshire - Special Needs,Residential Care
Cambridgeshire County Council,23-Jan-20,51301301166,"-1,436.54",CONQUEST CARE HOMES PETERBOROUGH,CARE ESTABLISHMENT,LD - Hunts Locality - Cost of Care,LD - Huntingdonshire - Special Needs,Residential Care
Cambridgeshire County Council,23-Jan-20,51301301166,"-1,436.54",CONQUEST CARE HOMES PETERBOROUGH,CARE ESTABLISHMENT,LD - Hunts Locality - Cost of Care,LD - Huntingdonshire - Special Needs,Residential Care
Cambridgeshire County Council,23-Jan-20,51301301166,"-1,436.54",CONQUEST CARE HOMES PETERBOROUGH,CARE ESTABLISHMENT,LD - Hunts Locality - Cost of Care,LD - Huntingdonshire - Special Needs,Residential Care
Cambridgeshire County Council,23-Jan-20,51301301166,"-1,436.54",CONQUEST CARE HOMES PETERBOROUGH,CARE ESTABLISHMENT,LD - Hunts Locality - Cost of Care,LD - Huntingdonshire - Special Needs,Residential Care
Cambridgeshire County Council,23-Jan-20,51301301166,"-1,436.54",CONQUEST CARE HOMES PETERBOROUGH,CARE ESTABLISHMENT,LD - Hunts Locality - Cost of Care,LD - Huntingdonshire - Special Needs,Residential Care
Cambridgeshire County Council,23-Jan-20,51301301166,"-1,436.54",CONQUEST CARE HOMES PETERBOROUGH,CARE ESTABLISHMENT,LD - Hunts Locality - Cost of Care,LD - Huntingdonshire - Special Needs,Residential Care
Cambridgeshire County Council,23-Jan-20,51301301166,"-1,436.54",CONQUEST CARE HOMES PETERBOROUGH,CARE ESTABLISHMENT,LD - Hunts Locality - Cost of Care,LD - Huntingdonshire - Special Needs,Residential Care
Cambridgeshire County Council,23-Jan-20,51301301166,"-1,436.54",CONQUEST CARE HOMES PETERBOROUGH,CARE ESTABLISHMENT,LD - Hunts Locality - Cost of Care,LD - Huntingdonshire - Special Needs,Residential Care
Cambridgeshire County Council,23-Jan-20,51301301166,"-1,436.54",CONQUEST CARE HOMES PETERBOROUGH,CARE ESTABLISHMENT,LD - Hunts Locality - Cost of Care,LD - Huntingdonshire - Special Needs,Residential Care
Cambridgeshire County Council,23-Jan-20,51301301166,"-1,436.54",CONQUEST CARE HOMES PETERBOROUGH,CARE ESTABLISHMENT,LD - Hunts Locality - Cost of Care,LD - Huntingdonshire - Special Needs,Residential Care
Cambridgeshire County Council,23-Jan-20,51301301166,"-1,436.54",CONQUEST CARE HOMES PETERBOROUGH,CARE ESTABLISHMENT,LD - Hunts Locality - Cost of Care,LD - Huntingdonshire - Special Needs,Residential Care
Cambridgeshire County Council,23-Jan-20,51301301166,"-1,436.54",CONQUEST CARE HOMES PETERBOROUGH,CARE ESTABLISHMENT,LD - Hunts Locality - Cost of Care,LD - Huntingdonshire - Special Needs,Residential Care
Cambridgeshire County Council,23-Jan-20,51301301166,"-1,436.54",CONQUEST CARE HOMES PETERBOROUGH,CARE ESTABLISHMENT,LD - Hunts Locality - Cost of Care,LD - Huntingdonshire - Special Needs,Residential Care
Cambridgeshire County Council,23-Jan-20,51301301166,"-1,436.54",CONQUEST CARE HOMES PETERBOROUGH,CARE ESTABLISHMENT,LD - Hunts Locality - Cost of Care,LD - Huntingdonshire - Special Needs,Residential Care
Cambridgeshire County Council,23-Jan-20,51301301166,"-1,436.54",CONQUEST CARE HOMES PETERBOROUGH,CARE ESTABLISHMENT,LD - Hunts Locality - Cost of Care,LD - Huntingdonshire - Special Needs,Residential Care
Cambridgeshire County Council,23-Jan-20,51301301166,"-1,436.54",CONQUEST CARE HOMES PETERBOROUGH,CARE ESTABLISHMENT,LD - Hunts Locality - Cost of Care,LD - Huntingdonshire - Special Needs,Residential Care
Cambridgeshire County Council,23-Jan-20,51301301166,"-1,436.54",CONQUEST CARE HOMES PETERBOROUGH,CARE ESTABLISHMENT,LD - Hunts Locality - Cost of Care,LD - Huntingdonshire - Special Needs,Residential Care
Cambridgeshire County Council,23-Jan-20,51301301166,"-1,436.54",CONQUEST CARE HOMES PETERBOROUGH,CARE ESTABLISHMENT,LD - Hunts Locality - Cost of Care,LD - Huntingdonshire - Special Needs,Residential Care
Cambridgeshire County Council,23-Jan-20,51301301166,"-1,436.54",CONQUEST CARE HOMES PETERBOROUGH,CARE ESTABLISHMENT,LD - Hunts Locality - Cost of Care,LD - Huntingdonshire - Special Needs,Residential Care
Cambridgeshire County Council,23-Jan-20,51301301166,"-1,436.54",CONQUEST CARE HOMES PETERBOROUGH,CARE ESTABLISHMENT,LD - Hunts Locality - Cost of Care,LD - Huntingdonshire - Special Needs,Residential Care
Cambridgeshire County Council,23-Jan-20,51301301166,"-1,436.54",CONQUEST CARE HOMES PETERBOROUGH,CARE ESTABLISHMENT,LD - Hunts Locality - Cost of Care,LD - Huntingdonshire - Special Needs,Residential Care
Cambridgeshire County Council,23-Jan-20,51301301166,"-1,436.54",CONQUEST CARE HOMES PETERBOROUGH,CARE ESTABLISHMENT,LD - Hunts Locality - Cost of Care,LD - Huntingdonshire - Special Needs,Residential Care
Cambridgeshire County Council,23-Jan-20,51301301166,"-1,436.54",CONQUEST CARE HOMES PETERBOROUGH,CARE ESTABLISHMENT,LD - Hunts Locality - Cost of Care,LD - Huntingdonshire - Special Needs,Residential Care
Cambridgeshire County Council,23-Jan-20,51301301166,"-1,436.54",CONQUEST CARE HOMES PETERBOROUGH,CARE ESTABLISHMENT,LD - Hunts Locality - Cost of Care,LD - Huntingdonshire - Special Needs,Residential Care
Cambridgeshire County Council,23-Jan-20,51301301166,"-1,436.54",CONQUEST CARE HOMES PETERBOROUGH,CARE ESTABLISHMENT,LD - Hunts Locality - Cost of Care,LD - Huntingdonshire - Special Needs,Residential Care
Cambridgeshire County Council,23-Jan-20,51301301166,"-1,436.54",CONQUEST CARE HOMES PETERBOROUGH,CARE ESTABLISHMENT,LD - Hunts Locality - Cost of Care,LD - Huntingdonshire - Special Needs,Residential Care
Cambridgeshire County Council,23-Jan-20,51301301166,"-1,436.54",CONQUEST CARE HOMES PETERBOROUGH,CARE ESTABLISHMENT,LD - Hunts Locality - Cost of Care,LD - Huntingdonshire - Special Needs,Residential Care
Cambridgeshire County Council,23-Jan-20,51301301166,"-1,436.54",CONQUEST CARE HOMES PETERBOROUGH,CARE ESTABLISHMENT,LD - Hunts Locality - Cost of Care,LD - Huntingdonshire - Special Needs,Residential Care
Cambridgeshire County Council,23-Jan-20,51301301166,"-1,436.54",CONQUEST CARE HOMES PETERBOROUGH,CARE ESTABLISHMENT,LD - Hunts Locality - Cost of Care,LD - Huntingdonshire - Special Needs,Residential Care
Cambridgeshire County Council,23-Jan-20,51301301166,"-1,436.54",CONQUEST CARE HOMES PETERBOROUGH,CARE ESTABLISHMENT,LD - Hunts Locality - Cost of Care,LD - Huntingdonshire - Special Needs,Residential Care
Cambridgeshire County Council,23-Jan-20,51301301166,"-1,436.54",CONQUEST CARE HOMES PETERBOROUGH,CARE ESTABLISHMENT,LD - Hunts Locality - Cost of Care,LD - Huntingdonshire - Special Needs,Residential Care
Cambridgeshire County Council,23-Jan-20,51301301166,"-1,436.54",CONQUEST CARE HOMES PETERBOROUGH,CARE ESTABLISHMENT,LD - Hunts Locality - Cost of Care,LD - Huntingdonshire - Special Needs,Residential Care
Cambridgeshire County Council,23-Jan-20,51301301166,"-1,436.54",CONQUEST CARE HOMES PETERBOROUGH,CARE ESTABLISHMENT,LD - Hunts Locality - Cost of Care,LD - Huntingdonshire - Special Needs,Residential Care
Cambridgeshire County Council,23-Jan-20,51301301166,"-1,436.54",CONQUEST CARE HOMES PETERBOROUGH,CARE ESTABLISHMENT,LD - Hunts Locality - Cost of Care,LD - Huntingdonshire - Special Needs,Residential Care
Cambridgeshire County Council,23-Jan-20,51301301166,"-1,436.54",CONQUEST CARE HOMES PETERBOROUGH,CARE ESTABLISHMENT,LD - Hunts Locality - Cost of Care,LD - Huntingdonshire - Special Needs,Residential Care
Cambridgeshire County Council,23-Jan-20,51301301166,"-1,436.54",CONQUEST CARE HOMES PETERBOROUGH,CARE ESTABLISHMENT,LD - Hunts Locality - Cost of Care,LD - Huntingdonshire - Special Needs,Residential Care
Cambridgeshire County Council,23-Jan-20,51301301166,"-1,436.54",CONQUEST CARE HOMES PETERBOROUGH,CARE ESTABLISHMENT,LD - Hunts Locality - Cost of Care,LD - Huntingdonshire - Special Needs,Residential Care
Cambridgeshire County Council,23-Jan-20,51301301166,"-1,436.54",CONQUEST CARE HOMES PETERBOROUGH,CARE ESTABLISHMENT,LD - Hunts Locality - Cost of Care,LD - Huntingdonshire - Special Needs,Residential Care
Cambridgeshire County Council,23-Jan-20,51301300808,"-1,435.33",CONQUEST CARE HOMES PETERBOROUGH,CARE ESTABLISHMENT,LD - Fenland Locality - Cost of Care,LD - Fenland  - Special Needs,Residential Care
Cambridgeshire County Council,24-Jan-20,51301301963,"-1,430.55",MAYFIELD HEATH FARM,CARE ESTABLISHMENT,LD - Hunts Locality - Cost of Care,LD - Huntingdonshire - Care,Day Care
Cambridgeshire County Council,24-Jan-20,51301301963,"-1,430.55",MAYFIELD HEATH FARM,CARE ESTABLISHMENT,LD - Hunts Locality - Cost of Care,LD - Huntingdonshire - Care,Day Care
Cambridgeshire County Council,24-Jan-20,51301301963,"-1,430.55",MAYFIELD HEATH FARM,CARE ESTABLISHMENT,LD - Hunts Locality - Cost of Care,LD - Huntingdonshire - Care,Day Care
Cambridgeshire County Council,24-Jan-20,51301301963,"-1,430.55",MAYFIELD HEATH FARM,CARE ESTABLISHMENT,LD - Hunts Locality - Cost of Care,LD - Huntingdonshire - Care,Day Care
Cambridgeshire County Council,24-Jan-20,51301301963,"-1,430.55",MAYFIELD HEATH FARM,CARE ESTABLISHMENT,LD - Hunts Locality - Cost of Care,LD - Huntingdonshire - Care,Day Care
Cambridgeshire County Council,24-Jan-20,51301301963,"-1,430.55",MAYFIELD HEATH FARM,CARE ESTABLISHMENT,LD - Hunts Locality - Cost of Care,LD - Huntingdonshire - Care,Day Care
Cambridgeshire County Council,24-Jan-20,51301301963,"-1,430.55",MAYFIELD HEATH FARM,CARE ESTABLISHMENT,LD - Hunts Locality - Cost of Care,LD - Huntingdonshire - Care,Day Care
Cambridgeshire County Council,24-Jan-20,51301301963,"-1,430.55",MAYFIELD HEATH FARM,CARE ESTABLISHMENT,LD - Hunts Locality - Cost of Care,LD - Huntingdonshire - Care,Day Care
Cambridgeshire County Council,24-Jan-20,51301301963,"-1,430.55",MAYFIELD HEATH FARM,CARE ESTABLISHMENT,LD - Hunts Locality - Cost of Care,LD - Huntingdonshire - Care,Day Care
Cambridgeshire County Council,24-Jan-20,51301301963,"-1,430.55",MAYFIELD HEATH FARM,CARE ESTABLISHMENT,LD - Hunts Locality - Cost of Care,LD - Huntingdonshire - Care,Day Care
Cambridgeshire County Council,24-Jan-20,51301301963,"-1,430.55",MAYFIELD HEATH FARM,CARE ESTABLISHMENT,LD - Hunts Locality - Cost of Care,LD - Huntingdonshire - Care,Day Care
Cambridgeshire County Council,24-Jan-20,51301301963,"-1,430.55",MAYFIELD HEATH FARM,CARE ESTABLISHMENT,LD - Hunts Locality - Cost of Care,LD - Huntingdonshire - Care,Day Care
Cambridgeshire County Council,24-Jan-20,51301301963,"-1,430.55",MAYFIELD HEATH FARM,CARE ESTABLISHMENT,LD - Hunts Locality - Cost of Care,LD - Huntingdonshire - Care,Day Care
Cambridgeshire County Council,24-Jan-20,51301301963,"-1,430.55",MAYFIELD HEATH FARM,CARE ESTABLISHMENT,LD - Hunts Locality - Cost of Care,LD - Huntingdonshire - Care,Day Care
Cambridgeshire County Council,29-Jan-20,51301303466,"-1,427.14",ETHELDRED HOUSE,CARE ESTABLISHMENT,OP - City & South Blocks,City and South - Long term blocks,Residential Care
Cambridgeshire County Council,24-Jan-20,51301301975,"-1,404.75",MAYFIELD HEATH FARM,CARE ESTABLISHMENT,LD - Hunts Locality - Cost of Care,LD - Huntingdonshire - Care,Day Care
Cambridgeshire County Council,24-Jan-20,51301301975,"-1,404.75",MAYFIELD HEATH FARM,CARE ESTABLISHMENT,LD - Hunts Locality - Cost of Care,LD - Huntingdonshire - Care,Day Care
Cambridgeshire County Council,24-Jan-20,51301301975,"-1,404.75",MAYFIELD HEATH FARM,CARE ESTABLISHMENT,LD - Hunts Locality - Cost of Care,LD - Huntingdonshire - Care,Day Care
Cambridgeshire County Council,24-Jan-20,51301301975,"-1,404.75",MAYFIELD HEATH FARM,CARE ESTABLISHMENT,LD - Hunts Locality - Cost of Care,LD - Huntingdonshire - Care,Day Care
Cambridgeshire County Council,24-Jan-20,51301301975,"-1,404.75",MAYFIELD HEATH FARM,CARE ESTABLISHMENT,LD - Hunts Locality - Cost of Care,LD - Huntingdonshire - Care,Day Care
Cambridgeshire County Council,24-Jan-20,51301301975,"-1,404.75",MAYFIELD HEATH FARM,CARE ESTABLISHMENT,LD - Hunts Locality - Cost of Care,LD - Huntingdonshire - Care,Day Care
Cambridgeshire County Council,24-Jan-20,51301301975,"-1,404.75",MAYFIELD HEATH FARM,CARE ESTABLISHMENT,LD - Hunts Locality - Cost of Care,LD - Huntingdonshire - Care,Day Care
Cambridgeshire County Council,24-Jan-20,51301301975,"-1,404.75",MAYFIELD HEATH FARM,CARE ESTABLISHMENT,LD - Hunts Locality - Cost of Care,LD - Huntingdonshire - Care,Day Care
Cambridgeshire County Council,24-Jan-20,51301301975,"-1,404.75",MAYFIELD HEATH FARM,CARE ESTABLISHMENT,LD - Hunts Locality - Cost of Care,LD - Huntingdonshire - Care,Day Care
Cambridgeshire County Council,24-Jan-20,51301301975,"-1,404.75",MAYFIELD HEATH FARM,CARE ESTABLISHMENT,LD - Hunts Locality - Cost of Care,LD - Huntingdonshire - Care,Day Care
Cambridgeshire County Council,24-Jan-20,51301301975,"-1,404.75",MAYFIELD HEATH FARM,CARE ESTABLISHMENT,LD - Hunts Locality - Cost of Care,LD - Huntingdonshire - Care,Day Care
Cambridgeshire County Council,24-Jan-20,51301301975,"-1,404.75",MAYFIELD HEATH FARM,CARE ESTABLISHMENT,LD - Hunts Locality - Cost of Care,LD - Huntingdonshire - Care,Day Care
Cambridgeshire County Council,24-Jan-20,51301301975,"-1,404.75",MAYFIELD HEATH FARM,CARE ESTABLISHMENT,LD - Hunts Locality - Cost of Care,LD - Huntingdonshire - Care,Day Care
Cambridgeshire County Council,24-Jan-20,51301301975,"-1,404.75",MAYFIELD HEATH FARM,CARE ESTABLISHMENT,LD - Hunts Locality - Cost of Care,LD - Huntingdonshire - Care,Day Care
Cambridgeshire County Council,23-Jan-20,51301301305,"-1,401.91",WOODLANDS CARE CENTRE,CARE ESTABLISHMENT,OPMH - City & South,Older People Mental Health City & South,Nursing Care
Cambridgeshire County Council,23-Jan-20,51301301305,"-1,401.91",WOODLANDS CARE CENTRE,CARE ESTABLISHMENT,OPMH - City & South,Older People Mental Health City & South,Nursing Care
Cambridgeshire County Council,23-Jan-20,51301301305,"-1,401.91",WOODLANDS CARE CENTRE,CARE ESTABLISHMENT,OPMH - City & South,Older People Mental Health City & South,Nursing Care
Cambridgeshire County Council,23-Jan-20,51301301305,"-1,401.91",WOODLANDS CARE CENTRE,CARE ESTABLISHMENT,OPMH - City & South,Older People Mental Health City & South,Nursing Care
Cambridgeshire County Council,23-Jan-20,51301301305,"-1,401.91",WOODLANDS CARE CENTRE,CARE ESTABLISHMENT,OPMH - City & South,Older People Mental Health City & South,Nursing Care
Cambridgeshire County Council,23-Jan-20,51301301305,"-1,401.91",WOODLANDS CARE CENTRE,CARE ESTABLISHMENT,OPMH - City & South,Older People Mental Health City & South,Nursing Care
Cambridgeshire County Council,23-Jan-20,51301301305,"-1,401.91",WOODLANDS CARE CENTRE,CARE ESTABLISHMENT,OPMH - City & South,Older People Mental Health City & South,Nursing Care
Cambridgeshire County Council,23-Jan-20,51301301305,"-1,401.91",WOODLANDS CARE CENTRE,CARE ESTABLISHMENT,OPMH - City & South,Older People Mental Health City & South,Nursing Care
Cambridgeshire County Council,23-Jan-20,51301301479,"-1,389.26",HILL HOUSE,CARE ESTABLISHMENT,LD - Hunts Locality - Cost of Care,LD - Huntingdonshire - Special Needs,Residential Care
Cambridgeshire County Council,23-Jan-20,51301301479,"-1,389.26",HILL HOUSE,CARE ESTABLISHMENT,LD - Hunts Locality - Cost of Care,LD - Huntingdonshire - Special Needs,Residential Care
Cambridgeshire County Council,23-Jan-20,51301301479,"-1,389.26",HILL HOUSE,CARE ESTABLISHMENT,LD - Hunts Locality - Cost of Care,LD - Huntingdonshire - Special Needs,Residential Care
Cambridgeshire County Council,23-Jan-20,51301301479,"-1,389.26",HILL HOUSE,CARE ESTABLISHMENT,LD - Hunts Locality - Cost of Care,LD - Huntingdonshire - Special Needs,Residential Care
Cambridgeshire County Council,23-Jan-20,51301301479,"-1,389.26",HILL HOUSE,CARE ESTABLISHMENT,LD - Hunts Locality - Cost of Care,LD - Huntingdonshire - Special Needs,Residential Care
Cambridgeshire County Council,23-Jan-20,51301301479,"-1,389.26",HILL HOUSE,CARE ESTABLISHMENT,LD - Hunts Locality - Cost of Care,LD - Huntingdonshire - Special Needs,Residential Care
Cambridgeshire County Council,23-Jan-20,51301301479,"-1,389.26",HILL HOUSE,CARE ESTABLISHMENT,LD - Hunts Locality - Cost of Care,LD - Huntingdonshire - Special Needs,Residential Care
Cambridgeshire County Council,23-Jan-20,51301301479,"-1,389.26",HILL HOUSE,CARE ESTABLISHMENT,LD - Hunts Locality - Cost of Care,LD - Huntingdonshire - Special Needs,Residential Care
Cambridgeshire County Council,23-Jan-20,51301301479,"-1,389.26",HILL HOUSE,CARE ESTABLISHMENT,LD - Hunts Locality - Cost of Care,LD - Huntingdonshire - Special Needs,Residential Care
Cambridgeshire County Council,23-Jan-20,51301301479,"-1,389.26",HILL HOUSE,CARE ESTABLISHMENT,LD - Hunts Locality - Cost of Care,LD - Huntingdonshire - Special Needs,Residential Care
Cambridgeshire County Council,23-Jan-20,51301301479,"-1,389.26",HILL HOUSE,CARE ESTABLISHMENT,LD - Hunts Locality - Cost of Care,LD - Huntingdonshire - Special Needs,Residential Care
Cambridgeshire County Council,23-Jan-20,51301301479,"-1,389.26",HILL HOUSE,CARE ESTABLISHMENT,LD - Hunts Locality - Cost of Care,LD - Huntingdonshire - Special Needs,Residential Care
Cambridgeshire County Council,23-Jan-20,51301301479,"-1,389.26",HILL HOUSE,CARE ESTABLISHMENT,LD - Hunts Locality - Cost of Care,LD - Huntingdonshire - Special Needs,Residential Care
Cambridgeshire County Council,23-Jan-20,51301301479,"-1,389.26",HILL HOUSE,CARE ESTABLISHMENT,LD - Hunts Locality - Cost of Care,LD - Huntingdonshire - Special Needs,Residential Care
Cambridgeshire County Council,23-Jan-20,51301301479,"-1,389.26",HILL HOUSE,CARE ESTABLISHMENT,LD - Hunts Locality - Cost of Care,LD - Huntingdonshire - Special Needs,Residential Care
Cambridgeshire County Council,23-Jan-20,51301301479,"-1,389.26",HILL HOUSE,CARE ESTABLISHMENT,LD - Hunts Locality - Cost of Care,LD - Huntingdonshire - Special Needs,Residential Care
Cambridgeshire County Council,23-Jan-20,51301301479,"-1,389.26",HILL HOUSE,CARE ESTABLISHMENT,LD - Hunts Locality - Cost of Care,LD - Huntingdonshire - Special Needs,Residential Care
Cambridgeshire County Council,23-Jan-20,51301301479,"-1,389.26",HILL HOUSE,CARE ESTABLISHMENT,LD - Hunts Locality - Cost of Care,LD - Huntingdonshire - Special Needs,Residential Care
Cambridgeshire County Council,23-Jan-20,51301301479,"-1,389.26",HILL HOUSE,CARE ESTABLISHMENT,LD - Hunts Locality - Cost of Care,LD - Huntingdonshire - Special Needs,Residential Care
Cambridgeshire County Council,23-Jan-20,51301301479,"-1,389.26",HILL HOUSE,CARE ESTABLISHMENT,LD - Hunts Locality - Cost of Care,LD - Huntingdonshire - Special Needs,Residential Care
Cambridgeshire County Council,23-Jan-20,51301301479,"-1,389.26",HILL HOUSE,CARE ESTABLISHMENT,LD - Hunts Locality - Cost of Care,LD - Huntingdonshire - Special Needs,Residential Care
Cambridgeshire County Council,23-Jan-20,51301301479,"-1,389.26",HILL HOUSE,CARE ESTABLISHMENT,LD - Hunts Locality - Cost of Care,LD - Huntingdonshire - Special Needs,Residential Care
Cambridgeshire County Council,23-Jan-20,51301301479,"-1,389.26",HILL HOUSE,CARE ESTABLISHMENT,LD - Hunts Locality - Cost of Care,LD - Huntingdonshire - Special Needs,Residential Care
Cambridgeshire County Council,23-Jan-20,51301301479,"-1,389.26",HILL HOUSE,CARE ESTABLISHMENT,LD - Hunts Locality - Cost of Care,LD - Huntingdonshire - Special Needs,Residential Care
Cambridgeshire County Council,23-Jan-20,51301301479,"-1,389.26",HILL HOUSE,CARE ESTABLISHMENT,LD - Hunts Locality - Cost of Care,LD - Huntingdonshire - Special Needs,Residential Care
Cambridgeshire County Council,23-Jan-20,51301301479,"-1,389.26",HILL HOUSE,CARE ESTABLISHMENT,LD - Hunts Locality - Cost of Care,LD - Huntingdonshire - Special Needs,Residential Care
Cambridgeshire County Council,23-Jan-20,51301301479,"-1,389.26",HILL HOUSE,CARE ESTABLISHMENT,LD - Hunts Locality - Cost of Care,LD - Huntingdonshire - Special Needs,Residential Care
Cambridgeshire County Council,23-Jan-20,51301301479,"-1,389.26",HILL HOUSE,CARE ESTABLISHMENT,LD - Hunts Locality - Cost of Care,LD - Huntingdonshire - Special Needs,Residential Care
Cambridgeshire County Council,23-Jan-20,51301301479,"-1,389.26",HILL HOUSE,CARE ESTABLISHMENT,LD - Hunts Locality - Cost of Care,LD - Huntingdonshire - Special Needs,Residential Care
Cambridgeshire County Council,23-Jan-20,51301301479,"-1,389.26",HILL HOUSE,CARE ESTABLISHMENT,LD - Hunts Locality - Cost of Care,LD - Huntingdonshire - Special Needs,Residential Care
Cambridgeshire County Council,23-Jan-20,51301301479,"-1,389.26",HILL HOUSE,CARE ESTABLISHMENT,LD - Hunts Locality - Cost of Care,LD - Huntingdonshire - Special Needs,Residential Care
Cambridgeshire County Council,23-Jan-20,51301301479,"-1,389.26",HILL HOUSE,CARE ESTABLISHMENT,LD - Hunts Locality - Cost of Care,LD - Huntingdonshire - Special Needs,Residential Care
Cambridgeshire County Council,23-Jan-20,51301301479,"-1,389.26",HILL HOUSE,CARE ESTABLISHMENT,LD - Hunts Locality - Cost of Care,LD - Huntingdonshire - Special Needs,Residential Care
Cambridgeshire County Council,23-Jan-20,51301301479,"-1,389.26",HILL HOUSE,CARE ESTABLISHMENT,LD - Hunts Locality - Cost of Care,LD - Huntingdonshire - Special Needs,Residential Care
Cambridgeshire County Council,23-Jan-20,51301301479,"-1,389.26",HILL HOUSE,CARE ESTABLISHMENT,LD - Hunts Locality - Cost of Care,LD - Huntingdonshire - Special Needs,Residential Care
Cambridgeshire County Council,23-Jan-20,51301301479,"-1,389.26",HILL HOUSE,CARE ESTABLISHMENT,LD - Hunts Locality - Cost of Care,LD - Huntingdonshire - Special Needs,Residential Care
Cambridgeshire County Council,23-Jan-20,51301301479,"-1,389.26",HILL HOUSE,CARE ESTABLISHMENT,LD - Hunts Locality - Cost of Care,LD - Huntingdonshire - Special Needs,Residential Care
Cambridgeshire County Council,23-Jan-20,51301301479,"-1,389.26",HILL HOUSE,CARE ESTABLISHMENT,LD - Hunts Locality - Cost of Care,LD - Huntingdonshire - Special Needs,Residential Care
Cambridgeshire County Council,23-Jan-20,51301301479,"-1,389.26",HILL HOUSE,CARE ESTABLISHMENT,LD - Hunts Locality - Cost of Care,LD - Huntingdonshire - Special Needs,Residential Care
Cambridgeshire County Council,23-Jan-20,51301301479,"-1,389.26",HILL HOUSE,CARE ESTABLISHMENT,LD - Hunts Locality - Cost of Care,LD - Huntingdonshire - Special Needs,Residential Care
Cambridgeshire County Council,23-Jan-20,51301301479,"-1,389.26",HILL HOUSE,CARE ESTABLISHMENT,LD - Hunts Locality - Cost of Care,LD - Huntingdonshire - Special Needs,Residential Care
Cambridgeshire County Council,23-Jan-20,51301301479,"-1,389.26",HILL HOUSE,CARE ESTABLISHMENT,LD - Hunts Locality - Cost of Care,LD - Huntingdonshire - Special Needs,Residential Care
Cambridgeshire County Council,23-Jan-20,51301301479,"-1,389.26",HILL HOUSE,CARE ESTABLISHMENT,LD - Hunts Locality - Cost of Care,LD - Huntingdonshire - Special Needs,Residential Care
Cambridgeshire County Council,24-Jan-20,51301301972,"-1,367.22",MAYFIELD HEATH FARM,CARE ESTABLISHMENT,LD - Hunts Locality - Cost of Care,LD - Huntingdonshire - Care,Day Care
Cambridgeshire County Council,24-Jan-20,51301301972,"-1,367.22",MAYFIELD HEATH FARM,CARE ESTABLISHMENT,LD - Hunts Locality - Cost of Care,LD - Huntingdonshire - Care,Day Care
Cambridgeshire County Council,24-Jan-20,51301301972,"-1,367.22",MAYFIELD HEATH FARM,CARE ESTABLISHMENT,LD - Hunts Locality - Cost of Care,LD - Huntingdonshire - Care,Day Care
Cambridgeshire County Council,24-Jan-20,51301301972,"-1,367.22",MAYFIELD HEATH FARM,CARE ESTABLISHMENT,LD - Hunts Locality - Cost of Care,LD - Huntingdonshire - Care,Day Care
Cambridgeshire County Council,24-Jan-20,51301301972,"-1,367.22",MAYFIELD HEATH FARM,CARE ESTABLISHMENT,LD - Hunts Locality - Cost of Care,LD - Huntingdonshire - Care,Day Care
Cambridgeshire County Council,24-Jan-20,51301301972,"-1,367.22",MAYFIELD HEATH FARM,CARE ESTABLISHMENT,LD - Hunts Locality - Cost of Care,LD - Huntingdonshire - Care,Day Care
Cambridgeshire County Council,24-Jan-20,51301301972,"-1,367.22",MAYFIELD HEATH FARM,CARE ESTABLISHMENT,LD - Hunts Locality - Cost of Care,LD - Huntingdonshire - Care,Day Care
Cambridgeshire County Council,24-Jan-20,51301301972,"-1,367.22",MAYFIELD HEATH FARM,CARE ESTABLISHMENT,LD - Hunts Locality - Cost of Care,LD - Huntingdonshire - Care,Day Care
Cambridgeshire County Council,24-Jan-20,51301301972,"-1,367.22",MAYFIELD HEATH FARM,CARE ESTABLISHMENT,LD - Hunts Locality - Cost of Care,LD - Huntingdonshire - Care,Day Care
Cambridgeshire County Council,24-Jan-20,51301301972,"-1,367.22",MAYFIELD HEATH FARM,CARE ESTABLISHMENT,LD - Hunts Locality - Cost of Care,LD - Huntingdonshire - Care,Day Care
Cambridgeshire County Council,24-Jan-20,51301301972,"-1,367.22",MAYFIELD HEATH FARM,CARE ESTABLISHMENT,LD - Hunts Locality - Cost of Care,LD - Huntingdonshire - Care,Day Care
Cambridgeshire County Council,24-Jan-20,51301301972,"-1,367.22",MAYFIELD HEATH FARM,CARE ESTABLISHMENT,LD - Hunts Locality - Cost of Care,LD - Huntingdonshire - Care,Day Care
Cambridgeshire County Council,24-Jan-20,51301301972,"-1,367.22",MAYFIELD HEATH FARM,CARE ESTABLISHMENT,LD - Hunts Locality - Cost of Care,LD - Huntingdonshire - Care,Day Care
Cambridgeshire County Council,24-Jan-20,51301301972,"-1,367.22",MAYFIELD HEATH FARM,CARE ESTABLISHMENT,LD - Hunts Locality - Cost of Care,LD - Huntingdonshire - Care,Day Care
Cambridgeshire County Council,24-Jan-20,51301301984,"-1,317.33",GUYATT HOUSE CARE LTD,CARE ESTABLISHMENT,LD - East Locality - Cost of Care,LD - East Cambs - Care,Domiciliary Care
Cambridgeshire County Council,24-Jan-20,51301301984,"-1,317.33",GUYATT HOUSE CARE LTD,CARE ESTABLISHMENT,LD - East Locality - Cost of Care,LD - East Cambs - Care,Domiciliary Care
Cambridgeshire County Council,24-Jan-20,51301301984,"-1,317.33",GUYATT HOUSE CARE LTD,CARE ESTABLISHMENT,LD - East Locality - Cost of Care,LD - East Cambs - Care,Domiciliary Care
Cambridgeshire County Council,24-Jan-20,51301301984,"-1,317.33",GUYATT HOUSE CARE LTD,CARE ESTABLISHMENT,LD - East Locality - Cost of Care,LD - East Cambs - Care,Domiciliary Care
Cambridgeshire County Council,24-Jan-20,51301301984,"-1,317.33",GUYATT HOUSE CARE LTD,CARE ESTABLISHMENT,LD - East Locality - Cost of Care,LD - East Cambs - Care,Domiciliary Care
Cambridgeshire County Council,24-Jan-20,51301301984,"-1,317.33",GUYATT HOUSE CARE LTD,CARE ESTABLISHMENT,LD - East Locality - Cost of Care,LD - East Cambs - Care,Domiciliary Care
Cambridgeshire County Council,24-Jan-20,51301301984,"-1,317.33",GUYATT HOUSE CARE LTD,CARE ESTABLISHMENT,LD - East Locality - Cost of Care,LD - East Cambs - Care,Domiciliary Care
Cambridgeshire County Council,24-Jan-20,51301301984,"-1,317.33",GUYATT HOUSE CARE LTD,CARE ESTABLISHMENT,LD - East Locality - Cost of Care,LD - East Cambs - Care,Domiciliary Care
Cambridgeshire County Council,24-Jan-20,51301301984,"-1,317.33",GUYATT HOUSE CARE LTD,CARE ESTABLISHMENT,LD - East Locality - Cost of Care,LD - East Cambs - Care,Domiciliary Care
Cambridgeshire County Council,24-Jan-20,51301301984,"-1,317.33",GUYATT HOUSE CARE LTD,CARE ESTABLISHMENT,LD - East Locality - Cost of Care,LD - East Cambs - Care,Domiciliary Care
Cambridgeshire County Council,24-Jan-20,51301301984,"-1,317.33",GUYATT HOUSE CARE LTD,CARE ESTABLISHMENT,LD - East Locality - Cost of Care,LD - East Cambs - Care,Domiciliary Care
Cambridgeshire County Council,24-Jan-20,51301301984,"-1,317.33",GUYATT HOUSE CARE LTD,CARE ESTABLISHMENT,LD - East Locality - Cost of Care,LD - East Cambs - Care,Domiciliary Care
Cambridgeshire County Council,24-Jan-20,51301301984,"-1,317.33",GUYATT HOUSE CARE LTD,CARE ESTABLISHMENT,LD - East Locality - Cost of Care,LD - East Cambs - Care,Domiciliary Care
Cambridgeshire County Council,24-Jan-20,51301301984,"-1,317.33",GUYATT HOUSE CARE LTD,CARE ESTABLISHMENT,LD - East Locality - Cost of Care,LD - East Cambs - Care,Domiciliary Care
Cambridgeshire County Council,24-Jan-20,51301301984,"-1,317.33",GUYATT HOUSE CARE LTD,CARE ESTABLISHMENT,LD - East Locality - Cost of Care,LD - East Cambs - Care,Domiciliary Care
Cambridgeshire County Council,24-Jan-20,51301301984,"-1,317.33",GUYATT HOUSE CARE LTD,CARE ESTABLISHMENT,LD - East Locality - Cost of Care,LD - East Cambs - Care,Domiciliary Care
Cambridgeshire County Council,24-Jan-20,51301301984,"-1,317.33",GUYATT HOUSE CARE LTD,CARE ESTABLISHMENT,LD - East Locality - Cost of Care,LD - East Cambs - Care,Domiciliary Care
Cambridgeshire County Council,24-Jan-20,51301301984,"-1,317.33",GUYATT HOUSE CARE LTD,CARE ESTABLISHMENT,LD - East Locality - Cost of Care,LD - East Cambs - Care,Domiciliary Care
Cambridgeshire County Council,23-Jan-20,51301301411,"-1,300.00",CHERRY HINTON NURSING HOME,CARE ESTABLISHMENT,OP - City & South Locality - Cost of Care,Older People - City & South - Care,Nursing Care
Cambridgeshire County Council,23-Jan-20,51301301411,"-1,300.00",CHERRY HINTON NURSING HOME,CARE ESTABLISHMENT,OP - City & South Locality - Cost of Care,Older People - City & South - Care,Nursing Care
Cambridgeshire County Council,23-Jan-20,51301301411,"-1,300.00",CHERRY HINTON NURSING HOME,CARE ESTABLISHMENT,OP - City & South Locality - Cost of Care,Older People - City & South - Care,Nursing Care
Cambridgeshire County Council,23-Jan-20,51301301411,"-1,300.00",CHERRY HINTON NURSING HOME,CARE ESTABLISHMENT,OP - City & South Locality - Cost of Care,Older People - City & South - Care,Nursing Care
Cambridgeshire County Council,23-Jan-20,51301301411,"-1,300.00",CHERRY HINTON NURSING HOME,CARE ESTABLISHMENT,OP - City & South Locality - Cost of Care,Older People - City & South - Care,Nursing Care
Cambridgeshire County Council,23-Jan-20,51301301411,"-1,300.00",CHERRY HINTON NURSING HOME,CARE ESTABLISHMENT,OP - City & South Locality - Cost of Care,Older People - City & South - Care,Nursing Care
Cambridgeshire County Council,23-Jan-20,51301301411,"-1,300.00",CHERRY HINTON NURSING HOME,CARE ESTABLISHMENT,OP - City & South Locality - Cost of Care,Older People - City & South - Care,Nursing Care
Cambridgeshire County Council,23-Jan-20,51301301403,"-1,300.00",BARCHESTER HEALTHCARE HOMES LTD,CARE ESTABLISHMENT,Physical Disablity - Cost of Care,Countywide PD Service - Care,Nursing Care
Cambridgeshire County Council,23-Jan-20,51301301403,"-1,300.00",BARCHESTER HEALTHCARE HOMES LTD,CARE ESTABLISHMENT,Physical Disablity - Cost of Care,Countywide PD Service - Care,Nursing Care
Cambridgeshire County Council,23-Jan-20,51301301403,"-1,300.00",BARCHESTER HEALTHCARE HOMES LTD,CARE ESTABLISHMENT,Physical Disablity - Cost of Care,Countywide PD Service - Care,Nursing Care
Cambridgeshire County Council,23-Jan-20,51301301403,"-1,300.00",BARCHESTER HEALTHCARE HOMES LTD,CARE ESTABLISHMENT,Physical Disablity - Cost of Care,Countywide PD Service - Care,Nursing Care
Cambridgeshire County Council,23-Jan-20,51301301403,"-1,300.00",BARCHESTER HEALTHCARE HOMES LTD,CARE ESTABLISHMENT,Physical Disablity - Cost of Care,Countywide PD Service - Care,Nursing Care
Cambridgeshire County Council,23-Jan-20,51301301403,"-1,300.00",BARCHESTER HEALTHCARE HOMES LTD,CARE ESTABLISHMENT,Physical Disablity - Cost of Care,Countywide PD Service - Care,Nursing Care
Cambridgeshire County Council,23-Jan-20,51301301403,"-1,300.00",BARCHESTER HEALTHCARE HOMES LTD,CARE ESTABLISHMENT,Physical Disablity - Cost of Care,Countywide PD Service - Care,Nursing Care
Cambridgeshire County Council,23-Jan-20,51301301403,"-1,300.00",BARCHESTER HEALTHCARE HOMES LTD,CARE ESTABLISHMENT,Physical Disablity - Cost of Care,Countywide PD Service - Care,Nursing Care
Cambridgeshire County Council,23-Jan-20,51301301403,"-1,300.00",BARCHESTER HEALTHCARE HOMES LTD,CARE ESTABLISHMENT,Physical Disablity - Cost of Care,Countywide PD Service - Care,Nursing Care
Cambridgeshire County Council,24-Jan-20,51301301978,"-1,294.76",GUYATT HOUSE CARE LTD,CARE ESTABLISHMENT,LD - Young Adults Team,LD - Young Adults - Care,Supported Living
Cambridgeshire County Council,24-Jan-20,51301301978,"-1,294.76",GUYATT HOUSE CARE LTD,CARE ESTABLISHMENT,LD - Young Adults Team,LD - Young Adults - Care,Supported Living
Cambridgeshire County Council,24-Jan-20,51301301978,"-1,294.76",GUYATT HOUSE CARE LTD,CARE ESTABLISHMENT,LD - Young Adults Team,LD - Young Adults - Care,Supported Living
Cambridgeshire County Council,24-Jan-20,51301301978,"-1,294.76",GUYATT HOUSE CARE LTD,CARE ESTABLISHMENT,LD - Young Adults Team,LD - Young Adults - Care,Supported Living
Cambridgeshire County Council,24-Jan-20,51301301978,"-1,294.76",GUYATT HOUSE CARE LTD,CARE ESTABLISHMENT,LD - Young Adults Team,LD - Young Adults - Care,Supported Living
Cambridgeshire County Council,24-Jan-20,51301301978,"-1,294.76",GUYATT HOUSE CARE LTD,CARE ESTABLISHMENT,LD - Young Adults Team,LD - Young Adults - Care,Supported Living
Cambridgeshire County Council,24-Jan-20,51301301978,"-1,294.76",GUYATT HOUSE CARE LTD,CARE ESTABLISHMENT,LD - Young Adults Team,LD - Young Adults - Care,Supported Living
Cambridgeshire County Council,24-Jan-20,51301301978,"-1,294.76",GUYATT HOUSE CARE LTD,CARE ESTABLISHMENT,LD - Young Adults Team,LD - Young Adults - Care,Supported Living
Cambridgeshire County Council,24-Jan-20,51301301978,"-1,294.76",GUYATT HOUSE CARE LTD,CARE ESTABLISHMENT,LD - Young Adults Team,LD - Young Adults - Care,Supported Living
Cambridgeshire County Council,24-Jan-20,51301301978,"-1,294.76",GUYATT HOUSE CARE LTD,CARE ESTABLISHMENT,LD - Young Adults Team,LD - Young Adults - Care,Supported Living
Cambridgeshire County Council,24-Jan-20,51301301978,"-1,294.76",GUYATT HOUSE CARE LTD,CARE ESTABLISHMENT,LD - Young Adults Team,LD - Young Adults - Care,Supported Living
Cambridgeshire County Council,24-Jan-20,51301301978,"-1,294.76",GUYATT HOUSE CARE LTD,CARE ESTABLISHMENT,LD - Young Adults Team,LD - Young Adults - Care,Supported Living
Cambridgeshire County Council,24-Jan-20,51301301978,"-1,294.76",GUYATT HOUSE CARE LTD,CARE ESTABLISHMENT,LD - Young Adults Team,LD - Young Adults - Care,Supported Living
Cambridgeshire County Council,24-Jan-20,51301301978,"-1,294.76",GUYATT HOUSE CARE LTD,CARE ESTABLISHMENT,LD - Young Adults Team,LD - Young Adults - Care,Supported Living
Cambridgeshire County Council,23-Jan-20,51301301156,"-1,283.80",CONQUEST CARE HOMES PETERBOROUGH,CARE ESTABLISHMENT,LD - Hunts Locality - Cost of Care,LD - Huntingdonshire - Special Needs,Residential Care
Cambridgeshire County Council,23-Jan-20,51301301156,"-1,283.80",CONQUEST CARE HOMES PETERBOROUGH,CARE ESTABLISHMENT,LD - Hunts Locality - Cost of Care,LD - Huntingdonshire - Special Needs,Residential Care
Cambridgeshire County Council,23-Jan-20,51301301156,"-1,283.80",CONQUEST CARE HOMES PETERBOROUGH,CARE ESTABLISHMENT,LD - Hunts Locality - Cost of Care,LD - Huntingdonshire - Special Needs,Residential Care
Cambridgeshire County Council,23-Jan-20,51301301156,"-1,283.80",CONQUEST CARE HOMES PETERBOROUGH,CARE ESTABLISHMENT,LD - Hunts Locality - Cost of Care,LD - Huntingdonshire - Special Needs,Residential Care
Cambridgeshire County Council,23-Jan-20,51301301156,"-1,283.80",CONQUEST CARE HOMES PETERBOROUGH,CARE ESTABLISHMENT,LD - Hunts Locality - Cost of Care,LD - Huntingdonshire - Special Needs,Residential Care
Cambridgeshire County Council,23-Jan-20,51301301156,"-1,283.80",CONQUEST CARE HOMES PETERBOROUGH,CARE ESTABLISHMENT,LD - Hunts Locality - Cost of Care,LD - Huntingdonshire - Special Needs,Residential Care
Cambridgeshire County Council,23-Jan-20,51301301156,"-1,283.80",CONQUEST CARE HOMES PETERBOROUGH,CARE ESTABLISHMENT,LD - Hunts Locality - Cost of Care,LD - Huntingdonshire - Special Needs,Residential Care
Cambridgeshire County Council,23-Jan-20,51301301156,"-1,283.80",CONQUEST CARE HOMES PETERBOROUGH,CARE ESTABLISHMENT,LD - Hunts Locality - Cost of Care,LD - Huntingdonshire - Special Needs,Residential Care
Cambridgeshire County Council,23-Jan-20,51301301156,"-1,283.80",CONQUEST CARE HOMES PETERBOROUGH,CARE ESTABLISHMENT,LD - Hunts Locality - Cost of Care,LD - Huntingdonshire - Special Needs,Residential Care
Cambridgeshire County Council,23-Jan-20,51301301156,"-1,283.80",CONQUEST CARE HOMES PETERBOROUGH,CARE ESTABLISHMENT,LD - Hunts Locality - Cost of Care,LD - Huntingdonshire - Special Needs,Residential Care
Cambridgeshire County Council,23-Jan-20,51301301156,"-1,283.80",CONQUEST CARE HOMES PETERBOROUGH,CARE ESTABLISHMENT,LD - Hunts Locality - Cost of Care,LD - Huntingdonshire - Special Needs,Residential Care
Cambridgeshire County Council,23-Jan-20,51301301156,"-1,283.80",CONQUEST CARE HOMES PETERBOROUGH,CARE ESTABLISHMENT,LD - Hunts Locality - Cost of Care,LD - Huntingdonshire - Special Needs,Residential Care
Cambridgeshire County Council,23-Jan-20,51301301156,"-1,283.80",CONQUEST CARE HOMES PETERBOROUGH,CARE ESTABLISHMENT,LD - Hunts Locality - Cost of Care,LD - Huntingdonshire - Special Needs,Residential Care
Cambridgeshire County Council,23-Jan-20,51301301156,"-1,283.80",CONQUEST CARE HOMES PETERBOROUGH,CARE ESTABLISHMENT,LD - Hunts Locality - Cost of Care,LD - Huntingdonshire - Special Needs,Residential Care
Cambridgeshire County Council,23-Jan-20,51301301156,"-1,283.80",CONQUEST CARE HOMES PETERBOROUGH,CARE ESTABLISHMENT,LD - Hunts Locality - Cost of Care,LD - Huntingdonshire - Special Needs,Residential Care
Cambridgeshire County Council,23-Jan-20,51301301156,"-1,283.80",CONQUEST CARE HOMES PETERBOROUGH,CARE ESTABLISHMENT,LD - Hunts Locality - Cost of Care,LD - Huntingdonshire - Special Needs,Residential Care
Cambridgeshire County Council,23-Jan-20,51301301156,"-1,283.80",CONQUEST CARE HOMES PETERBOROUGH,CARE ESTABLISHMENT,LD - Hunts Locality - Cost of Care,LD - Huntingdonshire - Special Needs,Residential Care
Cambridgeshire County Council,23-Jan-20,51301301156,"-1,283.80",CONQUEST CARE HOMES PETERBOROUGH,CARE ESTABLISHMENT,LD - Hunts Locality - Cost of Care,LD - Huntingdonshire - Special Needs,Residential Care
Cambridgeshire County Council,23-Jan-20,51301301156,"-1,283.80",CONQUEST CARE HOMES PETERBOROUGH,CARE ESTABLISHMENT,LD - Hunts Locality - Cost of Care,LD - Huntingdonshire - Special Needs,Residential Care
Cambridgeshire County Council,23-Jan-20,51301301156,"-1,283.80",CONQUEST CARE HOMES PETERBOROUGH,CARE ESTABLISHMENT,LD - Hunts Locality - Cost of Care,LD - Huntingdonshire - Special Needs,Residential Care
Cambridgeshire County Council,23-Jan-20,51301301156,"-1,283.80",CONQUEST CARE HOMES PETERBOROUGH,CARE ESTABLISHMENT,LD - Hunts Locality - Cost of Care,LD - Huntingdonshire - Special Needs,Residential Care
Cambridgeshire County Council,23-Jan-20,51301301156,"-1,283.80",CONQUEST CARE HOMES PETERBOROUGH,CARE ESTABLISHMENT,LD - Hunts Locality - Cost of Care,LD - Huntingdonshire - Special Needs,Residential Care
Cambridgeshire County Council,23-Jan-20,51301301156,"-1,283.80",CONQUEST CARE HOMES PETERBOROUGH,CARE ESTABLISHMENT,LD - Hunts Locality - Cost of Care,LD - Huntingdonshire - Special Needs,Residential Care
Cambridgeshire County Council,23-Jan-20,51301301156,"-1,283.80",CONQUEST CARE HOMES PETERBOROUGH,CARE ESTABLISHMENT,LD - Hunts Locality - Cost of Care,LD - Huntingdonshire - Special Needs,Residential Care
Cambridgeshire County Council,23-Jan-20,51301301156,"-1,283.80",CONQUEST CARE HOMES PETERBOROUGH,CARE ESTABLISHMENT,LD - Hunts Locality - Cost of Care,LD - Huntingdonshire - Special Needs,Residential Care
Cambridgeshire County Council,23-Jan-20,51301301156,"-1,283.80",CONQUEST CARE HOMES PETERBOROUGH,CARE ESTABLISHMENT,LD - Hunts Locality - Cost of Care,LD - Huntingdonshire - Special Needs,Residential Care
Cambridgeshire County Council,23-Jan-20,51301301156,"-1,283.80",CONQUEST CARE HOMES PETERBOROUGH,CARE ESTABLISHMENT,LD - Hunts Locality - Cost of Care,LD - Huntingdonshire - Special Needs,Residential Care
Cambridgeshire County Council,23-Jan-20,51301301156,"-1,283.80",CONQUEST CARE HOMES PETERBOROUGH,CARE ESTABLISHMENT,LD - Hunts Locality - Cost of Care,LD - Huntingdonshire - Special Needs,Residential Care
Cambridgeshire County Council,23-Jan-20,51301301156,"-1,283.80",CONQUEST CARE HOMES PETERBOROUGH,CARE ESTABLISHMENT,LD - Hunts Locality - Cost of Care,LD - Huntingdonshire - Special Needs,Residential Care
Cambridgeshire County Council,23-Jan-20,51301301156,"-1,283.80",CONQUEST CARE HOMES PETERBOROUGH,CARE ESTABLISHMENT,LD - Hunts Locality - Cost of Care,LD - Huntingdonshire - Special Needs,Residential Care
Cambridgeshire County Council,23-Jan-20,51301301156,"-1,283.80",CONQUEST CARE HOMES PETERBOROUGH,CARE ESTABLISHMENT,LD - Hunts Locality - Cost of Care,LD - Huntingdonshire - Special Needs,Residential Care
Cambridgeshire County Council,23-Jan-20,51301301156,"-1,283.80",CONQUEST CARE HOMES PETERBOROUGH,CARE ESTABLISHMENT,LD - Hunts Locality - Cost of Care,LD - Huntingdonshire - Special Needs,Residential Care
Cambridgeshire County Council,23-Jan-20,51301301156,"-1,283.80",CONQUEST CARE HOMES PETERBOROUGH,CARE ESTABLISHMENT,LD - Hunts Locality - Cost of Care,LD - Huntingdonshire - Special Needs,Residential Care
Cambridgeshire County Council,23-Jan-20,51301301156,"-1,283.80",CONQUEST CARE HOMES PETERBOROUGH,CARE ESTABLISHMENT,LD - Hunts Locality - Cost of Care,LD - Huntingdonshire - Special Needs,Residential Care
Cambridgeshire County Council,23-Jan-20,51301301156,"-1,283.80",CONQUEST CARE HOMES PETERBOROUGH,CARE ESTABLISHMENT,LD - Hunts Locality - Cost of Care,LD - Huntingdonshire - Special Needs,Residential Care
Cambridgeshire County Council,23-Jan-20,51301301156,"-1,283.80",CONQUEST CARE HOMES PETERBOROUGH,CARE ESTABLISHMENT,LD - Hunts Locality - Cost of Care,LD - Huntingdonshire - Special Needs,Residential Care
Cambridgeshire County Council,23-Jan-20,51301301156,"-1,283.80",CONQUEST CARE HOMES PETERBOROUGH,CARE ESTABLISHMENT,LD - Hunts Locality - Cost of Care,LD - Huntingdonshire - Special Needs,Residential Care
Cambridgeshire County Council,23-Jan-20,51301301156,"-1,283.80",CONQUEST CARE HOMES PETERBOROUGH,CARE ESTABLISHMENT,LD - Hunts Locality - Cost of Care,LD - Huntingdonshire - Special Needs,Residential Care
Cambridgeshire County Council,23-Jan-20,51301301156,"-1,283.80",CONQUEST CARE HOMES PETERBOROUGH,CARE ESTABLISHMENT,LD - Hunts Locality - Cost of Care,LD - Huntingdonshire - Special Needs,Residential Care
Cambridgeshire County Council,23-Jan-20,51301301156,"-1,283.80",CONQUEST CARE HOMES PETERBOROUGH,CARE ESTABLISHMENT,LD - Hunts Locality - Cost of Care,LD - Huntingdonshire - Special Needs,Residential Care
Cambridgeshire County Council,23-Jan-20,51301301156,"-1,283.80",CONQUEST CARE HOMES PETERBOROUGH,CARE ESTABLISHMENT,LD - Hunts Locality - Cost of Care,LD - Huntingdonshire - Special Needs,Residential Care
Cambridgeshire County Council,23-Jan-20,51301301156,"-1,283.80",CONQUEST CARE HOMES PETERBOROUGH,CARE ESTABLISHMENT,LD - Hunts Locality - Cost of Care,LD - Huntingdonshire - Special Needs,Residential Care
Cambridgeshire County Council,23-Jan-20,51301301156,"-1,283.80",CONQUEST CARE HOMES PETERBOROUGH,CARE ESTABLISHMENT,LD - Hunts Locality - Cost of Care,LD - Huntingdonshire - Special Needs,Residential Care
Cambridgeshire County Council,23-Jan-20,51301301271,"-1,281.00",CONQUEST CARE HOMES PETERBOROUGH,CARE ESTABLISHMENT,LD - Hunts Locality - Cost of Care,LD - Huntingdonshire - Care,Residential Care
Cambridgeshire County Council,23-Jan-20,51301301271,"-1,281.00",CONQUEST CARE HOMES PETERBOROUGH,CARE ESTABLISHMENT,LD - Hunts Locality - Cost of Care,LD - Huntingdonshire - Care,Residential Care
Cambridgeshire County Council,23-Jan-20,51301301271,"-1,281.00",CONQUEST CARE HOMES PETERBOROUGH,CARE ESTABLISHMENT,LD - Hunts Locality - Cost of Care,LD - Huntingdonshire - Care,Residential Care
Cambridgeshire County Council,23-Jan-20,51301301271,"-1,281.00",CONQUEST CARE HOMES PETERBOROUGH,CARE ESTABLISHMENT,LD - Hunts Locality - Cost of Care,LD - Huntingdonshire - Care,Residential Care
Cambridgeshire County Council,23-Jan-20,51301301271,"-1,281.00",CONQUEST CARE HOMES PETERBOROUGH,CARE ESTABLISHMENT,LD - Hunts Locality - Cost of Care,LD - Huntingdonshire - Care,Residential Care
Cambridgeshire County Council,23-Jan-20,51301301271,"-1,281.00",CONQUEST CARE HOMES PETERBOROUGH,CARE ESTABLISHMENT,LD - Hunts Locality - Cost of Care,LD - Huntingdonshire - Care,Residential Care
Cambridgeshire County Council,23-Jan-20,51301301271,"-1,281.00",CONQUEST CARE HOMES PETERBOROUGH,CARE ESTABLISHMENT,LD - Hunts Locality - Cost of Care,LD - Huntingdonshire - Care,Residential Care
Cambridgeshire County Council,23-Jan-20,51301301271,"-1,281.00",CONQUEST CARE HOMES PETERBOROUGH,CARE ESTABLISHMENT,LD - Hunts Locality - Cost of Care,LD - Huntingdonshire - Care,Residential Care
Cambridgeshire County Council,23-Jan-20,51301301271,"-1,281.00",CONQUEST CARE HOMES PETERBOROUGH,CARE ESTABLISHMENT,LD - Hunts Locality - Cost of Care,LD - Huntingdonshire - Care,Residential Care
Cambridgeshire County Council,23-Jan-20,51301301271,"-1,281.00",CONQUEST CARE HOMES PETERBOROUGH,CARE ESTABLISHMENT,LD - Hunts Locality - Cost of Care,LD - Huntingdonshire - Care,Residential Care
Cambridgeshire County Council,23-Jan-20,51301301271,"-1,281.00",CONQUEST CARE HOMES PETERBOROUGH,CARE ESTABLISHMENT,LD - Hunts Locality - Cost of Care,LD - Huntingdonshire - Care,Residential Care
Cambridgeshire County Council,23-Jan-20,51301301271,"-1,281.00",CONQUEST CARE HOMES PETERBOROUGH,CARE ESTABLISHMENT,LD - Hunts Locality - Cost of Care,LD - Huntingdonshire - Care,Residential Care
Cambridgeshire County Council,23-Jan-20,51301301271,"-1,281.00",CONQUEST CARE HOMES PETERBOROUGH,CARE ESTABLISHMENT,LD - Hunts Locality - Cost of Care,LD - Huntingdonshire - Care,Residential Care
Cambridgeshire County Council,23-Jan-20,51301301271,"-1,281.00",CONQUEST CARE HOMES PETERBOROUGH,CARE ESTABLISHMENT,LD - Hunts Locality - Cost of Care,LD - Huntingdonshire - Care,Residential Care
Cambridgeshire County Council,23-Jan-20,51301301271,"-1,281.00",CONQUEST CARE HOMES PETERBOROUGH,CARE ESTABLISHMENT,LD - Hunts Locality - Cost of Care,LD - Huntingdonshire - Care,Residential Care
Cambridgeshire County Council,23-Jan-20,51301301271,"-1,281.00",CONQUEST CARE HOMES PETERBOROUGH,CARE ESTABLISHMENT,LD - Hunts Locality - Cost of Care,LD - Huntingdonshire - Care,Residential Care
Cambridgeshire County Council,23-Jan-20,51301301271,"-1,281.00",CONQUEST CARE HOMES PETERBOROUGH,CARE ESTABLISHMENT,LD - Hunts Locality - Cost of Care,LD - Huntingdonshire - Care,Residential Care
Cambridgeshire County Council,23-Jan-20,51301301271,"-1,281.00",CONQUEST CARE HOMES PETERBOROUGH,CARE ESTABLISHMENT,LD - Hunts Locality - Cost of Care,LD - Huntingdonshire - Care,Residential Care
Cambridgeshire County Council,23-Jan-20,51301301271,"-1,281.00",CONQUEST CARE HOMES PETERBOROUGH,CARE ESTABLISHMENT,LD - Hunts Locality - Cost of Care,LD - Huntingdonshire - Care,Residential Care
Cambridgeshire County Council,23-Jan-20,51301301271,"-1,281.00",CONQUEST CARE HOMES PETERBOROUGH,CARE ESTABLISHMENT,LD - Hunts Locality - Cost of Care,LD - Huntingdonshire - Care,Residential Care
Cambridgeshire County Council,23-Jan-20,51301301271,"-1,281.00",CONQUEST CARE HOMES PETERBOROUGH,CARE ESTABLISHMENT,LD - Hunts Locality - Cost of Care,LD - Huntingdonshire - Care,Residential Care
Cambridgeshire County Council,23-Jan-20,51301301271,"-1,281.00",CONQUEST CARE HOMES PETERBOROUGH,CARE ESTABLISHMENT,LD - Hunts Locality - Cost of Care,LD - Huntingdonshire - Care,Residential Care
Cambridgeshire County Council,23-Jan-20,51301301271,"-1,281.00",CONQUEST CARE HOMES PETERBOROUGH,CARE ESTABLISHMENT,LD - Hunts Locality - Cost of Care,LD - Huntingdonshire - Care,Residential Care
Cambridgeshire County Council,23-Jan-20,51301301271,"-1,281.00",CONQUEST CARE HOMES PETERBOROUGH,CARE ESTABLISHMENT,LD - Hunts Locality - Cost of Care,LD - Huntingdonshire - Care,Residential Care
Cambridgeshire County Council,23-Jan-20,51301301271,"-1,281.00",CONQUEST CARE HOMES PETERBOROUGH,CARE ESTABLISHMENT,LD - Hunts Locality - Cost of Care,LD - Huntingdonshire - Care,Residential Care
Cambridgeshire County Council,23-Jan-20,51301301271,"-1,281.00",CONQUEST CARE HOMES PETERBOROUGH,CARE ESTABLISHMENT,LD - Hunts Locality - Cost of Care,LD - Huntingdonshire - Care,Residential Care
Cambridgeshire County Council,23-Jan-20,51301301271,"-1,281.00",CONQUEST CARE HOMES PETERBOROUGH,CARE ESTABLISHMENT,LD - Hunts Locality - Cost of Care,LD - Huntingdonshire - Care,Residential Care
Cambridgeshire County Council,23-Jan-20,51301301271,"-1,281.00",CONQUEST CARE HOMES PETERBOROUGH,CARE ESTABLISHMENT,LD - Hunts Locality - Cost of Care,LD - Huntingdonshire - Care,Residential Care
Cambridgeshire County Council,23-Jan-20,51301301271,"-1,281.00",CONQUEST CARE HOMES PETERBOROUGH,CARE ESTABLISHMENT,LD - Hunts Locality - Cost of Care,LD - Huntingdonshire - Care,Residential Care
Cambridgeshire County Council,23-Jan-20,51301301271,"-1,281.00",CONQUEST CARE HOMES PETERBOROUGH,CARE ESTABLISHMENT,LD - Hunts Locality - Cost of Care,LD - Huntingdonshire - Care,Residential Care
Cambridgeshire County Council,23-Jan-20,51301301271,"-1,281.00",CONQUEST CARE HOMES PETERBOROUGH,CARE ESTABLISHMENT,LD - Hunts Locality - Cost of Care,LD - Huntingdonshire - Care,Residential Care
Cambridgeshire County Council,23-Jan-20,51301301271,"-1,281.00",CONQUEST CARE HOMES PETERBOROUGH,CARE ESTABLISHMENT,LD - Hunts Locality - Cost of Care,LD - Huntingdonshire - Care,Residential Care
Cambridgeshire County Council,23-Jan-20,51301301271,"-1,281.00",CONQUEST CARE HOMES PETERBOROUGH,CARE ESTABLISHMENT,LD - Hunts Locality - Cost of Care,LD - Huntingdonshire - Care,Residential Care
Cambridgeshire County Council,23-Jan-20,51301301271,"-1,281.00",CONQUEST CARE HOMES PETERBOROUGH,CARE ESTABLISHMENT,LD - Hunts Locality - Cost of Care,LD - Huntingdonshire - Care,Residential Care
Cambridgeshire County Council,23-Jan-20,51301301271,"-1,281.00",CONQUEST CARE HOMES PETERBOROUGH,CARE ESTABLISHMENT,LD - Hunts Locality - Cost of Care,LD - Huntingdonshire - Care,Residential Care
Cambridgeshire County Council,23-Jan-20,51301301271,"-1,281.00",CONQUEST CARE HOMES PETERBOROUGH,CARE ESTABLISHMENT,LD - Hunts Locality - Cost of Care,LD - Huntingdonshire - Care,Residential Care
Cambridgeshire County Council,23-Jan-20,51301301271,"-1,281.00",CONQUEST CARE HOMES PETERBOROUGH,CARE ESTABLISHMENT,LD - Hunts Locality - Cost of Care,LD - Huntingdonshire - Care,Residential Care
Cambridgeshire County Council,23-Jan-20,51301301271,"-1,281.00",CONQUEST CARE HOMES PETERBOROUGH,CARE ESTABLISHMENT,LD - Hunts Locality - Cost of Care,LD - Huntingdonshire - Care,Residential Care
Cambridgeshire County Council,23-Jan-20,51301301271,"-1,281.00",CONQUEST CARE HOMES PETERBOROUGH,CARE ESTABLISHMENT,LD - Hunts Locality - Cost of Care,LD - Huntingdonshire - Care,Residential Care
Cambridgeshire County Council,23-Jan-20,51301301271,"-1,281.00",CONQUEST CARE HOMES PETERBOROUGH,CARE ESTABLISHMENT,LD - Hunts Locality - Cost of Care,LD - Huntingdonshire - Care,Residential Care
Cambridgeshire County Council,23-Jan-20,51301301271,"-1,281.00",CONQUEST CARE HOMES PETERBOROUGH,CARE ESTABLISHMENT,LD - Hunts Locality - Cost of Care,LD - Huntingdonshire - Care,Residential Care
Cambridgeshire County Council,23-Jan-20,51301301271,"-1,281.00",CONQUEST CARE HOMES PETERBOROUGH,CARE ESTABLISHMENT,LD - Hunts Locality - Cost of Care,LD - Huntingdonshire - Care,Residential Care
Cambridgeshire County Council,23-Jan-20,51301301271,"-1,281.00",CONQUEST CARE HOMES PETERBOROUGH,CARE ESTABLISHMENT,LD - Hunts Locality - Cost of Care,LD - Huntingdonshire - Care,Residential Care
Cambridgeshire County Council,23-Jan-20,51301301012,"-1,269.60",GLENHOLME HEALTHCARE LTD,CARE ESTABLISHMENT,LD - Young Adults Team,LD - Young Adults - Care,Residential Care
Cambridgeshire County Council,23-Jan-20,51301301012,"-1,269.60",GLENHOLME HEALTHCARE LTD,CARE ESTABLISHMENT,LD - Young Adults Team,LD - Young Adults - Care,Residential Care
Cambridgeshire County Council,23-Jan-20,51301301012,"-1,269.60",GLENHOLME HEALTHCARE LTD,CARE ESTABLISHMENT,LD - Young Adults Team,LD - Young Adults - Care,Residential Care
Cambridgeshire County Council,23-Jan-20,51301301012,"-1,269.60",GLENHOLME HEALTHCARE LTD,CARE ESTABLISHMENT,LD - Young Adults Team,LD - Young Adults - Care,Residential Care
Cambridgeshire County Council,23-Jan-20,51301301012,"-1,269.60",GLENHOLME HEALTHCARE LTD,CARE ESTABLISHMENT,LD - Young Adults Team,LD - Young Adults - Care,Residential Care
Cambridgeshire County Council,23-Jan-20,51301301012,"-1,269.60",GLENHOLME HEALTHCARE LTD,CARE ESTABLISHMENT,LD - Young Adults Team,LD - Young Adults - Care,Residential Care
Cambridgeshire County Council,23-Jan-20,51301301012,"-1,269.60",GLENHOLME HEALTHCARE LTD,CARE ESTABLISHMENT,LD - Young Adults Team,LD - Young Adults - Care,Residential Care
Cambridgeshire County Council,23-Jan-20,51301301012,"-1,269.60",GLENHOLME HEALTHCARE LTD,CARE ESTABLISHMENT,LD - Young Adults Team,LD - Young Adults - Care,Residential Care
Cambridgeshire County Council,23-Jan-20,51301301012,"-1,269.60",GLENHOLME HEALTHCARE LTD,CARE ESTABLISHMENT,LD - Young Adults Team,LD - Young Adults - Care,Residential Care
Cambridgeshire County Council,23-Jan-20,51301301012,"-1,269.60",GLENHOLME HEALTHCARE LTD,CARE ESTABLISHMENT,LD - Young Adults Team,LD - Young Adults - Care,Residential Care
Cambridgeshire County Council,23-Jan-20,51301301012,"-1,269.60",GLENHOLME HEALTHCARE LTD,CARE ESTABLISHMENT,LD - Young Adults Team,LD - Young Adults - Care,Residential Care
Cambridgeshire County Council,23-Jan-20,51301301012,"-1,269.60",GLENHOLME HEALTHCARE LTD,CARE ESTABLISHMENT,LD - Young Adults Team,LD - Young Adults - Care,Residential Care
Cambridgeshire County Council,23-Jan-20,51301301012,"-1,269.60",GLENHOLME HEALTHCARE LTD,CARE ESTABLISHMENT,LD - Young Adults Team,LD - Young Adults - Care,Residential Care
Cambridgeshire County Council,23-Jan-20,51301301012,"-1,269.60",GLENHOLME HEALTHCARE LTD,CARE ESTABLISHMENT,LD - Young Adults Team,LD - Young Adults - Care,Residential Care
Cambridgeshire County Council,23-Jan-20,51301301012,"-1,269.60",GLENHOLME HEALTHCARE LTD,CARE ESTABLISHMENT,LD - Young Adults Team,LD - Young Adults - Care,Residential Care
